Workbook

Sheet Porous Absorber
B2: Rigid Backed Porous Absorber | G2: © Chris Whealy 2020 | H2: V1.60
B3: Properties of absorber | G3: Display options | P3: Rigid Backed Porous Absorber
B4: Absorber thickness (ta) | C4: 30.0 | D4: mm | E4: =porous_abs_thickness_mm/25.4 -> 1.181 | F4: in | G4: Start graph at | H4: 62.5 | I4: Hz | P4: Absorber thickness (ta) | Q4: =porous_abs_thickness_mm/1000 -> 0.03 | R4: m | S4: cos(y) | T4: =COS(porousAbsAngle*PI()/180) -> 1.0000
B5: Absorber flow resisitivity | C5: 16,500 | D5: rayls/m | K5: To see the graph in the standard | P5: Air gap (l) | Q5: =porous_airGap_mm/1000 -> 0.1 | R5: m
B6: Properties of cavity | K6: analysis frequencies, select | P6: Octave subdivisions | Q6: 6
B7: Air gap (d) | C7: 100.0 | D7: mm | E7: =porous_airGap_mm/25.4 -> 3.937 | F7: in | G7: Show subdivisions of | K7: "Whole Octaves" and set the
B8: Properties of incident sound | K8: starting frequency to 62.5Hz | P8: Interval number | Q8: 0 | R8: 1 | S8: 2 | T8: 3 | U8: 4 | V8: 5 | W8: 6 | X8: 7 | Y8: 8 | Z8: 9 | AA8: 10 | AB8: 11 | AC8: 12 | AD8: 13 | AE8: 14 | AF8: 15 | AG8: 16 | AH8: 17 | AI8: 18 | AJ8: 19 | AK8: 20 | AL8: 21 | AM8: 22 | AN8: 23 | AO8: 24 | AP8: 25 | AQ8: 26 | AR8: 27 | AS8: 28 | AT8: 29 | AU8: 30 | AV8: 31 | AW8: 32 | AX8: 33 | AY8: 34 | AZ8: 35 | BA8: 36 | BB8: 37 | BC8: 38 | BD8: 39 | BE8: 40 | BF8: 41 | BG8: 42 | BH8: 43 | BI8: 44 | BJ8: 45 | BK8: 46 | BL8: 47 | BM8: 48
B9: Angle of incidence (y) | C9: 0 | D9: ° | F9: =IF(porousAbsAngle=0,"Normal incidence","Oblique incidence") -> Normal incidence | P9: Angular values | Q9: =start_freq_porous -> 62.5 | R9: =POWER(2,LOG(start_freq_porous,2)+R8/subdiv_porous) -> 70 | S9: =POWER(2,LOG(start_freq_porous,2)+S8/subdiv_porous) -> 79 | T9: 88 | U9: 99 | V9: 111 | W9: 125 | X9: 140 | Y9: 157 | Z9: 177 | AA9: 198 | AB9: 223 | AC9: 250 | AD9: 281 | AE9: 315 | AF9: 354 | AG9: 397 | AH9: 445 | AI9: 500 | AJ9: 561 | AK9: 630 | AL9: 707 | AM9: 794 | AN9: 891 | AO9: 1,000 | AP9: 1,122 | AQ9: 1,260 | AR9: 1,414 | AS9: 1,587 | AT9: 1,782 | AU9: 2,000 | AV9: 2,245 | AW9: 2,520 | AX9: 2,828 | AY9: 3,175 | AZ9: 3,564 | BA9: 4,000 | BB9: 4,490 | BC9: 5,040 | BD9: 5,657 | BE9: 6,350 | BF9: 7,127 | BG9: 8,000 | BH9: 8,980 | BI9: 10,079 | BJ9: 11,314 | BK9: 12,699 | BL9: 14,254 | BM9: 16,000
O10: 2pf | P10: Angular frequency (w) | Q10: =2*PI()*Q9 -> 392.7 | R10: =2*PI()*R9 -> 440.8 | S10: 494.8 | T10: 555.4 | U10: 623.4 | V10: 699.7 | W10: 785.4 | X10: 881.6 | Y10: 989.5 | Z10: 1110.7 | AA10: 1246.7 | AB10: 1399.4 | AC10: 1570.8 | AD10: 1763.2 | AE10: 1979.1 | AF10: 2221.4 | AG10: 2493.5 | AH10: 2798.8 | AI10: 3141.6 | AJ10: 3526.3 | AK10: 3958.2 | AL10: 4442.9 | AM10: 4987.0 | AN10: 5597.7 | AO10: 6283.2 | AP10: 7052.6 | AQ10: 7916.3 | AR10: 8885.8 | AS10: 9973.9 | AT10: 11195.4 | AU10: 12566.4 | AV10: 14105.3 | AW10: =2*PI()*AW9 -> 15832.6 | AX10: 17771.5 | AY10: 19947.9 | AZ10: 22390.7 | BA10: 25132.7 | BB10: 28210.5 | BC10: 31665.3 | BD10: 35543.1 | BE10: 39895.7 | BF10: 44781.5 | BG10: 50265.5 | BH10: 56421.1 | BI10: 63330.5 | BJ10: 71086.1 | BK10: 79791.5 | BL10: 89562.9 | BM10: 100531.0
B11: This plot is a simplification of reality because it is only calculated for sound incident at exactly the specified angle. | O11: 2p/l | P11: Wave number (kair) | Q11: =TwoPiByC*Q9 -> 1.1436 | R11: 1.2837 | S11: 1.4409 | T11: 1.6173 | U11: 1.8154 | V11: 2.0377 | W11: 2.2872 | X11: 2.5673 | Y11: 2.8817 | Z11: 3.2347 | AA11: 3.6308 | AB11: 4.0754 | AC11: 4.5745 | AD11: 5.1347 | AE11: 5.7635 | AF11: 6.4693 | AG11: 7.2615 | AH11: 8.1508 | AI11: 9.1490 | AJ11: 10.2694 | AK11: 11.5270 | AL11: 12.9386 | AM11: 14.5231 | AN11: 16.3016 | AO11: 18.2980 | AP11: 20.5388 | AQ11: 23.0540 | AR11: 25.8772 | AS11: 29.0462 | AT11: 32.6032 | AU11: 36.5959 | AV11: 41.0775 | AW11: =TwoPiByC*AW9 -> 46.1079 | AX11: 51.7544 | AY11: 58.0924 | AZ11: 65.2065 | BA11: 73.1918 | BB11: 82.1550 | BC11: 92.2159 | BD11: 103.5088 | BE11: 116.1847 | BF11: 130.4130 | BG11: 146.3836 | BH11: 164.3100 | BI11: 184.4318 | BJ11: 207.0177 | BK11: 232.3695 | BL11: 260.8259 | BM11: 292.7672
P12: Properties of porous absorber
O13: Eq 5.11 | P13: Delany & Bazley's term (X) | Q13: =(airDensity*Q9)/porous_sigma -> 0.005 | R13: 0.005 | S13: 0.006 | T13: 0.006 | U13: 0.007 | V13: 0.008 | W13: 0.009 | X13: 0.010 | Y13: 0.011 | Z13: 0.013 | AA13: 0.014 | AB13: 0.016 | AC13: 0.018 | AD13: 0.020 | AE13: 0.023 | AF13: 0.026 | AG13: 0.029 | AH13: 0.033 | AI13: 0.036 | AJ13: 0.041 | AK13: 0.046 | AL13: 0.052 | AM13: 0.058 | AN13: 0.065 | AO13: 0.073 | AP13: 0.082 | AQ13: 0.092 | AR13: 0.103 | AS13: 0.116 | AT13: 0.130 | AU13: 0.146 | AV13: 0.164 | AW13: =(airDensity*AW9)/porous_sigma -> 0.184 | AX13: 0.206 | AY13: 0.232 | AZ13: 0.260 | BA13: 0.292 | BB13: 0.328 | BC13: 0.368 | BD13: 0.413 | BE13: 0.463 | BF13: 0.520 | BG13: 0.584 | BH13: 0.655 | BI13: 0.736 | BJ13: 0.826 | BK13: 0.927 | BL13: 1.040 | BM13: 1.168
O14: Eq 5.9 | P14: Characteristic absorber impedance (zca) | Q14: =IMPRODUCT(airImpedance,COMPLEX(1+0.0571*(Q13^-0.754),-0.087*(Q13^-0.732),"j")) -> 1787.98109383187-1860.07330550798j | R14: 1673.3201246607-1709.24532464674j | S14: 1568.22412821793-1570.64754984422j | T14: 1471.89519825913-1443.28826895666j | U14: 1383.60198956339-1326.25618491845j | V14: 1302.67416543908-1218.71389511534j | W14: 1228.49730841642-1119.89189949642j | X14: 1160.50825548811-1029.08309455108j | Y14: 1098.19082248235-945.637713753479j | Z14: 1041.07188510691-868.958678271748j | AA14: 988.717786911013-798.497324674833j | AB14: 940.73104689361-733.74947906726j | AC14: 896.747341761659-674.251849560947j | AD14: 856.432739927211-619.578711271131j | AE14: 819.481166243412-569.338860116388j | AF14: 785.61207823117-523.172813626225j | AG14: 754.568336154121-480.750238727125j | AH14: 726.114250771071-441.767588101985j | AI14: 700.033793944169-405.945928210378j | AJ14: 676.128958517446-373.028943428378j | AK14: 654.218255013611-342.781102026914j | AL14: 634.135333735836-314.985970865678j | AM14: 615.727721813263-289.444666743628j | AN14: 598.855665601647-265.97443332502j | AO14: 583.391069650505-244.407333458401j | AP14: 569.216524181213-224.589047531685j | AQ14: 556.224413692467-206.377769265153j | AR14: 544.316099925549-189.643191041416j | AS14: 533.401172986293-174.265571512036j | AT14: 523.396764938175-160.13487880925j | AU14: 514.226920655183-147.150003232176j | AV14: 505.822021157885-135.21803377403j | AW14: =IMPRODUCT(airImpedance,COMPLEX(1+0.0571*(AW13^-0.754),-0.087*(AW13^-0.732),"j")) -> 498.118255054607-124.253593313662j | AX14: 491.057134074744-114.17822771449j | AY14: 484.58504901611-104.91984445965j | AZ14: 478.652862734964-96.4121968065901j | BA14: 473.215537088693-88.5944097700933j | BB14: 468.231790998726-81.4105445419609j | BC14: 463.663787037752-74.8091982306532j | BD14: 459.476844161694-68.743136056885j | BE14: 455.639174405466-63.168953373425j | BF14: 452.12164154346-58.0467650907279j | BG14: 448.897539882491-53.3399202861517j | BH14: 445.942391507755-49.0147399546903j | BI14: 443.233760442414-45.0402760247403j | BJ14: 440.751082309951-41.3880899145865j | BK14: 438.475508206022-38.0320490451027j | BL14: 436.389761594417-34.948139852652j | BM14: 434.47800714076-32.1142959642295j
O15: Eq 5.10 | P15: Complex wavenumber (k) | Q15: =IMPRODUCT(TwoPiByC,Q9,COMPLEX(1+0.0978*(Q13^-0.7),-0.189*(Q13^-0.595),"j")) -> 6.01078257968505-5.3407282086255j | R15: 6.32247291646459-5.59654502218689j | S15: 6.65736697166219-5.86461526628144j | T15: 7.01777852702292-6.14552587089911j | U15: 7.40628610215882-6.43989187952947j | V15: 7.82576471851884-6.74835779577672j | W15: 8.27942153009301-7.07159899447689j | X15: 8.77083579356213-7.41032320040622j | Y15: 9.30400370846593-7.76527203781878j | Z15: 9.88338872290681-8.13722265420555j | AA15: 10.5139779732044-8.52698942183033j | AB15: 11.2013456077393-8.93542572076827j | AC15: 11.9517238370672-9.36342580735008j | AD15: 12.772082655474-9.81192677210361j | AE15: 13.6702192948523-10.2819105914794j | AF15: 14.6548586016642-10.7744062778518j | AG15: 15.7357656735371-11.2904921325044j | AH15: 16.9238722556799-11.8312981065311j | AI15: 18.2314185809778-12.3980082748223j | AJ15: 19.6721125437952-12.9918634285541j | AK15: 21.2613083289255-13.6141637918548j | AL15: 23.016206876881-14.266271868598j | AM15: 24.9560808582697-14.9496154255556j | AN15: 27.1025271572753-15.6656906184399j | AO15: 29.479750231586-16.4160652676826j | AP15: 32.1148801284436-17.20238229112j | AQ15: 35.0383293992969-18.0263633011014j | AR15: 38.2841936750277-18.8898123738965j | AS15: 41.8907012468224-19.7946199996541j | AT15: 45.9007176522728-20.7427672215615j | AU15: 50.3623120009455-21.7363299732656j | AV15: 55.3293925982901-22.7774836240542j | AW15: =IMPRODUCT(TwoPiByC,AW9,COMPLEX(1+0.0978*(AW13^-0.7),-0.189*(AW13^-0.595),"j")) -> 60.8624203523565-23.868507741747j | AX15: 67.0292094867553-25.0117910837261j | AY15: 73.905826249486-26.2098368270329j | AZ15: 81.5775976162465-27.4652680489826j | BA15: 90.1402434561478-28.7808334702961j | BB15: 99.7011472769831-30.1594134733229j | BC15: 110.380782518399-31.6040264085338j | BD15: 122.314313439204-33.1178352030882j | BE15: 135.653391977414-34.7041542859472j | BF15: 150.568174579598-36.3664568446949j | BG15: 167.249585934686-38.1083824299556j | BH15: 185.911859845798-39.9337449240564j | BI15: 206.795391176059-41.8465408913829j | BJ15: 230.169936960115-43.8509583287115j | BK15: 256.338209437718-45.9513858346736j | BL15: 285.639909001728-48.1524222184333j | BM15: 318.456250929939-50.4588865686111j
O16: Eq 5.28 | P16: Y component of wavenumber (ky) | Q16: =Q11*SIN(porousAbsAngle*PI()/180) -> 0.000 | R16: 0.000 | S16: 0.000 | T16: 0.000 | U16: 0.000 | V16: 0.000 | W16: 0.000 | X16: 0.000 | Y16: 0.000 | Z16: 0.000 | AA16: 0.000 | AB16: 0.000 | AC16: 0.000 | AD16: 0.000 | AE16: 0.000 | AF16: 0.000 | AG16: 0.000 | AH16: 0.000 | AI16: 0.000 | AJ16: 0.000 | AK16: 0.000 | AL16: 0.000 | AM16: 0.000 | AN16: 0.000 | AO16: 0.000 | AP16: 0.000 | AQ16: 0.000 | AR16: 0.000 | AS16: 0.000 | AT16: 0.000 | AU16: 0.000 | AV16: 0.000 | AW16: =AW11*SIN(porousAbsAngle*PI()/180) -> 0.000 | AX16: 0.000 | AY16: 0.000 | AZ16: 0.000 | BA16: 0.000 | BB16: 0.000 | BC16: 0.000 | BD16: 0.000 | BE16: 0.000 | BF16: 0.000 | BG16: 0.000 | BH16: 0.000 | BI16: 0.000 | BJ16: 0.000 | BK16: 0.000 | BL16: 0.000 | BM16: 0.000
O17: Eq 5.29 | P17: X component of wavenumber (kx) | Q17: =IMSQRT(IMSUB(IMPRODUCT(Q15,Q15),Q16^2)) -> 6.01078257968505-5.3407282086255j | R17: 6.32247291646459-5.59654502218689j | S17: 6.65736697166219-5.86461526628144j | T17: 7.01777852702292-6.14552587089911j | U17: 7.40628610215882-6.43989187952947j | V17: 7.82576471851884-6.74835779577672j | W17: 8.27942153009301-7.07159899447689j | X17: 8.77083579356212-7.4103232004062j | Y17: 9.30400370846592-7.76527203781877j | Z17: 9.88338872290681-8.13722265420555j | AA17: 10.5139779732044-8.52698942183033j | AB17: 11.2013456077393-8.93542572076827j | AC17: 11.9517238370672-9.36342580735007j | AD17: 12.772082655474-9.81192677210361j | AE17: 13.6702192948523-10.2819105914794j | AF17: 14.6548586016642-10.7744062778518j | AG17: 15.7357656735371-11.2904921325044j | AH17: 16.9238722556799-11.8312981065311j | AI17: 18.2314185809778-12.3980082748223j | AJ17: 19.6721125437952-12.9918634285541j | AK17: 21.2613083289255-13.6141637918548j | AL17: 23.016206876881-14.266271868598j | AM17: 24.9560808582697-14.9496154255556j | AN17: 27.1025271572753-15.6656906184399j | AO17: 29.479750231586-16.4160652676826j | AP17: 32.1148801284436-17.20238229112j | AQ17: 35.0383293992969-18.0263633011014j | AR17: 38.2841936750277-18.8898123738965j | AS17: 41.8907012468224-19.7946199996541j | AT17: 45.9007176522728-20.7427672215615j | AU17: 50.3623120009455-21.7363299732656j | AV17: 55.3293925982901-22.7774836240542j | AW17: =IMSQRT(IMSUB(IMPRODUCT(AW15,AW15),AW16^2)) -> 60.8624203523565-23.868507741747j | AX17: 67.0292094867553-25.0117910837261j | AY17: 73.905826249486-26.2098368270329j | AZ17: 81.5775976162465-27.4652680489826j | BA17: 90.1402434561478-28.7808334702961j | BB17: 99.7011472769831-30.1594134733229j | BC17: 110.380782518399-31.6040264085338j | BD17: 122.314313439204-33.1178352030882j | BE17: 135.653391977414-34.7041542859472j | BF17: 150.568174579598-36.366456844695j | BG17: 167.249585934686-38.1083824299557j | BH17: 185.911859845798-39.9337449240563j | BI17: 206.795391176059-41.846540891383j | BJ17: 230.169936960115-43.8509583287115j | BK17: 256.338209437718-45.9513858346736j | BL17: 285.639909001728-48.1524222184332j | BM17: 318.456250929939-50.4588865686111j
O18: Eq 5.28 | P18: Angle of propagation in porous layer (bporous) | Q18: =ASIN(IMABS(IMDIV(Q16,Q15)))*180/PI() -> 0.0 | R18: 0.0 | S18: 0.0 | T18: 0.0 | U18: 0.0 | V18: 0.0 | W18: 0.0 | X18: 0.0 | Y18: 0.0 | Z18: 0.0 | AA18: 0.0 | AB18: 0.0 | AC18: 0.0 | AD18: 0.0 | AE18: 0.0 | AF18: 0.0 | AG18: 0.0 | AH18: 0.0 | AI18: 0.0 | AJ18: 0.0 | AK18: 0.0 | AL18: 0.0 | AM18: 0.0 | AN18: 0.0 | AO18: 0.0 | AP18: 0.0 | AQ18: 0.0 | AR18: 0.0 | AS18: 0.0 | AT18: 0.0 | AU18: 0.0 | AV18: 0.0 | AW18: =ASIN(IMABS(IMDIV(AW16,AW15)))*180/PI() -> 0.0 | AX18: 0.0 | AY18: 0.0 | AZ18: 0.0 | BA18: 0.0 | BB18: 0.0 | BC18: 0.0 | BD18: 0.0 | BE18: 0.0 | BF18: 0.0 | BG18: 0.0 | BH18: 0.0 | BI18: 0.0 | BJ18: 0.0 | BK18: 0.0 | BL18: 0.0 | BM18: 0.0
P19: Ratio of wavenumbers (k:kx) | Q19: =IMDIV(Q15,Q17) -> 1 | R19: 1 | S19: 1 | T19: 1 | U19: 1 | V19: 1 | W19: 1 | X19: 1-8.2721910210456E-16j | Y19: 1-1.68801455312779E-16j | Z19: 1 | AA19: 1 | AB19: 1 | AC19: 1-4.60497172611732E-16j | AD19: 1 | AE19: 1 | AF19: 1 | AG19: 1 | AH19: 1 | AI19: 1 | AJ19: 1 | AK19: 1 | AL19: 1 | AM19: 1+5.23822089907999E-17j | AN19: 1-4.91282482659549E-17j | AO19: 1 | AP19: 1 | AQ19: 1 | AR19: 1 | AS19: 1 | AT19: 1 | AU19: 1 | AV19: 1 | AW19: =IMDIV(AW15,AW17) -> 1 | AX19: 1 | AY19: 1 | AZ19: 1 | BA19: 1 | BB19: 1 | BC19: 1+2.97473487892601E-17j | BD19: 1 | BE19: 1 | BF19: 1+6.24254299504546E-16j | BG19: 1+5.6542062770027E-16j | BH19: 1-5.11471986268811E-16j | BI19: 1+4.62112975532696E-16j | BJ19: 1 | BK19: 1 | BL19: 1-3.3863320894699E-16j | BM19: 1
P20: Impedence values
P21: Intermediate term cot(k*ta) | Q21: =IMDIV(IMCOS(IMPRODUCT(Q15,porous_abs_thickness)),IMSIN(IMPRODUCT(Q15,porous_abs_thickness))) -> 3.03907399109389+2.80720189557854j | R21: 2.89299797354295+2.6728767405205j | S21: 2.75287700140115+2.54249604516655j | T21: 2.61838306790678+2.41601479241177j | U21: 2.48919347487008+2.29339506127762j | V21: 2.36499070003231+2.17460638565336j | W21: 2.24546234844792+2.0596261076479j | X21: 2.13030118810419+1.94843971432763j | Y21: 2.01920526542579+1.84104114521935j | Z21: 1.91187809010966+1.73743305742253j | AA21: 1.80802887064404+1.63762703609362j | AB21: 1.70737277166343+1.54164374123808j | AC21: 1.60963115182829+1.4495129882138j | AD21: 1.51453172613927+1.361273770456j | AE21: 1.42180857957188+1.27697425039322j | AF21: 1.33120193986597+1.19667177054577j | AG21: 1.24245759658797+1.12043297430411j | AH21: 1.15532583170836+1.04833417888107j | AI21: 1.06955970455723+0.980462217226042j | AJ21: 0.984912512039644+0.91691607013004j | AK21: 0.901134224937357+0.857809758495879j | AL21: 0.817966686209321+0.803277182240787j | AM21: 0.735137355047668+0.753479916361226j | AN21: 0.652351409514784+0.708619475153236j | AO21: 0.56928212529094+0.668956353044938j | AP21: 0.485559734003626+0.634839458602128j | AQ21: 0.400759682153503+0.606751758656984j | AR21: 0.314392958558663+0.585381725343696j | AS21: 0.225905384595088+0.571736736516889j | AT21: 0.134703063887979+0.56732593736716j | AU21: 0.0402467069569703+0.574459027472215j | AV21: -0.0576780339835567+0.596734992139401j | AW21: =IMDIV(IMCOS(IMPRODUCT(AW15,porous_abs_thickness)),IMSIN(IMPRODUCT(AW15,porous_abs_thickness))) -> -0.158242498507541+0.639814160397264j | AX21: -0.25772486424072+0.712465327096894j | AY21: -0.344932111066093+0.827110607350575j | AZ21: -0.391333559194368+0.995546749754697j | BA21: -0.339675318323662+1.20508493420894j | BB21: -0.136002051414263+1.36284772252403j | BC21: 0.135290911767865+1.32190936264031j | BD21: 0.270009219875248+1.11031594453491j | BE21: 0.220347203643135+0.906768006009976j | BF21: 0.0703535172381285+0.808338642051238j | BG21: -0.0989588734315179+0.84092153766009j | BH21: -0.183634382303068+1.01253296281255j | BI21: -0.030320009250783+1.17392526866831j | BJ21: 0.142215423652487+1.03741876731908j | BK21: 0.036343575552858+0.885915251775526j | BL21: -0.108135744152546+0.978646386561306j | BM21: 0.0271814291282161+1.09791847431602j
O22: Eq 5.25 | P22: Impedance at absorber surface (zsa) | Q22: =IMPRODUCT("-j",Q14,Q19,Q21) -> -633.676488433925-10655.4081479691j | R22: -472.264819840332-9409.51380182372j | S22: -336.595873344372-8310.49331944297j | T22: -222.960993670692-7340.99127236867j | U22: -128.162271866524-6485.68242871932j | V22: -49.4434693584458-5731.03530503807j | W22: 15.5700349385997-5065.10304516491j | X22: 68.9234348180039-4477.33848623754j | Y22: 112.377838696054-3958.43063068995j | Z22: 147.449650139532-3500.16006052859j | AA22: 175.444762768-3095.27111079033j | AB22: 197.488248850215-2737.35886696533j | AC22: 214.550137798581-2420.76926988455j | AD22: 227.467809962067-2140.51080431047j | AE22: 236.965471977888-1892.17641707931j | AF22: 243.671132234668-1671.87445970698j | AG22: 248.131459024869-1476.16758127388j | AH22: 250.824880710212-1302.01861241655j | AI22: 252.173278700756-1146.74258267803j | AJ22: 252.552633809395-1007.96410384928j | AK22: 252.303020638625-883.579434518219j | AL22: 251.738413251219-771.722620666504j | AM22: 251.156885590581-670.73519213252j | AN22: 250.851990976708-579.139000898104j | AO22: 251.126436124497-495.611946454164j | AP22: 252.309711858974-418.966613414881j | AQ22: 254.782252001603-348.132393686749j | AR22: 259.010213804753-282.142807418214j | AS22: 265.597514943354-220.132226270482j | AT22: 275.365901472553-161.351818091863j | AU22: 289.479993680806-105.227587934283j | AV22: 309.640810166795-51.5145125952752j | AW22: =IMPRODUCT("-j",AW14,AW19,AW21) -> 338.365312190807-0.675731250266182j | AX22: 379.287749888789+45.2096048579027j | AY22: 436.995657646916+80.368627674044j | AZ22: 514.250629882645+91.3300792251358j | BA22: 600.358248719529+53.9758497272317j | BB22: 649.20063104042-47.2696911052513j | BC22: 602.800496565219-161.620476054794j | BD22: 491.603185678813-200.389584284132j | BE22: 399.239923402778-157.678403842669j | BF22: 361.383599678789-78.7297909709647j | BG22: 382.76606791026-0.432292952745911j | BH22: 460.532162412386+32.26131573947j | BI22: 521.688932895954-39.4350664163645j | BJ22: 451.35741976317-105.618383116883j | BK22: 387.069919601839-49.6289400658947j | BL22: 430.85040642644+12.9874608267272j | BM22: 476.148518264094-47.0686119876451j
P23: Real part of impedance (No air gap) | Q23: =IMREAL(Q22) -> -633.68 | R23: -472.26 | S23: -336.60 | T23: -222.96 | U23: -128.16 | V23: -49.44 | W23: 15.57 | X23: 68.92 | Y23: 112.38 | Z23: 147.45 | AA23: 175.44 | AB23: 197.49 | AC23: 214.55 | AD23: 227.47 | AE23: 236.97 | AF23: 243.67 | AG23: 248.13 | AH23: 250.82 | AI23: 252.17 | AJ23: 252.55 | AK23: 252.30 | AL23: 251.74 | AM23: 251.16 | AN23: 250.85 | AO23: 251.13 | AP23: 252.31 | AQ23: 254.78 | AR23: 259.01 | AS23: 265.60 | AT23: 275.37 | AU23: 289.48 | AV23: 309.64 | AW23: =IMREAL(AW22) -> 338.37 | AX23: 379.29 | AY23: 437.00 | AZ23: 514.25 | BA23: 600.36 | BB23: 649.20 | BC23: 602.80 | BD23: 491.60 | BE23: 399.24 | BF23: 361.38 | BG23: 382.77 | BH23: 460.53 | BI23: 521.69 | BJ23: 451.36 | BK23: 387.07 | BL23: 430.85 | BM23: 476.15
P24: Imaginary part of impedence (No air gap) | Q24: =IMAGINARY(Q22) -> -10655.41 | R24: -9409.51 | S24: -8310.49 | T24: -7340.99 | U24: -6485.68 | V24: -5731.04 | W24: -5065.10 | X24: -4477.34 | Y24: -3958.43 | Z24: -3500.16 | AA24: -3095.27 | AB24: -2737.36 | AC24: -2420.77 | AD24: -2140.51 | AE24: -1892.18 | AF24: -1671.87 | AG24: -1476.17 | AH24: -1302.02 | AI24: -1146.74 | AJ24: -1007.96 | AK24: -883.58 | AL24: -771.72 | AM24: -670.74 | AN24: -579.14 | AO24: -495.61 | AP24: -418.97 | AQ24: -348.13 | AR24: -282.14 | AS24: -220.13 | AT24: -161.35 | AU24: -105.23 | AV24: -51.51 | AW24: =IMAGINARY(AW22) -> -0.68 | AX24: 45.21 | AY24: 80.37 | AZ24: 91.33 | BA24: 53.98 | BB24: -47.27 | BC24: -161.62 | BD24: -200.39 | BE24: -157.68 | BF24: -78.73 | BG24: -0.43 | BH24: 32.26 | BI24: -39.44 | BJ24: -105.62 | BK24: -49.63 | BL24: 12.99 | BM24: -47.07
P25: Reflection/Absorption (No air gap)
P26: Intermediate term (zsa/rc)*cos(y) | Q26: =IMPRODUCT(IMDIV(Q22,airImpedance),$T$4) -> -1.5325725178552-25.770540634175j | R26: -1.14219179225962-22.7572941749723j | S26: -0.814070893471131-20.0992681654869j | T26: -0.539240286944969-17.7544877917941j | U26: -0.309965699017729-15.685888353467j | V26: -0.119581053911977-13.8607434040455j | W26: 0.0376567666379993-12.2501589830311j | X26: 0.166694147512578-10.8286263454424j | Y26: 0.271790401482594-9.57362646265236j | Z26: 0.356613012626827-8.46528033589786j | AA26: 0.424320338102459-7.48603984255767j | AB26: 0.477633411230387-6.62041443479524j | AC26: 0.518898287838933-5.85472953914134j | AD26: 0.550140206568393-5.17691297173703j | AE26: 0.573110690806017-4.57630609416535j | AF26: 0.589328604538327-4.04349679531798j | AG26: 0.600116087400772-3.57017170133657j | AH26: 0.606630237963867-3.14898529383205j | AI26: 0.609891393681584-2.773443861883j | AJ26: 0.610808879535359-2.43780243190296j | AK26: 0.61020517986747-2.13697301919994j | AL26: 0.608839653796817-1.86644273762416j | AM26: 0.60743320535296-1.62220050922374j | AN26: 0.606695805252763-1.40067137252971j | AO26: 0.607359562073218-1.19865777335934j | AP26: 0.610221362857694-1.01328789901199j | AQ26: 0.616201302371076-0.841972440003338j | AR26: 0.626426801003767-0.682373925263214j | AS26: 0.642358458365406-0.532398797232007j | AT26: 0.665983700916911-0.390235974708008j | AU26: 0.700119210483159-0.254497227420944j | AV26: 0.748878970152182-0.12458995672909j | AW26: =IMPRODUCT(IMDIV(AW22,airImpedance),$T$4) -> 0.818350353728168-0.00163428368026293j | AX26: 0.917322943881493+0.109341279364098j | AY26: 1.05689188025091+0.194374814781881j | AZ26: 1.24373619194181+0.220885533910063j | BA26: 1.45199099169539+0.130542801302723j | BB26: 1.57011829201005-0.114323682253782j | BC26: 1.45789766804904-0.390885734985068j | BD26: 1.18896242138227-0.484650409702414j | BE26: 0.965578091984887-0.381351672027115j | BF26: 0.874021023945641-0.1904112211529j | BG26: 0.925735398352135-0.00104551819600917j | BH26: 1.11381588015987+0.0780253122762289j | BI26: 1.26172603216115-0.0953753218442421j | BJ26: 1.09162638962452-0.255442381561731j | BK26: 0.936144439785469-0.120029622407561j | BL26: 1.04202933870531+0.0314107054673191j | BM26: 1.15158467582172-0.113837364179524j
O27: Eq 1.22 | P27: Reflection factor | Q27: =IMDIV(IMSUB(Q26,1),IMSUM(Q26,1)) -> 1.00160315771361-0.0775748646735344j | R27: 1.00054909352507-0.087880479464338j | S27: 0.999079593394776-0.099497596288417j | T27: 0.997078567852453-0.112571759050449j | U27: 0.994401872222547-0.127256872854834j | V27: 0.990871537672175-0.143712575202607j | W27: 0.986269216609896-0.162100113349931j | X27: 0.980328933347997-0.182576239921132j | Y27: 0.972729361938569-0.205284535796133j | Z27: 0.963086048272355-0.23034347066688j | AA27: 0.950944271765354-0.257830437610324j | AB27: 0.935773621824686-0.287760981806989j | AC27: 0.916965858959365-0.32006253624758j | AD27: 0.893838238491658-0.354542252324157j | AE27: 0.865645165491482-0.390849068368405j | AF27: 0.831601740697324-0.428431112284229j | AG27: 0.79092328724873-0.466491005965434j | AH27: 0.742885046474804-0.50394371296114j | AI27: 0.686905500731637-0.539384222186186j | AJ27: 0.622654719913184-0.571075348012787j | AK27: 0.550185227857628-0.596968661959549j | AL27: 0.470076854809687-0.614773015760291j | AM27: 0.383579168673902-0.622083818564484j | AN27: 0.292726643335919-0.616580649550228j | AO27: 0.200395248540928-0.596290011001173j | AP27: 0.110268072409756-0.559894817189483j | AQ27: 0.0266850309957474-0.507055883535061j | AR27: -0.0456316069594112-0.438698958711098j | AS27: -0.101961947533435-0.357219955530383j | AT27: -0.138050260745468-0.26657412826085j | AU27: -0.150605083474827-0.172238394693257j | AV27: -0.137815161538083-0.0810578342819212j | AW27: =IMDIV(IMSUB(AW26,1),IMSUM(AW26,1)) -> -0.0998971569565375-0.000988557551572035j | AX27: -0.0397396451597578+0.0592943736318049j | AY27: 0.0362654104421102+0.0910722309435905j | AZ27: 0.117185408851555+0.0869090461747454j | BA27: 0.186641737899894+0.0433027961182872j | BB27: 0.223362385212983-0.0345462978008714j | BC27: 0.206368487637057-0.126213243557669j | BD27: 0.129021203136298-0.19284032773644j | BE27: 0.0193992463344035-0.19025127443489j | BF27: -0.0563187486684954-0.107328007685417j | BG27: -0.0385639751908099-0.000563856038950504j | BH27: 0.0551311846939003+0.0348770605170934j | BI27: 0.117289277711745-0.0372232613660818j | BJ27: 0.0578581540616116-0.115060202954635j | BK27: -0.0290259543786307-0.0637935859606284j | BL27: 0.0208138267846415+0.0150619425008063j | BM27: 0.0730474110141993-0.0490437771914456j
O28: Eq 1.25 | P28: Absorption coefficient (a) | Q28: =1-IMABS(Q27)^2 -> -0.01 | R28: -0.01 | S28: -0.01 | T28: -0.01 | U28: -0.01 | V28: -0.00 | W28: 0.00 | X28: 0.01 | Y28: 0.01 | Z28: 0.02 | AA28: 0.03 | AB28: 0.04 | AC28: 0.06 | AD28: 0.08 | AE28: 0.10 | AF28: 0.12 | AG28: 0.16 | AH28: 0.19 | AI28: 0.24 | AJ28: 0.29 | AK28: 0.34 | AL28: 0.40 | AM28: 0.47 | AN28: 0.53 | AO28: 0.60 | AP28: 0.67 | AQ28: 0.74 | AR28: 0.81 | AS28: 0.86 | AT28: 0.91 | AU28: 0.95 | AV28: 0.97 | AW28: =1-IMABS(AW27)^2 -> 0.99 | AX28: 0.99 | AY28: 0.99 | AZ28: 0.98 | BA28: 0.96 | BB28: 0.95 | BC28: 0.94 | BD28: 0.95 | BE28: 0.96 | BF28: 0.99 | BG28: 1.00 | BH28: 1.00 | BI28: 0.98 | BJ28: 0.98 | BK28: 1.00 | BL28: 1.00 | BM28: 0.99
P29: Impedence values
O30: Eq 5.28 | P30: Y component of wavenumber (kair y) | Q30: =IMPRODUCT(Q15,SIN(Q18*PI()/180)) -> 0 | R30: 0 | S30: 0 | T30: 0 | U30: 0 | V30: 0 | W30: 0 | X30: 0 | Y30: 0 | Z30: 0 | AA30: 0 | AB30: 0 | AC30: 0 | AD30: 0 | AE30: 0 | AF30: 0 | AG30: 0 | AH30: 0 | AI30: 0 | AJ30: 0 | AK30: 0 | AL30: 0 | AM30: 0 | AN30: 0 | AO30: 0 | AP30: 0 | AQ30: 0 | AR30: 0 | AS30: 0 | AT30: 0 | AU30: 0 | AV30: 0 | AW30: =IMPRODUCT(AW15,SIN(AW18*PI()/180)) -> 0 | AX30: 0 | AY30: 0 | AZ30: 0 | BA30: 0 | BB30: 0 | BC30: 0 | BD30: 0 | BE30: 0 | BF30: 0 | BG30: 0 | BH30: 0 | BI30: 0 | BJ30: 0 | BK30: 0 | BL30: 0 | BM30: 0
O31: Eq 5.29 | P31: X component of wavenumber (kair x) | Q31: =IMSQRT(IMSUB(Q11^2,IMPRODUCT(Q30,Q30))) -> 1.14362196561272 | R31: =IMSQRT(IMSUB(R11^2,IMPRODUCT(R30,R30))) -> 1.28367225401324 | S31: 1.44087338759761 | T31: 1.61732569399728 | U31: 1.81538671126757 | V31: 2.03770268640301 | W31: 2.28724393122543 | X31: 2.56734450802648 | Y31: 2.88174677519522 | Z31: 3.23465138799455 | AA31: 3.63077342253514 | AB31: 4.07540537280602 | AC31: 4.57448786245087 | AD31: 5.13468901605297 | AE31: 5.76349355039045 | AF31: 6.46930277598913 | AG31: 7.26154684507027 | AH31: 8.15081074561203 | AI31: 9.14897572490173 | AJ31: 10.2693780321059 | AK31: 11.5269871007809 | AL31: 12.9386055519782 | AM31: 14.5230936901405 | AN31: 16.3016214912241 | AO31: 18.2979514498035 | AP31: 20.5387560642119 | AQ31: 23.0539742015618 | AR31: 25.8772111039565 | AS31: 29.046187380281 | AT31: 32.6032429824481 | AU31: 36.5959028996069 | AV31: 41.0775121284237 | AW31: 46.1079484031236 | AX31: 51.754422207913 | AY31: 58.0923747605622 | AZ31: 65.2064859648962 | BA31: 73.191805799214 | BB31: 82.1550242568474 | BC31: 92.2158968062472 | BD31: 103.508844415826 | BE31: 116.184749521124 | BF31: 130.412971929792 | BG31: 146.383611598428 | BH31: 164.310048513695 | BI31: 184.431793612494 | BJ31: 207.017688831652 | BK31: 232.369499042249 | BL31: 260.825943859585 | BM31: 292.767223196855
O32: Eq 5.28 | P32: Angle of propagation in air layer (bair) | Q32: =ASIN(IMABS(IMDIV(Q30,airImpedance)))*180/PI() -> 0.0 | R32: 0.0 | S32: 0.0 | T32: 0.0 | U32: 0.0 | V32: 0.0 | W32: 0.0 | X32: 0.0 | Y32: 0.0 | Z32: 0.0 | AA32: 0.0 | AB32: 0.0 | AC32: 0.0 | AD32: 0.0 | AE32: 0.0 | AF32: 0.0 | AG32: 0.0 | AH32: 0.0 | AI32: 0.0 | AJ32: 0.0 | AK32: 0.0 | AL32: 0.0 | AM32: 0.0 | AN32: 0.0 | AO32: 0.0 | AP32: 0.0 | AQ32: 0.0 | AR32: 0.0 | AS32: 0.0 | AT32: 0.0 | AU32: 0.0 | AV32: 0.0 | AW32: =ASIN(IMABS(IMDIV(AW30,airImpedance)))*180/PI() -> 0.0 | AX32: 0.0 | AY32: 0.0 | AZ32: 0.0 | BA32: 0.0 | BB32: 0.0 | BC32: 0.0 | BD32: 0.0 | BE32: 0.0 | BF32: 0.0 | BG32: 0.0 | BH32: 0.0 | BI32: 0.0 | BJ32: 0.0 | BK32: 0.0 | BL32: 0.0 | BM32: 0.0
P33: Ratio of wavenumbers (kair:kair x) | Q33: =IMDIV(Q11,Q31) -> 0.999999999999997 | R33: =IMDIV(R11,R31) -> 1 | S33: 1 | T33: 1 | U33: 0.999999999999998 | V33: 0.999999999999999 | W33: 1 | X33: 1 | Y33: 1 | Z33: 1 | AA33: 0.999999999999998 | AB33: 0.999999999999999 | AC33: 0.999999999999999 | AD33: 0.999999999999999 | AE33: 1 | AF33: 1 | AG33: 1 | AH33: 1 | AI33: 1 | AJ33: 1 | AK33: 1 | AL33: 1 | AM33: 1 | AN33: 0.999999999999998 | AO33: 0.999999999999998 | AP33: 0.999999999999999 | AQ33: 1 | AR33: 1 | AS33: 1 | AT33: 1 | AU33: 1 | AV33: 1 | AW33: 1 | AX33: 1 | AY33: 0.999999999999999 | AZ33: 1 | BA33: 0.999999999999999 | BB33: 1 | BC33: 1 | BD33: 1 | BE33: 1 | BF33: 1 | BG33: 0.999999999999998 | BH33: 0.999999999999999 | BI33: 1 | BJ33: 1 | BK33: 0.999999999999999 | BL33: 1 | BM33: 1
O34: Eq 1.29 | P34: Impedance at top of air layer (zair) | Q34: =IMPRODUCT("-j",airImpedance,Q33,COS(Q11*porous_airGap)/SIN(Q11*porous_airGap)) -> -3599.68862019471j | R34: -3203.30089869199j | S34: -2849.7096240233j | T34: -2534.18966872095j | U34: -2252.52420112165j | V34: -2000.94819127433j | W34: -1776.097887659j | X34: -1574.96556106197j | Y34: -1394.85886930187j | Z34: -1233.36423886607j | AA34: -1088.31368403365j | AB34: -957.754485507092j | AC34: -839.921119785755j | AD34: -733.208751475976j | AE34: -636.14744512285j | AF34: -547.375969693927j | AG34: -465.613561824942j | AH34: -389.627097841454j | AI34: -318.189423761048j | AJ34: -250.021306523878j | AK34: -183.702788154532j | AL34: -117.525253279643j | AM34: -49.221650172974j | AN34: 24.5750077152849j | AO34: 109.549436034045j | AP34: 216.879115294849j | AQ34: 373.46395295932j | AR34: 668.568089409108j | AS34: 1712.01779913318j | AT34: -3466.03191772888j | AU34: -725.509779250034j | AV34: -285.695795152704j | AW34: =IMPRODUCT("-j",airImpedance,AW33,COS(AW11*porous_airGap)/SIN(AW11*porous_airGap)) -> -42.1514965955192j | AX34: 206.429114180929j | AY34: 806.079671806826j | AZ34: -1708.35382976391j | BA34: -244.934662983719j | BB34: 156.350508812606j | BC34: 2006.84101684035j | BD34: -310.872995243817j | BE34: 296.996066768146j | BF34: -804.140602068745j | BG34: 226.522581084922j | BH34: -468.543315753048j | BI34: 960.826338825069j | BJ34: 119.530218463142j | BK34: -139.316305546028j | BL34: -295.770822557833j | BM34: -264.095025160426j
P35: Intermediate term -j*zca*cot(k*ta) | Q35: =IMPRODUCT("-j",Q14,Q21) -> -633.676488433925-10655.4081479691j | R35: -472.264819840332-9409.51380182372j | S35: -336.595873344372-8310.49331944297j | T35: -222.960993670692-7340.99127236867j | U35: -128.162271866524-6485.68242871932j | V35: -49.4434693584458-5731.03530503807j | W35: 15.5700349385997-5065.10304516491j | X35: 68.9234348180075-4477.33848623754j | Y35: 112.377838696055-3958.43063068995j | Z35: 147.449650139532-3500.16006052859j | AA35: 175.444762768-3095.27111079033j | AB35: 197.488248850215-2737.35886696533j | AC35: 214.550137798582-2420.76926988455j | AD35: 227.467809962067-2140.51080431047j | AE35: 236.965471977888-1892.17641707931j | AF35: 243.671132234668-1671.87445970698j | AG35: 248.131459024869-1476.16758127388j | AH35: 250.824880710212-1302.01861241655j | AI35: 252.173278700756-1146.74258267803j | AJ35: 252.552633809395-1007.96410384928j | AK35: 252.303020638625-883.579434518219j | AL35: 251.738413251219-771.722620666504j | AM35: 251.156885590581-670.73519213252j | AN35: 250.851990976708-579.139000898104j | AO35: 251.126436124497-495.611946454164j | AP35: 252.309711858974-418.966613414881j | AQ35: 254.782252001603-348.132393686749j | AR35: 259.010213804753-282.142807418214j | AS35: 265.597514943354-220.132226270482j | AT35: 275.365901472553-161.351818091863j | AU35: 289.479993680806-105.227587934283j | AV35: 309.640810166795-51.5145125952752j | AW35: =IMPRODUCT("-j",AW14,AW21) -> 338.365312190807-0.675731250266182j | AX35: 379.287749888789+45.2096048579027j | AY35: 436.995657646916+80.368627674044j | AZ35: 514.250629882645+91.3300792251358j | BA35: 600.358248719529+53.9758497272317j | BB35: 649.20063104042-47.2696911052513j | BC35: 602.800496565219-161.620476054794j | BD35: 491.603185678813-200.389584284132j | BE35: 399.239923402778-157.678403842669j | BF35: 361.383599678789-78.729790970965j | BG35: 382.766067910261-0.432292952746138j | BH35: 460.532162412386+32.2613157394703j | BI35: 521.688932895954-39.4350664163648j | BJ35: 451.35741976317-105.618383116883j | BK35: 387.069919601839-49.6289400658947j | BL35: 430.85040642644+12.9874608267274j | BM35: 476.148518264094-47.0686119876451j
O36: Eq 1.28 | P36: At top of porous absorber (za + air) | Q36: =IMDIV(IMSUM(IMPRODUCT(Q35,Q34),IMPRODUCT(Q14,Q14)),IMSUM(Q34,Q35)) -> 426.179599203616-2690.20185520718j | R36: 422.831230242817-2383.55480175778j | S36: 419.105442218686-2110.08980385473j | T36: 415.15870688058-1866.04232422363j | U36: 411.131449031844-1648.05739936008j | V36: 407.151518415032-1453.14295178252j | W36: 403.337662379051-1278.62799477057j | X36: 399.80314177466-1122.12510775771j | Y36: 396.659675493666-981.496598280441j | Z36: 394.021967110494-854.823786425303j | AA36: 392.013175562454-740.378845301881j | AB36: 390.771867396118-636.598598237491j | AC36: 390.461278484839-542.059597037298j | AD36: 391.282206251961-455.453664463635j | AE36: 393.491717599146-375.562843840305j | AF36: 397.431428303116-301.232306326162j | AG36: 403.572086649789-231.339147439899j | AH36: 412.58711818732-164.754087116401j | AI36: 425.480262761037-100.291957434487j | AJ36: 443.820498134521-36.6464997330683j | AK36: 470.205692215294+27.6893201386473j | AL36: 509.258364417547+94.4783485715801j | AM36: 569.99630565052+165.522730515678j | AN36: 672.205082730924+240.718966159413j | AO36: 865.480168054931+304.508341039144j | AP36: 1268.53269014864+219.554413127541j | AQ36: 1490.25106285076-675.80493624601j | AR36: 477.884928080102-841.482408590109j | AS36: 247.626923776496-378.882620866078j | AT36: 301.086464203435-108.579221740634j | AU36: 450.137816819834+43.4874696151163j | AV36: 691.657961873077+25.7672702179738j | AW36: =IMDIV(IMSUM(IMPRODUCT(AW35,AW34),IMPRODUCT(AW14,AW14)),IMSUM(AW34,AW35)) -> 727.566865862318-315.897920643178j | AX36: 359.39792224829-327.662744545319j | AY36: 298.551133669263-32.224586551915j | AZ36: 612.357032958594+37.6817916223431j | BA36: 457.946202647364-238.937642045449j | BB36: 335.939171829191-17.5287579654926j | BC36: 643.790610898013-78.9374433166363j | BD36: 360.333531770401-64.6311155257107j | BE36: 606.748503512693-58.9184465101612j | BF36: 387.536197370957-2.62155773675925j | BG36: 429.372058073786-152.207882420422j | BH36: 523.446055825231-67.5841504727531j | BI36: 487.243580726995+23.7377908030267j | BJ36: 455.329316092084+24.6649178207911j | BK36: 472.570449053915+5.19943351381336j | BL36: 481.326624260008-50.6529382834762j | BM36: 405.77606849844-57.5274460410629j
P37: Real part of impedance (With air gap) | Q37: =IMREAL(Q36) -> 426.18 | R37: 422.83 | S37: 419.11 | T37: 415.16 | U37: 411.13 | V37: 407.15 | W37: 403.34 | X37: 399.80 | Y37: 396.66 | Z37: 394.02 | AA37: 392.01 | AB37: 390.77 | AC37: 390.46 | AD37: 391.28 | AE37: 393.49 | AF37: 397.43 | AG37: 403.57 | AH37: 412.59 | AI37: 425.48 | AJ37: 443.82 | AK37: 470.21 | AL37: 509.26 | AM37: 570.00 | AN37: 672.21 | AO37: 865.48 | AP37: 1268.53 | AQ37: 1490.25 | AR37: 477.88 | AS37: 247.63 | AT37: 301.09 | AU37: 450.14 | AV37: 691.66 | AW37: =IMREAL(AW36) -> 727.57 | AX37: 359.40 | AY37: 298.55 | AZ37: 612.36 | BA37: 457.95 | BB37: 335.94 | BC37: 643.79 | BD37: 360.33 | BE37: 606.75 | BF37: 387.54 | BG37: 429.37 | BH37: 523.45 | BI37: 487.24 | BJ37: 455.33 | BK37: 472.57 | BL37: 481.33 | BM37: 405.78
P38: Imaginary part of impedence (With air gap) | Q38: =IMAGINARY(Q36) -> -2690.20 | R38: -2383.55 | S38: -2110.09 | T38: -1866.04 | U38: -1648.06 | V38: -1453.14 | W38: -1278.63 | X38: -1122.13 | Y38: -981.50 | Z38: -854.82 | AA38: -740.38 | AB38: -636.60 | AC38: -542.06 | AD38: -455.45 | AE38: -375.56 | AF38: -301.23 | AG38: -231.34 | AH38: -164.75 | AI38: -100.29 | AJ38: -36.65 | AK38: 27.69 | AL38: 94.48 | AM38: 165.52 | AN38: 240.72 | AO38: 304.51 | AP38: 219.55 | AQ38: -675.80 | AR38: -841.48 | AS38: -378.88 | AT38: -108.58 | AU38: 43.49 | AV38: 25.77 | AW38: =IMAGINARY(AW36) -> -315.90 | AX38: -327.66 | AY38: -32.22 | AZ38: 37.68 | BA38: -238.94 | BB38: -17.53 | BC38: -78.94 | BD38: -64.63 | BE38: -58.92 | BF38: -2.62 | BG38: -152.21 | BH38: -67.58 | BI38: 23.74 | BJ38: 24.66 | BK38: 5.20 | BL38: -50.65 | BM38: -57.53
P39: Reflection/Absorption (abs + air gap)
P40: Intermediate term (za + air/rc)*cos(y) | Q40: =IMPRODUCT(IMDIV(Q36,airImpedance),COS(porousAbsAngle*PI()/180)) -> 1.03073280030353-6.50636327215335j | R40: 1.02263463295375-5.76472482512925j | S40: 1.01362366215499-5.10333853728176j | T40: 1.00407832123603-4.51309972116471j | U40: 0.994338233330068-3.98589426025476j | V40: 0.984712608271181-3.51448569272441j | W40: 0.975488641381947-3.0924141278914j | X40: 0.966940258664656-2.71390549142032j | Y40: 0.959337656830773-2.37378968661202j | Z40: 0.952958251168814-2.06742630758179j | AA40: 0.948099906608431-1.79063653429102j | AB40: 0.945097752012767-1.53963975999033j | AC40: 0.944346580021278-1.31099331697179j | AD40: 0.946332027419121-1.10153332505439j | AE40: 0.951675821027361-0.908314106176929j | AF40: 0.961204172581206-0.728542659530524j | AG40: 0.976055606073567-0.559503194676933j | AH40: 0.997858828749799-0.398464501567579j | AI40: 1.02904142649971-0.242560203087013j | AJ40: 1.07339803624842-0.0886310592101836j | AK40: 1.13721170783723+0.066967753825713j | AL40: 1.23166219362675+0.228499752154282j | AM40: 1.37855938994661+0.400323497082268j | AN40: 1.62575549978515+0.582188670080191j | AO40: 2.09319920262119+0.736465883541982j | AP40: 3.06799822055486+0.531001332501201j | AQ40: 3.60423317783823-1.63446189282044j | AR40: 1.15578425401709-2.03515963934691j | AS40: 0.598895848256573-0.916343122761844j | AT40: 0.728189934388726-0.262603290933293j | AU40: 1.08867672999888+0.105176224808189j | AV40: 1.67280308401871+0.0623191974406561j | AW40: =IMPRODUCT(IMDIV(AW36,airImpedance),COS(porousAbsAngle*PI()/180)) -> 1.75965023773941-0.764012047885566j | AX40: 0.86921858182438-0.792465755919437j | AY40: 0.722058133743961-0.0779364812331377j | AZ40: 1.48101054237797+0.0911349550094142j | BA40: 1.10756163064851-0.57788046481728j | BB40: 0.812482633983885-0.0423940184311424j | BC40: 1.55703393691304-0.190913436848216j | BD40: 0.871481391739538-0.156312997658832j | BE40: 1.46744608440729-0.142496673877478j | BF40: 0.937272151650562-0.00634034466271166j | BG40: 1.03845389271915-0.368120992109048j | BH40: 1.26597570586856-0.163455033518941j | BI40: 1.17841853840758+0.0574108184275927j | BJ40: 1.10123258342935+0.0596531130588775j | BK40: 1.14293096901928+0.0125750427183737j | BL40: 1.16410813706531-0.122506203999655j | BM40: 0.98138602636333-0.139132482322049j
O41: Eq 1.22 | P41: Overall reflection factor | Q41: =IMDIV(IMSUB(Q40,1),IMSUM(Q40,1)) -> 0.912575130031794-0.280104779392395j | R41: 0.89161487329413-0.308909192207228j | S41: 0.866198826760572-0.339106406306089j | T41: 0.835626187026685-0.370162883174702j | U41: 0.799208202088775-0.401303480736171j | V41: 0.756337866271128-0.431471578948026j | W41: 0.706586932538826-0.459306470367832j | X41: 0.649827973595235-0.483153355174522j | Y41: 0.586370665354014-0.501122940826344j | Z41: 0.517090399092337-0.511214211825989j | AA41: 0.443517082393249-0.511502844179232j | AB41: 0.36784833617324-0.500378880683283j | AC41: 0.292860364803697-0.476795312849048j | AD41: 0.221713754343064-0.440473785533598j | AE41: 0.157684477506058-0.39201544779619j | AF41: 0.103878883621782-0.332888574537548j | AG41: 0.0630010615062261-0.26530321205781j | AH41: 0.037226081928867-0.192021189818774j | AI41: 0.0282006927723369-0.116173003785142j | AJ41: 0.0371592627269634-0.0411583270087552j | AK41: 0.0651191651199099+0.0292937145052338j | AL41: 0.11310495717321+0.0908091278561478j | AM41: 0.182317065579116+0.137620146545597j | AN41: 0.274004954753067+0.16096932479498j | AO41: 0.388107092882963+0.14568678605993j | AP41: 0.516594179253342+0.0630996182983337j | AQ41: 0.614231213886741-0.13694449346672j | AR41: 0.509451484184891-0.463100395444546j | AS41: 0.0584075499560066-0.539636003797937j | AT41: -0.131162065732146-0.17188323755932j | AU41: 0.0448778126138443+0.048095592992923j | AV41: 0.252128476358618+0.0174374062274635j | AW41: =IMDIV(IMSUB(AW40,1),IMSUM(AW40,1)) -> 0.32686399606256-0.186358405076373j | AX41: 0.0930482219133024-0.384507319471683j | AY41: -0.159026984132153-0.0524549566750842j | AZ41: 0.194963110393139+0.0295714183644379j | BA41: 0.117392494412747-0.242005561385666j | BB41: -0.102855483442547-0.0257958199517653j | BC41: 0.222179679767461-0.0580736721723941j | BD41: -0.061268501924976-0.0886410421118835j | BE41: 0.192139636068323-0.046654480332998j | BF41: -0.0323684133966558-0.00337875685367941j | BG41: 0.0498506540393592-0.171585887292367j | BH41: 0.121946854203516-0.0633379281189438j | BI41: 0.0825400056501725+0.0241790676224696j | BJ41: 0.0489442352830481+0.0270000748633761j | BK41: 0.0667309582575372+0.00547656375184971j | BL41: 0.0787837873716839-0.0521483651113079j | BM41: -0.00444170244759633-0.0705316710372786j
O42: Eq 1.25 | P42: Absorption coefficient (a) | Q42: =1-IMABS(Q41)^2 -> 0.09 | R42: 0.11 | S42: 0.13 | T42: 0.16 | U42: 0.20 | V42: 0.24 | W42: 0.29 | X42: 0.34 | Y42: 0.41 | Z42: 0.47 | AA42: 0.54 | AB42: 0.61 | AC42: 0.69 | AD42: 0.76 | AE42: 0.82 | AF42: 0.88 | AG42: 0.93 | AH42: 0.96 | AI42: 0.99 | AJ42: 1.00 | AK42: 0.99 | AL42: 0.98 | AM42: 0.95 | AN42: 0.90 | AO42: 0.83 | AP42: 0.73 | AQ42: 0.60 | AR42: 0.53 | AS42: 0.71 | AT42: 0.95 | AU42: 1.00 | AV42: 0.94 | AW42: =1-IMABS(AW41)^2 -> 0.86 | AX42: 0.84 | AY42: 0.97 | AZ42: 0.96 | BA42: 0.93 | BB42: 0.99 | BC42: 0.95 | BD42: 0.99 | BE42: 0.96 | BF42: 1.00 | BG42: 0.97 | BH42: 0.98 | BI42: 0.99 | BJ42: 1.00 | BK42: 1.00 | BL42: 0.99 | BM42: 1.00

Sheet Perforated Panel
B2: Perforated Panel with Porous Absorber | P2: Cox & D'Antonio Appendix B.4
B3: Properties of panel | G3: Display options | P3: Perforated Absorber
B4: Panel thickness (tp) | C4: 4.0 | D4: mm | E4: =panel_thickness_mm/25.4 -> 0.157 | F4: in | G4: Start graph at | H4: 62.5 | I4: Hz | O4: Eq 6.8 | P4: End correction (d) | Q4: =0.8*(1-1.47*SQRT(porosity)+0.47*SQRT(porosity^3)) -> 0.0764
B5: Repeat distance (D) | C5: 30.0 | D5: mm | E5: =repeat_distance_mm/25.4 -> 1.181 | F5: in | K5: To see the graph in the standard | P5: Panel thickness (tp) | Q5: =panel_thickness_mm/1000 -> 0.0040 | R5: m | U5: End corrected panel thickness (t') | V5: =panel_thickness+2*hole_radius*delta -> 0.0059 | W5: m
B6: Hole radius (a) | C6: 12.7 | D6: mm | E6: =hole_radius_mm/25.4 -> 0.500 | F6: in | K6: analysis frequencies, select | P6: Repeat distance (D) | Q6: =repeat_distance_mm/1000 -> 0.0300 | R6: m
B7: Open Area (e) | C7: =(PI()*hole_radius^2)/(repeat_distance^2) -> 56.30% | G7: Show subdivisions of | K7: "Whole Octaves" and set the | P7: Hole radius (a) | Q7: =hole_radius_mm/1000 -> 0.0127 | R7: m
B8: Properties of cavity | K8: starting frequency to 62.5Hz | P8: Cavity depth (d) | Q8: =cavity_depth_mm/1000 -> 0.1300 | R8: m
B9: Cavity depth (d) | C9: 130.0 | D9: mm | E9: =cavity_depth_mm/25.4 -> 5.118 | F9: in | P9: Absorber thickness (ta) | Q9: =absorber_thickness_mm/1000 -> 0.0300 | R9: m
B10: Absorber thickness (ta) | C10: 30.0 | D10: mm | E10: =absorber_thickness_mm/25.4 -> 1.181 | F10: in | P10: Cavity air gap (d - ta) | Q10: =airGap_mm/1000 -> 0.1000 | R10: m
B11: Air space in cavity (d - ta) | C11: =cavity_depth_mm-absorber_thickness_mm -> 100.0 | D11: mm | E11: =airGap_mm/25.4 -> 3.937 | F11: in | G11: This is ignored for the "No Air Gap" plot. Cavity assumed to be filled with absorber. | P11: Octave subdivisions | Q11: 6
B12: Absorber flow resisitivity | C12: 16,500 | D12: rayls/m
P13: Interval number | Q13: 0 | R13: 1 | S13: 2 | T13: 3 | U13: 4 | V13: 5 | W13: 6 | X13: 7 | Y13: 8 | Z13: 9 | AA13: 10 | AB13: 11 | AC13: 12 | AD13: 13 | AE13: 14 | AF13: 15 | AG13: 16 | AH13: 17 | AI13: 18 | AJ13: 19 | AK13: 20 | AL13: 21 | AM13: 22 | AN13: 23 | AO13: 24 | AP13: 25 | AQ13: 26 | AR13: 27 | AS13: 28 | AT13: 29 | AU13: 30 | AV13: 31 | AW13: 32 | AX13: 33 | AY13: 34 | AZ13: 35 | BA13: 36 | BB13: 37 | BC13: 38 | BD13: 39 | BE13: 40 | BF13: 41 | BG13: 42 | BH13: 43 | BI13: 44 | BJ13: 45 | BK13: 46 | BL13: 47 | BM13: 48
B14: This plot is a simplification of reality because it is only calculated for normal incident sound. | P14: Angular values | Q14: =start_freq_perf -> 62.5 | R14: =POWER(2,LOG(start_freq_perf,2)+R13/subdiv_perf) -> 70 | S14: 79 | T14: 88 | U14: 99 | V14: 111 | W14: 125 | X14: 140 | Y14: 157 | Z14: 177 | AA14: 198 | AB14: 223 | AC14: 250 | AD14: 281 | AE14: 315 | AF14: 354 | AG14: 397 | AH14: 445 | AI14: 500 | AJ14: 561 | AK14: 630 | AL14: 707 | AM14: 794 | AN14: 891 | AO14: 1,000 | AP14: 1,122 | AQ14: 1,260 | AR14: 1,414 | AS14: 1,587 | AT14: 1,782 | AU14: 2,000 | AV14: 2,245 | AW14: 2,520 | AX14: 2,828 | AY14: 3,175 | AZ14: 3,564 | BA14: 4,000 | BB14: 4,490 | BC14: 5,040 | BD14: 5,657 | BE14: 6,350 | BF14: 7,127 | BG14: 8,000 | BH14: 8,980 | BI14: 10,079 | BJ14: 11,314 | BK14: 12,699 | BL14: 14,254 | BM14: 16,000
O15: 2pf | P15: Angular frequency (w) | Q15: =2*PI()*Q14 -> 392.7 | R15: 440.8 | S15: 494.8 | T15: 555.4 | U15: 623.4 | V15: 699.7 | W15: 785.4 | X15: 881.6 | Y15: 989.5 | Z15: 1110.7 | AA15: 1246.7 | AB15: 1399.4 | AC15: 1570.8 | AD15: 1763.2 | AE15: 1979.1 | AF15: 2221.4 | AG15: 2493.5 | AH15: 2798.8 | AI15: 3141.6 | AJ15: 3526.3 | AK15: 3958.2 | AL15: 4442.9 | AM15: 4987.0 | AN15: 5597.7 | AO15: 6283.2 | AP15: 7052.6 | AQ15: 7916.3 | AR15: 8885.8 | AS15: 9973.9 | AT15: 11195.4 | AU15: 12566.4 | AV15: 14105.3 | AW15: =2*PI()*AW14 -> 15832.6 | AX15: 17771.5 | AY15: 19947.9 | AZ15: 22390.7 | BA15: 25132.7 | BB15: 28210.5 | BC15: 31665.3 | BD15: 35543.1 | BE15: 39895.7 | BF15: 44781.5 | BG15: 50265.5 | BH15: 56421.1 | BI15: 63330.5 | BJ15: 71086.1 | BK15: 79791.5 | BL15: 89562.9 | BM15: 100531.0
O16: 2p/l | P16: Wave number (kair) | Q16: =TwoPiByC*Q14 -> 1.1436 | R16: 1.2837 | S16: 1.4409 | T16: 1.6173 | U16: 1.8154 | V16: 2.0377 | W16: 2.2872 | X16: 2.5673 | Y16: 2.8817 | Z16: 3.2347 | AA16: 3.6308 | AB16: 4.0754 | AC16: 4.5745 | AD16: 5.1347 | AE16: 5.7635 | AF16: 6.4693 | AG16: 7.2615 | AH16: 8.1508 | AI16: 9.1490 | AJ16: 10.2694 | AK16: 11.5270 | AL16: 12.9386 | AM16: 14.5231 | AN16: 16.3016 | AO16: 18.2980 | AP16: 20.5388 | AQ16: 23.0540 | AR16: 25.8772 | AS16: 29.0462 | AT16: 32.6032 | AU16: 36.5959 | AV16: 41.0775 | AW16: =TwoPiByC*AW14 -> 46.1079 | AX16: 51.7544 | AY16: 58.0924 | AZ16: 65.2065 | BA16: 73.1918 | BB16: 82.1550 | BC16: 92.2159 | BD16: 103.5088 | BE16: 116.1847 | BF16: 130.4130 | BG16: 146.3836 | BH16: 164.3100 | BI16: 184.4318 | BJ16: 207.0177 | BK16: 232.3695 | BL16: 260.8259 | BM16: 292.7672
P17: Boundary layer values
O18: Eq 5.19 | P18: Viscous boundary layer (mm) | Q18: =1000*SQRT((2*airViscosity)/(airDensity*Q15)) -> 0.28 | R18: 0.26 | S18: 0.25 | T18: 0.24 | U18: 0.22 | V18: 0.21 | W18: 0.20 | X18: 0.19 | Y18: 0.18 | Z18: 0.17 | AA18: 0.16 | AB18: 0.15 | AC18: 0.14 | AD18: 0.13 | AE18: 0.12 | AF18: 0.12 | AG18: 0.11 | AH18: 0.10 | AI18: 0.10 | AJ18: 0.09 | AK18: 0.09 | AL18: 0.08 | AM18: 0.08 | AN18: 0.07 | AO18: 0.07 | AP18: 0.07 | AQ18: 0.06 | AR18: 0.06 | AS18: 0.06 | AT18: 0.05 | AU18: 0.05 | AV18: 0.05 | AW18: =1000*SQRT((2*airViscosity)/(airDensity*AW15)) -> 0.04 | AX18: 0.04 | AY18: 0.04 | AZ18: 0.04 | BA18: 0.03 | BB18: 0.03 | BC18: 0.03 | BD18: 0.03 | BE18: 0.03 | BF18: 0.03 | BG18: 0.02 | BH18: 0.02 | BI18: 0.02 | BJ18: 0.02 | BK18: 0.02 | BL18: 0.02 | BM18: 0.02
O19: Eq 5.20 | P19: Thermal boundary layer (mm) | Q19: =1000*SQRT((2*airThermalConductivity)/(airDensity*airSpecificHeatCapacity*Q15)) -> 10.05 | R19: 9.48 | S19: 8.95 | T19: 8.45 | U19: 7.97 | V19: 7.53 | W19: 7.10 | X19: 6.70 | Y19: 6.33 | Z19: 5.97 | AA19: 5.64 | AB19: 5.32 | AC19: 5.02 | AD19: 4.74 | AE19: 4.48 | AF19: 4.22 | AG19: 3.99 | AH19: 3.76 | AI19: 3.55 | AJ19: 3.35 | AK19: 3.16 | AL19: 2.99 | AM19: 2.82 | AN19: 2.66 | AO19: 2.51 | AP19: 2.37 | AQ19: 2.24 | AR19: 2.11 | AS19: 1.99 | AT19: 1.88 | AU19: 1.78 | AV19: 1.68 | AW19: =1000*SQRT((2*airThermalConductivity)/(airDensity*airSpecificHeatCapacity*AW15)) -> 1.58 | AX19: 1.49 | AY19: 1.41 | AZ19: 1.33 | BA19: 1.26 | BB19: 1.19 | BC19: 1.12 | BD19: 1.06 | BE19: 1.00 | BF19: 0.94 | BG19: 0.89 | BH19: 0.84 | BI19: 0.79 | BJ19: 0.75 | BK19: 0.70 | BL19: 0.67 | BM19: 0.63
P20: Properties of porous absorber
O21: Eq 5.11 | P21: Delany & Bazley's term | Q21: =(airDensity*Q14)/sigma -> 0.005 | R21: 0.005 | S21: 0.006 | T21: 0.006 | U21: 0.007 | V21: 0.008 | W21: 0.009 | X21: 0.010 | Y21: 0.011 | Z21: 0.013 | AA21: 0.014 | AB21: 0.016 | AC21: 0.018 | AD21: 0.020 | AE21: 0.023 | AF21: 0.026 | AG21: 0.029 | AH21: 0.033 | AI21: 0.036 | AJ21: 0.041 | AK21: 0.046 | AL21: 0.052 | AM21: 0.058 | AN21: 0.065 | AO21: 0.073 | AP21: 0.082 | AQ21: 0.092 | AR21: 0.103 | AS21: 0.116 | AT21: 0.130 | AU21: 0.146 | AV21: 0.164 | AW21: =(airDensity*AW14)/sigma -> 0.184 | AX21: 0.206 | AY21: 0.232 | AZ21: 0.260 | BA21: 0.292 | BB21: 0.328 | BC21: 0.368 | BD21: 0.413 | BE21: 0.463 | BF21: 0.520 | BG21: 0.584 | BH21: 0.655 | BI21: 0.736 | BJ21: 0.826 | BK21: 0.927 | BL21: 1.040 | BM21: 1.168
O22: Eq 5.9 | P22: Characteristic impedance (zc) | Q22: =IMPRODUCT(airImpedance,COMPLEX(1+0.0571*(Q21^-0.754),-0.087*(Q21^-0.732),"j")) -> 1787.98109383187-1860.07330550798j | R22: 1673.3201246607-1709.24532464674j | S22: 1568.22412821793-1570.64754984422j | T22: 1471.89519825913-1443.28826895666j | U22: 1383.60198956339-1326.25618491845j | V22: 1302.67416543908-1218.71389511534j | W22: 1228.49730841642-1119.89189949642j | X22: 1160.50825548811-1029.08309455108j | Y22: 1098.19082248235-945.637713753479j | Z22: 1041.07188510691-868.958678271748j | AA22: 988.717786911013-798.497324674833j | AB22: 940.73104689361-733.74947906726j | AC22: 896.747341761659-674.251849560947j | AD22: 856.432739927211-619.578711271131j | AE22: 819.481166243412-569.338860116388j | AF22: 785.61207823117-523.172813626225j | AG22: 754.568336154121-480.750238727125j | AH22: 726.114250771071-441.767588101985j | AI22: 700.033793944169-405.945928210378j | AJ22: 676.128958517446-373.028943428378j | AK22: 654.218255013611-342.781102026914j | AL22: 634.135333735836-314.985970865678j | AM22: 615.727721813263-289.444666743628j | AN22: 598.855665601647-265.97443332502j | AO22: 583.391069650505-244.407333458401j | AP22: 569.216524181213-224.589047531685j | AQ22: 556.224413692467-206.377769265153j | AR22: 544.316099925549-189.643191041416j | AS22: 533.401172986293-174.265571512036j | AT22: 523.396764938175-160.13487880925j | AU22: 514.226920655183-147.150003232176j | AV22: 505.822021157885-135.21803377403j | AW22: =IMPRODUCT(airImpedance,COMPLEX(1+0.0571*(AW21^-0.754),-0.087*(AW21^-0.732),"j")) -> 498.118255054607-124.253593313662j | AX22: 491.057134074744-114.17822771449j | AY22: 484.58504901611-104.91984445965j | AZ22: 478.652862734964-96.4121968065901j | BA22: 473.215537088693-88.5944097700933j | BB22: 468.231790998726-81.4105445419609j | BC22: 463.663787037752-74.8091982306532j | BD22: 459.476844161694-68.743136056885j | BE22: 455.639174405466-63.168953373425j | BF22: 452.12164154346-58.0467650907279j | BG22: 448.897539882491-53.3399202861517j | BH22: 445.942391507755-49.0147399546903j | BI22: 443.233760442414-45.0402760247403j | BJ22: 440.751082309951-41.3880899145865j | BK22: 438.475508206022-38.0320490451027j | BL22: 436.389761594417-34.948139852652j | BM22: 434.47800714076-32.1142959642295j
O23: Eq 5.10 | P23: Wavenumber (ka) | Q23: =IMPRODUCT(Q16,COMPLEX(1+0.0978*(Q21^-0.7),-0.189*(Q21^-0.595),"j")) -> 6.01078257968505-5.3407282086255j | R23: 6.32247291646459-5.59654502218689j | S23: 6.65736697166219-5.86461526628144j | T23: 7.01777852702292-6.14552587089911j | U23: 7.40628610215882-6.43989187952947j | V23: 7.82576471851884-6.74835779577672j | W23: 8.27942153009301-7.07159899447689j | X23: 8.77083579356213-7.41032320040622j | Y23: 9.30400370846593-7.76527203781878j | Z23: 9.88338872290681-8.13722265420555j | AA23: 10.5139779732044-8.52698942183033j | AB23: 11.2013456077393-8.93542572076827j | AC23: 11.9517238370672-9.36342580735008j | AD23: 12.772082655474-9.81192677210361j | AE23: 13.6702192948523-10.2819105914794j | AF23: 14.6548586016642-10.7744062778518j | AG23: 15.7357656735371-11.2904921325044j | AH23: 16.9238722556799-11.8312981065311j | AI23: 18.2314185809778-12.3980082748223j | AJ23: 19.6721125437952-12.9918634285541j | AK23: 21.2613083289255-13.6141637918548j | AL23: 23.016206876881-14.266271868598j | AM23: 24.9560808582697-14.9496154255556j | AN23: 27.1025271572753-15.6656906184399j | AO23: 29.479750231586-16.4160652676826j | AP23: 32.1148801284436-17.20238229112j | AQ23: 35.0383293992969-18.0263633011014j | AR23: 38.2841936750277-18.8898123738965j | AS23: 41.8907012468224-19.7946199996541j | AT23: 45.9007176522728-20.7427672215615j | AU23: 50.3623120009455-21.7363299732656j | AV23: 55.3293925982901-22.7774836240542j | AW23: =IMPRODUCT(AW16,COMPLEX(1+0.0978*(AW21^-0.7),-0.189*(AW21^-0.595),"j")) -> 60.8624203523565-23.868507741747j | AX23: 67.0292094867553-25.0117910837261j | AY23: 73.905826249486-26.2098368270329j | AZ23: 81.5775976162465-27.4652680489826j | BA23: 90.1402434561478-28.7808334702961j | BB23: 99.7011472769831-30.1594134733229j | BC23: 110.380782518399-31.6040264085338j | BD23: 122.314313439204-33.1178352030882j | BE23: 135.653391977414-34.7041542859472j | BF23: 150.568174579598-36.3664568446949j | BG23: 167.249585934686-38.1083824299556j | BH23: 185.911859845798-39.9337449240564j | BI23: 206.795391176059-41.8465408913829j | BJ23: 230.169936960115-43.8509583287115j | BK23: 256.338209437718-45.9513858346736j | BL23: 285.639909001728-48.1524222184333j | BM23: 318.456250929939-50.4588865686111j
P24: Intermediate values
P25: kair * tair | Q25: =Q16*airGap -> 0.1143621966 | R25: 0.1283672254 | S25: 0.1440873388 | T25: 0.1617325694 | U25: 0.1815386711 | V25: 0.2037702686 | W25: 0.2287243931 | X25: 0.2567344508 | Y25: 0.2881746775 | Z25: 0.3234651388 | AA25: 0.3630773423 | AB25: 0.4075405373 | AC25: 0.4574487862 | AD25: 0.5134689016 | AE25: 0.576349355 | AF25: 0.6469302776 | AG25: 0.7261546845 | AH25: 0.8150810746 | AI25: 0.9148975725 | AJ25: 1.026937803 | AK25: 1.15269871 | AL25: 1.293860555 | AM25: 1.452309369 | AN25: 1.630162149 | AO25: 1.829795145 | AP25: 2.053875606 | AQ25: 2.30539742 | AR25: 2.58772111 | AS25: 2.904618738 | AT25: 3.260324298 | AU25: 3.65959029 | AV25: 4.107751213 | AW25: =AW16*airGap -> 4.61079484 | AX25: 5.175442221 | AY25: 5.809237476 | AZ25: 6.520648596 | BA25: 7.31918058 | BB25: 8.215502426 | BC25: 9.221589681 | BD25: 10.35088444 | BE25: 11.61847495 | BF25: 13.04129719 | BG25: 14.63836116 | BH25: 16.43100485 | BI25: 18.44317936 | BJ25: 20.70176888 | BK25: 23.2369499 | BL25: 26.08259439 | BM25: 29.27672232
P26: cot(kair * tair) | Q26: =COS(Q25)/SIN(Q25) -> 8.70599423 | R26: =COS(R25)/SIN(R25) -> 7.747314305 | S26: 6.892139338 | T26: 6.129041415 | U26: 5.447821956 | V26: 4.839375081 | W26: 4.295565421 | X26: 3.809118658 | Y26: 3.373523254 | Z26: 2.982941882 | AA26: 2.63213118 | AB26: 2.316368415 | AC26: 2.031383598 | AD26: 1.773295369 | AE26: 1.538548628 | AF26: 1.323851182 | AG26: 1.126105453 | AH26: 0.94232908 | AI26: 0.7695541419 | AJ26: 0.6046867609 | AK26: 0.4442927104 | AL26: 0.2842396343 | AM26: 0.1190445751 | AN26: -0.05943566179 | AO26: -0.2649497939 | AP26: -0.5245310152 | AQ26: -0.9032378527 | AR26: -1.616959283 | AS26: -4.140585104 | AT26: 8.382740026 | AU26: 1.75467509 | AV26: 0.6909669715 | AW26: 0.1019451194 | AX26: -0.4992572599 | AY26: -1.949536672 | AZ26: 4.131723645 | BA26: 0.5923845054 | BB26: -0.3781401036 | BC26: -4.853627121 | BD26: 0.7518590602 | BE26: -0.7182971408 | BF26: 1.944846952 | BG26: -0.5478541318 | BH26: 1.133191182 | BI26: -2.323797818 | BJ26: -0.2890887246 | BK26: 0.3369421859 | BL26: 0.7153338375 | BM26: 0.6387246253
P27: ka * ta | Q27: =IMPRODUCT(Q23,absorber_thickness) -> 0.180323477390551-0.160221846258765j | R27: 0.189674187493938-0.167896350665607j | S27: 0.199721009149866-0.175938457988443j | T27: 0.210533355810688-0.184365776126973j | U27: 0.222188583064765-0.193196756385884j | V27: 0.234772941555565-0.202450733873302j | W27: 0.24838264590279-0.212147969834307j | X27: 0.263125073806864-0.222309696012187j | Y27: 0.279120111253978-0.232958161134563j | Z27: 0.296501661687204-0.244116679626166j | AA27: 0.315419339196132-0.25580968265491j | AB27: 0.336040368232179-0.268062771623048j | AC27: 0.358551715112016-0.280902774220502j | AD27: 0.38316247966422-0.294357803163108j | AE27: 0.410106578845569-0.308457317744382j | AF27: 0.439645758049926-0.323232188335554j | AG27: 0.472072970206113-0.338714763975132j | AH27: 0.507716167670397-0.354938943195933j | AI27: 0.546942557429334-0.371940248244669j | AJ27: 0.590163376313856-0.389755902856623j | AK27: 0.637839249867765-0.408424913755644j | AL27: 0.69048620630643-0.42798815605794j | AM27: 0.748682425748091-0.448488462766668j | AN27: 0.813075814718259-0.469970718553197j | AO27: 0.88439250694758-0.492481958030478j | AP27: 0.963446403853308-0.5160714687336j | AQ27: 1.05114988197891-0.540790899033042j | AR27: 1.14852581025083-0.566694371216895j | AS27: 1.25672103740467-0.593838599989623j | AT27: 1.37702152956818-0.622283016646845j | AU27: 1.51086936002836-0.652089899197968j | AV27: 1.6598817779487-0.683324508721626j | AW27: =IMPRODUCT(AW23,absorber_thickness) -> 1.8258726105707-0.71605523225241j | AX27: 2.01087628460266-0.750353732511783j | AY27: 2.21717478748458-0.786295104810987j | AZ27: 2.44732792848739-0.823958041469478j | BA27: 2.70420730368443-0.863425004108883j | BB27: 2.99103441830949-0.904782404199687j | BC27: 3.31142347555197-0.948120792256014j | BD27: 3.66942940317612-0.993535056092646j | BE27: 4.06960175932242-1.04112462857842j | BF27: 4.51704523738794-1.09099370534085j | BG27: 5.01748757804058-1.14325147289867j | BH27: 5.57735579537394-1.19801234772169j | BI27: 6.20386173528177-1.25539622674149j | BJ27: 6.90509810880345-1.31552874986134j | BK27: 7.69014628313154-1.37854157504021j | BL27: 8.56919727005184-1.444572666553j | BM27: 9.55368752789817-1.51376659705833j
P28: cot(ka * ta) | Q28: =IMDIV(IMCOS(Q27),IMSIN(Q27)) -> 3.03907399109389+2.80720189557854j | R28: 2.89299797354295+2.6728767405205j | S28: 2.75287700140115+2.54249604516655j | T28: 2.61838306790678+2.41601479241177j | U28: 2.48919347487008+2.29339506127762j | V28: 2.36499070003231+2.17460638565336j | W28: 2.24546234844792+2.0596261076479j | X28: 2.13030118810419+1.94843971432763j | Y28: 2.01920526542579+1.84104114521935j | Z28: 1.91187809010966+1.73743305742253j | AA28: 1.80802887064404+1.63762703609362j | AB28: 1.70737277166343+1.54164374123808j | AC28: 1.60963115182829+1.4495129882138j | AD28: 1.51453172613927+1.361273770456j | AE28: 1.42180857957188+1.27697425039322j | AF28: 1.33120193986597+1.19667177054577j | AG28: 1.24245759658797+1.12043297430411j | AH28: 1.15532583170836+1.04833417888107j | AI28: 1.06955970455723+0.980462217226042j | AJ28: 0.984912512039644+0.91691607013004j | AK28: 0.901134224937357+0.857809758495879j | AL28: 0.817966686209321+0.803277182240787j | AM28: 0.735137355047668+0.753479916361226j | AN28: 0.652351409514784+0.708619475153236j | AO28: 0.56928212529094+0.668956353044938j | AP28: 0.485559734003626+0.634839458602128j | AQ28: 0.400759682153503+0.606751758656984j | AR28: 0.314392958558663+0.585381725343696j | AS28: 0.225905384595088+0.571736736516889j | AT28: 0.134703063887979+0.56732593736716j | AU28: 0.0402467069569703+0.574459027472215j | AV28: -0.0576780339835567+0.596734992139401j | AW28: =IMDIV(IMCOS(AW27),IMSIN(AW27)) -> -0.158242498507541+0.639814160397264j | AX28: -0.25772486424072+0.712465327096894j | AY28: -0.344932111066093+0.827110607350575j | AZ28: -0.391333559194368+0.995546749754697j | BA28: -0.339675318323662+1.20508493420894j | BB28: -0.136002051414263+1.36284772252403j | BC28: 0.135290911767865+1.32190936264031j | BD28: 0.270009219875248+1.11031594453491j | BE28: 0.220347203643135+0.906768006009976j | BF28: 0.0703535172381285+0.808338642051238j | BG28: -0.0989588734315179+0.84092153766009j | BH28: -0.183634382303068+1.01253296281255j | BI28: -0.030320009250783+1.17392526866831j | BJ28: 0.142215423652487+1.03741876731908j | BK28: 0.036343575552858+0.885915251775526j | BL28: -0.108135744152546+0.978646386561306j | BM28: 0.0271814291282161+1.09791847431602j
P29: Absorbent against panel
P30: Impedence values
O31: Eq 5.26 | P31: At top of air layer (z1) | Q31: =IMPRODUCT("-j",airImpedance,Q26) -> -3599.68862019472j | R31: -3203.30089869199j | S31: -2849.7096240233j | T31: -2534.18966872095j | U31: -2252.52420112165j | V31: -2000.94819127433j | W31: -1776.097887659j | X31: -1574.96556106197j | Y31: -1394.85886930187j | Z31: -1233.36423886607j | AA31: -1088.31368403365j | AB31: -957.754485507093j | AC31: -839.921119785756j | AD31: -733.208751475977j | AE31: -636.14744512285j | AF31: -547.375969693927j | AG31: -465.613561824942j | AH31: -389.627097841454j | AI31: -318.189423761048j | AJ31: -250.021306523878j | AK31: -183.702788154532j | AL31: -117.525253279643j | AM31: -49.221650172974j | AN31: 24.575007715285j | AO31: 109.549436034045j | AP31: 216.879115294849j | AQ31: 373.46395295932j | AR31: 668.568089409108j | AS31: 1712.01779913318j | AT31: -3466.03191772888j | AU31: -725.509779250034j | AV31: -285.695795152704j | AW31: =IMPRODUCT("-j",airImpedance,AW26) -> -42.1514965955192j | AX31: 206.429114180929j | AY31: 806.079671806826j | AZ31: -1708.35382976391j | BA31: -244.934662983719j | BB31: 156.350508812606j | BC31: 2006.84101684035j | BD31: -310.872995243817j | BE31: 296.996066768146j | BF31: -804.140602068745j | BG31: 226.522581084922j | BH31: -468.543315753048j | BI31: 960.826338825069j | BJ31: 119.530218463142j | BK31: -139.316305546028j | BL31: -295.770822557833j | BM31: -264.095025160426j
O32: Eq 5.27 | P32: At top of porous absorber (z2) | Q32: =IMDIV(IMSUM(IMPRODUCT("-j",Q31,Q22,Q28),IMPRODUCT(Q22,Q22)),IMSUB(Q31,IMPRODUCT("j",Q22,Q28))) -> 426.179599203616-2690.20185520718j | R32: 422.831230242817-2383.55480175778j | S32: 419.105442218685-2110.08980385473j | T32: 415.158706880581-1866.04232422363j | U32: 411.131449031844-1648.05739936008j | V32: 407.151518415032-1453.14295178252j | W32: 403.337662379051-1278.62799477057j | X32: 399.80314177466-1122.12510775771j | Y32: 396.659675493666-981.496598280443j | Z32: 394.021967110494-854.823786425303j | AA32: 392.013175562454-740.378845301881j | AB32: 390.771867396118-636.598598237488j | AC32: 390.461278484838-542.059597037293j | AD32: 391.282206251961-455.453664463635j | AE32: 393.491717599146-375.562843840305j | AF32: 397.431428303115-301.232306326162j | AG32: 403.572086649789-231.339147439898j | AH32: 412.58711818732-164.7540871164j | AI32: 425.480262761037-100.291957434488j | AJ32: 443.820498134521-36.6464997330676j | AK32: 470.205692215294+27.6893201386473j | AL32: 509.258364417547+94.4783485715801j | AM32: 569.99630565052+165.522730515678j | AN32: 672.205082730924+240.718966159413j | AO32: 865.480168054931+304.508341039144j | AP32: 1268.53269014864+219.554413127541j | AQ32: 1490.25106285076-675.804936246009j | AR32: 477.884928080104-841.482408590111j | AS32: 247.626923776496-378.882620866078j | AT32: 301.086464203435-108.579221740634j | AU32: 450.137816819833+43.4874696151152j | AV32: 691.657961873077+25.7672702179738j | AW32: =IMDIV(IMSUM(IMPRODUCT("-j",AW31,AW22,AW28),IMPRODUCT(AW22,AW22)),IMSUB(AW31,IMPRODUCT("j",AW22,AW28))) -> 727.566865862318-315.897920643178j | AX32: 359.39792224829-327.662744545319j | AY32: 298.551133669263-32.224586551915j | AZ32: 612.357032958594+37.6817916223431j | BA32: 457.946202647364-238.937642045449j | BB32: 335.939171829191-17.5287579654926j | BC32: 643.790610898013-78.9374433166363j | BD32: 360.333531770401-64.6311155257107j | BE32: 606.748503512693-58.9184465101612j | BF32: 387.536197370957-2.62155773675925j | BG32: 429.372058073786-152.207882420422j | BH32: 523.446055825231-67.5841504727531j | BI32: 487.243580726995+23.7377908030267j | BJ32: 455.329316092084+24.6649178207911j | BK32: 472.570449053915+5.19943351381336j | BL32: 481.326624260008-50.6529382834762j | BM32: 405.77606849844-57.5274460410629j
O33: Eq 6.15 | P33: Surface resistance (zm) | Q33: =(airDensity/porosity)*SQRT(8*airViscosity*Q15)*(1+end_corrected_panel_thickness/(2*hole_radius)) -> 0.636 | R33: 0.674 | S33: 0.714 | T33: 0.757 | U33: 0.802 | V33: 0.849 | W33: 0.900 | X33: 0.953 | Y33: 1.010 | Z33: 1.070 | AA33: 1.134 | AB33: 1.201 | AC33: 1.272 | AD33: 1.348 | AE33: 1.428 | AF33: 1.513 | AG33: 1.603 | AH33: 1.698 | AI33: 1.799 | AJ33: 1.906 | AK33: 2.020 | AL33: 2.140 | AM33: 2.267 | AN33: 2.402 | AO33: 2.545 | AP33: 2.696 | AQ33: 2.857 | AR33: 3.026 | AS33: 3.206 | AT33: 3.397 | AU33: 3.599 | AV33: 3.813 | AW33: =(airDensity/porosity)*SQRT(8*airViscosity*AW15)*(1+end_corrected_panel_thickness/(2*hole_radius)) -> 4.040 | AX33: 4.280 | AY33: 4.534 | AZ33: 4.804 | BA33: 5.090 | BB33: 5.392 | BC33: 5.713 | BD33: 6.053 | BE33: 6.413 | BF33: 6.794 | BG33: 7.198 | BH33: 7.626 | BI33: 8.079 | BJ33: 8.560 | BK33: 9.069 | BL33: 9.608 | BM33: 10.179
O34: Eq 6.26 | P34: Overall impedence (z3) | Q34: =IMSUM(IMPRODUCT(IMDIV("j",porosity),end_corrected_panel_thickness*Q15*airDensity),Q32,Q33) -> 426.815812658079-2685.21164382911j | R34: 423.505274917956-2377.95347887286j | S34: 419.819567675944-2103.80253149608j | T34: 415.915296447289-1858.98509961366j | U34: 411.933027755348-1640.13593256899j | V34: 408.000761489809-1444.25140594258j | W34: 404.237404074917-1268.64757201444j | X34: 400.756384895886-1110.92246198787j | Y34: 397.669601400557-968.922053563141j | Z34: 395.091946336882-840.709337205362j | AA34: 393.146779064544-724.535911719708j | AB34: 391.972878470219-618.815506557612j | AC34: 391.733705393764-522.098751525027j | AD34: 392.630295602238-433.04837292395j | AE34: 394.919968513663-350.413754405701j | AF34: 398.944607436531-273.003407886281j | AG34: 405.175244096798-199.653280275552j | AH34: 414.285604336873-129.187903756649j | AI34: 427.279746152769-60.3702664099552j | AJ34: 445.726984376974+8.1640833463034j | AK34: 472.225544029076+77.9874990078554j | AL34: 511.398322870324+150.936145451343j | AM34: 572.263512654699+228.894464844371j | AN34: 674.607104879125+311.851332878915j | AO34: 868.025021872784+384.35172308821j | AP34: 1271.22886884919+309.175579286283j | AQ34: 1493.10756467979-575.208578507593j | AR34: 480.911286346936-728.566814830586j | AS34: 250.833238670514-252.139152208693j | AT34: 304.483436502541+33.68551169837j | AU34: 453.736783603297+203.174233713246j | AV34: 695.470934357982+205.009602535458j | AW34: =IMSUM(IMPRODUCT(IMDIV("j",porosity),end_corrected_panel_thickness*AW15*airDensity),AW32,AW33) -> 731.606569489882-114.705205166346j | AX34: 363.677839153844-101.831557026269j | AY34: 303.085547677622+221.262350762856j | AZ34: 617.161077254996+322.21125850035j | BA34: 463.035910283069+80.435886150814j | BB34: 341.331529230299+340.955906669475j | BC34: 649.503614556082+323.447987637029j | BD34: 366.386248304065+387.031259512389j | BE34: 613.161133300729+448.055428119381j | BF34: 394.33014196917+566.437376019256j | BG34: 436.569991640714+486.539173972102j | BH34: 531.072000795041+649.385178797182j | BI34: 495.322987982124+828.508652710356j | BJ34: 463.889149903192+927.989667896992j | BK34: 481.639277070633+1019.14718277289j | BL34: 490.934712852812+1087.46492922855j | BM34: 415.95548376985+1219.96666674399j
P35: Reflection/Absorption coefficients
O36: Eq 1.22 | P36: Reflection factor | Q36: =IMDIV(IMSUB(Q34,airImpedance),IMSUM(Q34,airImpedance)) -> 0.912224240535807-0.280494809303774j | R36: 0.891091542971857-0.309421913716339j | S36: 0.865422264166944-0.339766829559947j | T36: 0.834482144986856-0.370990810556623j | U36: 0.797539020496363-0.402303525993402j | V36: 0.753932741273453-0.432616653289141j | W36: 0.703175369110806-0.460512800506504j | X36: 0.645081330963881-0.484246089938374j | Y36: 0.579918599904961-0.501793909504882j | Z36: 0.508559737422665-0.510977762245395j | AA36: 0.432598601909708-0.509661415058873j | AB36: 0.35439066831701-0.496015135601272j | AC36: 0.276979859865199-0.468809034444693j | AD36: 0.203897482108663-0.427676135581759j | AE36: 0.138855833360932-0.373280055297867j | AF36: 0.0853965149947117-0.307341987793702j | AG36: 0.0465730150123602-0.232523502199032j | AH36: 0.0247375608876158-0.152208863419357j | AI36: 0.0214678514439666-0.0702635662808679j | AJ36: 0.0376271284077208+0.0091444339587038j | AK36: 0.0735185364069732+0.0815785674778235j | AL36: 0.129076165819731+0.142132168858246j | AM36: 0.20400866375758+0.184834500197947j | AN36: 0.297686522473236+0.201288036715512j | AO36: 0.40796075143036+0.17756672428343j | AP36: 0.52513760740839+0.0871465197470131j | AQ36: 0.602452988334714-0.119938555786427j | AR36: 0.444211070275981-0.452746803494943j | AS36: -0.0880770166469184-0.412982799964979j | AT36: -0.149274625094899+0.0539224003134137j | AU36: 0.0960473340973046+0.211782677802562j | AV36: 0.278938257064085+0.133302191627454j | AW36: =IMDIV(IMSUB(AW34,airImpedance),IMSUM(AW34,airImpedance)) -> 0.285001879650285-0.0716230110550789j | AX36: -0.0461122109184862-0.137074178590618j | AY36: -0.0535933736001901+0.325333821857766j | AZ36: 0.269075101238542+0.228512103524019j | BA36: 0.0644254051236694+0.0858563094521664j | BB36: 0.0900881865120823+0.41102037440988j | BC36: 0.287973697921317+0.216659138254949j | BD36: 0.149177690283141+0.422249361127717j | BE36: 0.323384904517668+0.295296273265832j | BF36: 0.313734609423387+0.481214567652851j | BG36: 0.267232647209731+0.419414386866545j | BH36: 0.405505136434336+0.408722066706261j | BI36: 0.503070841969984+0.453028368642076j | BJ36: 0.55514309555908+0.470527338824726j | BK36: 0.5976880889995+0.458060201717589j | BL36: 0.626152068250179+0.449517140917604j | BM36: 0.684831676514481+0.463566322126326j
O37: Eq 1.25 | P37: Absorption coefficient (a) | Q37: =1-POWER(IMABS(Q36),2) -> 0.09 | R37: 0.11 | S37: 0.14 | T37: 0.17 | U37: 0.20 | V37: 0.24 | W37: 0.29 | X37: 0.35 | Y37: 0.41 | Z37: 0.48 | AA37: 0.55 | AB37: 0.63 | AC37: 0.70 | AD37: 0.78 | AE37: 0.84 | AF37: 0.90 | AG37: 0.94 | AH37: 0.98 | AI37: 0.99 | AJ37: 1.00 | AK37: 0.99 | AL37: 0.96 | AM37: 0.92 | AN37: 0.87 | AO37: 0.80 | AP37: 0.72 | AQ37: 0.62 | AR37: 0.60 | AS37: 0.82 | AT37: 0.97 | AU37: 0.95 | AV37: 0.90 | AW37: =1-POWER(IMABS(AW36),2) -> 0.91 | AX37: 0.98 | AY37: 0.89 | AZ37: 0.88 | BA37: 0.99 | BB37: 0.82 | BC37: 0.87 | BD37: 0.80 | BE37: 0.81 | BF37: 0.67 | BG37: 0.75 | BH37: 0.67 | BI37: 0.54 | BJ37: 0.47 | BK37: 0.43 | BL37: 0.41 | BM37: 0.32
P39: Absorbent against backing
P40: Impedence values
O41: Eq 6.22 | P41: At top of porous absorber (z1) | Q41: =IMPRODUCT("-j",Q22,Q28) -> -633.676488433925-10655.4081479691j | R41: -472.264819840332-9409.51380182372j | S41: -336.595873344372-8310.49331944297j | T41: -222.960993670692-7340.99127236867j | U41: -128.162271866524-6485.68242871932j | V41: -49.4434693584458-5731.03530503807j | W41: 15.5700349385997-5065.10304516491j | X41: 68.9234348180075-4477.33848623754j | Y41: 112.377838696055-3958.43063068995j | Z41: 147.449650139532-3500.16006052859j | AA41: 175.444762768-3095.27111079033j | AB41: 197.488248850215-2737.35886696533j | AC41: 214.550137798582-2420.76926988455j | AD41: 227.467809962067-2140.51080431047j | AE41: 236.965471977888-1892.17641707931j | AF41: 243.671132234668-1671.87445970698j | AG41: 248.131459024869-1476.16758127388j | AH41: 250.824880710212-1302.01861241655j | AI41: 252.173278700756-1146.74258267803j | AJ41: 252.552633809395-1007.96410384928j | AK41: 252.303020638625-883.579434518219j | AL41: 251.738413251219-771.722620666504j | AM41: 251.156885590581-670.73519213252j | AN41: 250.851990976708-579.139000898104j | AO41: 251.126436124497-495.611946454164j | AP41: 252.309711858974-418.966613414881j | AQ41: 254.782252001603-348.132393686749j | AR41: 259.010213804753-282.142807418214j | AS41: 265.597514943354-220.132226270482j | AT41: 275.365901472553-161.351818091863j | AU41: 289.479993680806-105.227587934283j | AV41: 309.640810166795-51.5145125952752j | AW41: =IMPRODUCT("-j",AW22,AW28) -> 338.365312190807-0.675731250266182j | AX41: 379.287749888789+45.2096048579027j | AY41: 436.995657646916+80.368627674044j | AZ41: 514.250629882645+91.3300792251358j | BA41: 600.358248719529+53.9758497272317j | BB41: 649.20063104042-47.2696911052513j | BC41: 602.800496565219-161.620476054794j | BD41: 491.603185678813-200.389584284132j | BE41: 399.239923402778-157.678403842669j | BF41: 361.383599678789-78.729790970965j | BG41: 382.766067910261-0.432292952746138j | BH41: 460.532162412386+32.2613157394703j | BI41: 521.688932895954-39.4350664163648j | BJ41: 451.35741976317-105.618383116883j | BK41: 387.069919601839-49.6289400658947j | BL41: 430.85040642644+12.9874608267274j | BM41: 476.148518264094-47.0686119876451j
O42: Eq 6.23 | P42: At top of air layer (z2) | Q42: =IMDIV(IMSUM(IMPRODUCT("-j",Q41,airImpedance,Q26),airImpedance^2),IMSUB(Q41,IMPRODUCT("j",airImpedance,Q26))) -> -40.8594227289691-2680.52081844741j | R42: -30.9260668430761-2377.35593281595j | S42: -22.3881792731614-2107.40514553804j | T42: -15.0662637899673-1866.88872705103j | U42: -8.80142803674912-1652.43576867808j | V42: -3.45255128999801-1461.03725984458j | W42: 1.1063114262808-1290.00400339269j | X42: 4.98834882701387-1136.9287180811j | Y42: 8.29630597931136-999.651698536749j | Z42: 11.1247781194433-876.229396539035j | AA42: 13.5626072217943-764.905242219407j | AB42: 15.6955620028862-664.081919827442j | AC42: 17.6095868729366-572.294115339112j | AD42: 19.3950945875312-488.180399500324j | AE42: 21.1531289235343-410.452282991378j | AF42: 23.0049017095966-337.85735528465j | AG42: 25.1075767087272-269.131345529155j | AH42: 27.6820856622738-202.929983388591j | AI42: 31.065366169129-137.723636793548j | AJ42: 35.8155425961654-71.6211474323741j | AK42: 42.9416450406934-2.05274588294431j | AL42: 54.4576360608911+74.8424369026019j | AM42: 74.8964887295719+165.47379565849j | AN42: 116.169339950939+281.393113076016j | AO42: 216.616366094022+442.558813234314j | AP42: 526.342077023327+638.452873662099j | AQ42: 1206.50517339338+253.507962805479j | AR42: 739.581804231806-434.836687790321j | AS42: 358.788806226329-303.331794133349j | AT42: 253.530073720439-126.290646071757j | AU42: 260.828601236794+23.0050411445781j | AV42: 373.158146764957+120.687244090393j | AW42: =IMDIV(IMSUM(IMPRODUCT("-j",AW41,airImpedance,AW26),airImpedance^2),IMSUB(AW41,IMPRODUCT("j",airImpedance,AW26))) -> 502.452699662771+21.4444320499471j | AX42: 390.988134340233-52.9722329851928j | AY42: 367.187764910286+61.2370993483668j | AZ42: 551.796233333432+26.7293435160379j | BA42: 349.347058355581-133.816176945574j | BB42: 292.728868340173+107.165244969097j | BC42: 671.613720743293-49.0223078423314j | BD42: 261.505429006376-38.9098670762266j | BE42: 578.682019999057+95.0607845545794j | BF42: 324.66910714852-10.964756538284j | BG42: 430.499329890263-27.7625442058011j | BH42: 446.868847189607-45.205164136474j | BI42: 509.13694062925+61.6040169089178j | BJ42: 410.032269465548+106.89211577625j | BK42: 397.178487144617+54.5633606458242j | BL42: 419.237706396291-20.6093135726434j | BM42: 354.242299524829-32.5972505717304j
O43: Eq 6.24 | P43: Overall impedence (z3) | Q43: =IMSUM((airDensity/porosity)*SQRT(8*airViscosity*Q15)*((panel_thickness/2*hole_radius)+1),IMPRODUCT(end_corrected_panel_thickness/porosity,"j",Q15,airDensity),Q42) -> -40.3438069621499-2675.53060706934j | R43: -30.3797909672614-2371.75460993103j | S43: -21.8094201433969-2101.11787317939j | T43: -14.4530898514583-1859.83150244106j | U43: -8.15179287847588-1644.51430188699j | V43: -2.76428681500926-1452.14571400464j | W43: 1.83550223668996-1280.02358063656j | X43: 5.76089957938832-1125.72607231126j | Y43: 9.1147949899716-987.077153819447j | Z43: 11.9919370193765-862.114947319094j | AA43: 14.4813300732187-749.062308637234j | AB43: 16.6689149579149-646.298828147567j | AC43: 18.6408184065751-552.333269826846j | AD43: 20.4876463391607-465.775107960638j | AE43: 22.3106471830633-385.303193556774j | AF43: 24.2312495866146-309.628456844769j | AG43: 26.4068470252737-237.445478364809j | AH43: 29.0586146122513-167.36380002884j | AI43: 32.5237477899473-97.8019457690153j | AJ43: 37.3606441009143-26.8105643530032j | AK43: 44.5786230620139+48.2454329862637j | AL43: 56.1919538607574+131.300233782364j | AM43: 76.7339344324207+228.845529987183j | AN43: 118.116045860996+352.525479795518j | AO43: 218.678829161299+522.402195283379j | AP43: 528.527180526586+728.074039820841j | AQ43: 1208.82020991244+354.104320543895j | AR43: 742.034499985842-321.921094030796j | AS43: 361.387346859422-176.588325475964j | AT43: 256.283131620394+15.974087367246j | AU43: 263.745364478431+182.691805242709j | AV43: 376.248349774455+299.929576407876j | AW43: =IMSUM((airDensity/porosity)*SQRT(8*airViscosity*AW15)*((panel_thickness/2*hole_radius)+1),IMPRODUCT(end_corrected_panel_thickness/porosity,"j",AW15,airDensity),AW42) -> 505.726655705412+222.637147526779j | AX43: 394.456769939966+172.858954533857j | AY43: 370.862656315984+314.724036663138j | AZ43: 555.689645153547+311.258810394045j | BA43: 353.471984490135+185.557351250688j | BB43: 297.099075346691+465.649909604064j | BC43: 676.243793781409+353.363123111333j | BD43: 266.410820514448+412.752507961872j | BE43: 583.879101265243+602.03465918412j | BF43: 330.17522294843+558.09417721773j | BG43: 436.332856373536+610.984512186722j | BH43: 453.049253208603+671.76416513346j | BI43: 515.684852714532+866.374878816246j | BJ43: 416.969540665013+1010.21686585245j | BK43: 404.528269956012+1068.5111099049j | BL43: 427.024530036521+1117.50855393939j | BM43: 362.492151793937+1244.89686221332j
P44: Reflection/Absorption coefficients
O45: Eq 1.22 | P45: Reflection factor | Q45: =IMDIV(IMSUB(Q43,airImpedance),IMSUM(Q43,airImpedance)) -> 0.957718559621839-0.303180404302121j | R45: 0.945114761374724-0.3397985324768j | S45: 0.929098753194383-0.380357276085192j | T45: 0.908803288502968-0.425068407514067j | U45: 0.883160871407338-0.474053375885418j | V45: 0.850868645170811-0.527285517709466j | W45: 0.81035453035115-0.584507668257418j | X45: 0.759751169566763-0.645116575752186j | Y45: 0.696889623141032-0.708003715990568j | Z45: 0.619333550169533-0.771341289896249j | AA45: 0.524488397748195-0.832304442455746j | AB45: 0.409840449693028-0.886730436805029j | AC45: 0.273407349893965-0.928741001388109j | AD45: 0.114508829391478-0.95040941499816j | AE45: -0.0650277316076271-0.941657912913063j | AF45: -0.25918039729169-0.89073521286331j | AG45: -0.455756558174406-0.785812898360663j | AH45: -0.634835750163176-0.618289552231808j | AI45: -0.769081540000834-0.387939682231245j | AJ45: -0.827795427182042-0.108697052993806j | AK45: -0.785546529689298+0.18806738727627j | AL45: -0.633081272118869+0.456547182619766j | AM45: -0.385075662911954+0.646601910751878j | AN45: -0.0804546939691847+0.716508773600284j | AO45: 0.222692548516149+0.642357522742399j | AP45: 0.45043637973002+0.424759202871622j | AQ45: 0.51344289789496+0.106202769733946j | AR45: 0.335890353082581-0.185019144326385j | AS45: -0.0145271234004605-0.231207826781252j | AT45: -0.233994561671081+0.0294315388570809j | AU45: -0.138255095241522+0.307064992687625j | AV45: 0.0848650558889005+0.347560861972043j | AW45: =IMDIV(IMSUB(AW43,airImpedance),IMSUM(AW43,airImpedance)) -> 0.150215939623904+0.205824289256668j | AX45: 0.0212661503095877+0.209403137439958j | AY45: 0.0918900395504398+0.364390215619434j | AZ45: 0.226523137300987+0.24841199780721j | BA45: -0.0186071675718579+0.246445561832467j | BB45: 0.185853532164902+0.533524387687226j | BC45: 0.313340699505654+0.222663542000384j | BD45: 0.111253954477234+0.539551690791626j | BE45: 0.392291789004929+0.366832950014192j | BF45: 0.288641798246389+0.533861522840477j | BG45: 0.358502365533811+0.461217556474955j | BH45: 0.403918467526999+0.462107549259273j | BI45: 0.523921291634581+0.4439104545569j | BJ45: 0.598444055658933+0.488485168367033j | BK45: 0.626449020362052+0.487949912738494j | BL45: 0.644525808833795+0.472631629355852j | BM45: 0.70180624530118+0.47839872669922j
O46: Eq 1.25 | P46: Absorption coefficient (a) | Q46: =1-POWER(IMABS(Q45),2) -> -0.01 | R46: -0.01 | S46: -0.01 | T46: -0.01 | U46: -0.00 | V46: -0.00 | W46: 0.00 | X46: 0.01 | Y46: 0.01 | Z46: 0.02 | AA46: 0.03 | AB46: 0.05 | AC46: 0.06 | AD46: 0.08 | AE46: 0.11 | AF46: 0.14 | AG46: 0.17 | AH46: 0.21 | AI46: 0.26 | AJ46: 0.30 | AK46: 0.35 | AL46: 0.39 | AM46: 0.43 | AN46: 0.48 | AO46: 0.54 | AP46: 0.62 | AQ46: 0.73 | AR46: 0.85 | AS46: 0.95 | AT46: 0.94 | AU46: 0.89 | AV46: 0.87 | AW46: =1-POWER(IMABS(AW45),2) -> 0.94 | AX46: 0.96 | AY46: 0.86 | AZ46: 0.89 | BA46: 0.94 | BB46: 0.68 | BC46: 0.85 | BD46: 0.70 | BE46: 0.71 | BF46: 0.63 | BG46: 0.66 | BH46: 0.62 | BI46: 0.53 | BJ46: 0.40 | BK46: 0.37 | BL46: 0.36 | BM46: 0.28
P48: No air gap
P49: Impedence values
P50: cot(ka * d) | Q50: =IMDIV(IMCOS(IMPRODUCT(Q23,cavity_depth)),IMSIN(IMPRODUCT(Q23,cavity_depth))) -> 0.471390449507333+0.886186615011617j | R50: 0.427649162645119+0.868635811616508j | S50: 0.384819474622242+0.853004109898209j | T50: 0.342829482705391+0.83940055092386j | U50: 0.301621456883961+0.827955530326306j | V50: 0.261157441595028+0.818824102706428j | W50: 0.221427046113224+0.812189377144343j | X50: 0.182458221501871+0.808265593290744j | Y50: 0.144332062752145+0.807300084092428j | Z50: 0.107202917009766+0.809572674798664j | AA50: 0.0713252161108002+0.815389976486366j | AB50: 0.037088227117015+0.825070286643331j | AC50: 0.00505877303717024+0.838912179390754j | AD50: -0.0239711729040298+0.85713630675748j | AE50: -0.0489421731572921+0.879786129997542j | AF50: -0.0685141042022177+0.906571959978243j | AG50: -0.0811281841716658+0.936650816202651j | AH50: -0.085217685086256+0.968365858441055j | AI50: -0.0796515230021354+0.999040634037486j | AJ50: -0.0644363373780152+1.02503334511736j | AK50: -0.0415072456923675+1.04233160592084j | AL50: -0.0151294682506902+1.04782992543675j | AM50: 0.0087119034998344+1.04094103553368j | AN50: 0.0241297216604458+1.02461764112449j | AO50: 0.0276547422770641+1.00490254236175j | AP50: 0.0198657927959113+0.988995241809638j | AQ50: 0.00560825458471943+0.982610928078564j | AR50: -0.0073390441422476+0.987341684687041j | AS50: -0.0115610665399089+0.998725748302585j | AT50: -0.0054142380016051+1.00735013375407j | AU50: 0.00355970719083418+1.00608095215896j | AV50: 0.00518743625066461+0.998669512823569j | AW50: =IMDIV(IMCOS(IMPRODUCT(AW23,cavity_depth)),IMSIN(IMPRODUCT(AW23,cavity_depth))) -> -0.000466245910251478+0.995999811623606j | AX50: -0.00296584533847718+1.00044021476676j | AY50: 0.000787210211711894+1.00205177703593j | AZ50: 0.00111381337012677+0.998875032509218j | BA50: -0.00111611184189195+0.999858575917537j | BB50: 0.000558543166194902+1.00055360730524j | BC50: -0.000222390493335386+0.999508041300363j | BD50: 0.000137136717034864+1.0003375858471j | BE50: -0.000157617575640357+0.999817468249532j | BF50: 0.000155386423794424+1.00001906833449j | BG50: -0.0000474954504600398+1.00008747371087j | BH50: -0.0000580039703964221+0.999978323842515j | BI50: -0.0000132559944218029+0.999964752492989j | BJ50: -3.42853504271342E-06+0.999977901614743j | BK50: -8.08879915400567E-06+0.999989883687751j | BL50: -6.61559945582199E-06+1.00000310597872j | BM50: 3.60653631385984E-06+1.00000175809976j
O51: Eq 6.25 | P51: At top of porous absorber (z1) | Q51: =IMPRODUCT("-j",Q22,Q50) -> 707.664121647636-2491.2092778136j | R51: 722.548452738621-2200.30564997462j | S51: 733.285861663666-1943.25200032942j | T51: 740.707869679727-1716.10603751989j | U51: 745.533596333022-1515.40519077236j | V51: 748.384801749866-1338.11536390168j | W51: 749.798108474614-1181.58683448169j | X51: 750.234222431472-1043.5167302974j | Y51: 750.083701497272-921.917552538507j | Z51: 749.668445612006-815.091144358287j | AA51: 749.237578774694-721.607224615058j | AB51: 748.955767188154-640.284939741637j | AC51: 748.881379763318-570.174529847079j | AD51: 748.931624102935-510.533711035029j | AE51: 748.832844932155-460.789243261584j | AF51: 748.058598213167-420.468295266008j | AG51: 745.76944184746-389.078344547762j | AH51: 740.790660978402-365.914874124961j | AI51: 731.696416788122-349.797719663616j | AJ51: 717.09134693037-338.799832025909j | AK51: 696.140263791598-330.136778707747j | AL51: 669.231549710855-320.457595967409j | AM51: 638.414638345879-306.658991624423j | AN51: 607.180190417869-286.972316998654j | AO51: 579.492147265517-261.739080442129j | AP51: 558.490794492145-233.425436896788j | AQ51: 545.394768287645-205.908499510639j | AR51: 538.817774853101-183.247867847568j | AS51: 534.736181504078-167.876826858376j | AT51: 528.11080951315-158.478096932544j | AU51: 516.8300990339-149.875312629198j | AV51: 504.447596515035-137.66204740301j | AW51: =IMPRODUCT("-j",AW22,AW50) -> 496.183620930384-123.524309934723j | AX51: 491.611939640909-112.772091144351j | AY51: 485.496715518666-105.516586886154j | AZ51: 478.007008631171-96.8368661776315j | BA51: 473.247494285423-88.0537189222683j | BB51: 468.445536235458-81.7171416812004j | BC51: 463.452320458513-74.6692807764297j | BD51: 459.622529833356-68.829353912665j | BE51: 455.565962326666-63.085606291754j | BF51: 452.121243070911-58.1181255108602j | BG51: 448.939340019646-53.3232655360495j | BH51: 445.935568239773-48.9878110741924j | BI51: 443.218734610983-45.0328129630394j | BJ51: 440.741484323248-41.3856641740997j | BK51: 438.471380084474-38.0281175606993j | BL51: 436.391348214625-34.9453614209614j | BM51: 434.478655175065-32.1159193850759j
O52: Eq 6.26 | P52: Overall impedence (z2) | Q52: =IMSUM(IMPRODUCT("j",Q15*airDensity*end_corrected_panel_thickness/porosity),Q51) -> 707.664121647636-2486.21906643553j | R52: 722.548452738621-2194.7043270897j | S52: 733.285861663666-1936.96472797077j | T52: 740.707869679727-1709.04881290992j | U52: 745.533596333022-1507.48372398127j | V52: 748.384801749866-1329.22381806174j | W52: 749.798108474614-1171.60641172556j | X52: 750.234222431472-1032.31408452756j | Y52: 750.083701497272-909.343007821205j | Z52: 749.668445612006-800.976695138346j | AA52: 749.237578774694-705.764291032885j | AB52: 748.955767188154-622.501848061762j | AC52: 748.881379763318-550.213684334813j | AD52: 748.931624102935-488.128419495344j | AE52: 748.832844932155-435.64015382698j | AF52: 748.058598213167-392.239396826127j | AG52: 745.76944184746-357.392477383416j | AH52: 740.790660978402-330.34869076521j | AI52: 731.696416788122-309.876028639083j | AJ52: 717.09134693037-293.989248946538j | AK52: 696.140263791598-279.838599838539j | AL52: 669.231549710855-263.999799087647j | AM52: 638.414638345879-243.28725729573j | AN52: 607.180190417869-215.839950279152j | AO52: 579.492147265517-181.895698393064j | AP52: 558.490794492145-143.804270738046j | AQ52: 545.394768287645-105.312141772223j | AR52: 538.817774853101-70.332274088043j | AS52: 534.736181504078-41.133358200991j | AT52: 528.11080951315-16.213363493541j | AU52: 516.8300990339+9.811451468933j | AV52: 504.447596515035+41.580284914473j | AW52: =IMSUM(IMPRODUCT("j",AW15*airDensity*end_corrected_panel_thickness/porosity),AW51) -> 496.183620930384+77.668405542109j | AX52: 491.611939640909+113.059096374699j | AY52: 485.496715518666+147.970350428617j | AZ52: 478.007008631171+187.692600700375j | BA52: 473.247494285423+231.319809273994j | BB52: 468.445536235458+276.767522953767j | BC52: 463.452320458513+327.716150177234j | BD52: 459.622529833356+382.833021125434j | BE52: 455.565962326666+443.888268337787j | BF52: 452.121243070911+510.940808245154j | BG52: 448.939340019646+585.423790856473j | BH52: 445.935568239773+667.981518195742j | BI52: 443.218734610983+759.738048944289j | BJ52: 440.741484323248+861.939085902099j | BK52: 438.471380084474+975.919631698381j | BL52: 436.391348214625+1103.17250609107j | BM52: 434.478655175065+1245.37819339997j
P53: Reflection/Absorption coefficients
O54: Eq 1.22 | P54: Reflection factor | Q54: =IMDIV(IMSUB(Q52,airImpedance),IMSUM(Q52,airImpedance)) -> 0.875357737313659-0.276405196636063j | R54: 0.846178970643273-0.297170309827587j | S54: 0.8128425014977-0.316123698176938j | T54: 0.775582421410337-0.332305615714091j | U54: 0.734931822601356-0.344766077912599j | V54: 0.691732595277906-0.352673602458149j | W54: 0.647098300902603-0.355430554167163j | X54: 0.602327785423222-0.352771573531328j | Y54: 0.55878068814178-0.344821950651865j | Z54: 0.517737532616717-0.332101643282676j | AA54: 0.480271234539103-0.315475053814409j | AB54: 0.44715156871313-0.296060582475459j | AC54: 0.418792081263598-0.275121522113561j | AD54: 0.395235755509657-0.253958692681757j | AE54: 0.376166686703526-0.233817092304177j | AF54: 0.36093264294662-0.215807746692438j | AG54: 0.348567586789135-0.2008356055466j | AH54: 0.3378129028692-0.18951714009572j | AI54: 0.327150735705735-0.18206909648686j | AJ54: 0.314882691969779-0.178156355544952j | AK54: 0.299310039025562-0.176710394611647j | AL54: 0.279084532856404-0.17578353958312j | AM54: 0.253765017123487-0.172594061801657j | AN54: 0.22447029797461-0.164003196000989j | AO54: 0.194234713335202-0.147603693426339j | AP54: 0.167426446076602-0.123181237018805j | AQ54: 0.147860440457833-0.0935902718742418j | AR54: 0.136336174885196-0.0637866905872851j | AS54: 0.129525289425592-0.0377612558136959j | AT54: 0.12201098063616-0.0151183182371783j | AU54: 0.111199993531481+0.00937374437274607j | AV54: 0.100954907614047+0.0407252809297425j | AW54: =IMDIV(IMSUB(AW52,airImpedance),IMSUM(AW52,airImpedance)) -> 0.0975050726639089+0.0770569729917136j | AX54: 0.100371648905783+0.112377554478878j | AY54: 0.104383828834066+0.147418450171918j | AZ54: 0.111763579309651+0.187009813083697j | BA54: 0.126833759105685+0.227784040918521j | BB54: 0.146401006952858+0.2678803324295j | BC54: 0.172555174989048+0.309224972063383j | BD54: 0.205593132135037+0.348330014498386j | BE54: 0.245328562232854+0.385471803424256j | BF54: 0.291508371506768+0.418206942941101j | BG54: 0.343595632216776+0.445581501937779j | BH54: 0.400156837034071+0.466232739139045j | BI54: 0.459671527549449+0.479178629057149j | BJ54: 0.52031914529919+0.484018895982665j | BK54: 0.58020553819386+0.480883422162967j | BL54: 0.637598255318064+0.470418494712049j | BM54: 0.691095797364956+0.453684844516096j
O55: Eq 1.25 | P55: Absorption coefficient (a) | Q55: =1-POWER(IMABS(Q54),2) -> 0.16 | R55: 0.20 | S55: 0.24 | T55: 0.29 | U55: 0.34 | V55: 0.40 | W55: 0.45 | X55: 0.51 | Y55: 0.57 | Z55: 0.62 | AA55: 0.67 | AB55: 0.71 | AC55: 0.75 | AD55: 0.78 | AE55: 0.80 | AF55: 0.82 | AG55: 0.84 | AH55: 0.85 | AI55: 0.86 | AJ55: 0.87 | AK55: 0.88 | AL55: 0.89 | AM55: 0.91 | AN55: 0.92 | AO55: 0.94 | AP55: 0.96 | AQ55: 0.97 | AR55: 0.98 | AS55: 0.98 | AT55: 0.98 | AU55: 0.99 | AV55: 0.99 | AW55: =1-POWER(IMABS(AW54),2) -> 0.98 | AX55: 0.98 | AY55: 0.97 | AZ55: 0.95 | BA55: 0.93 | BB55: 0.91 | BC55: 0.87 | BD55: 0.84 | BE55: 0.79 | BF55: 0.74 | BG55: 0.68 | BH55: 0.62 | BI55: 0.56 | BJ55: 0.49 | BK55: 0.43 | BL55: 0.37 | BM55: 0.32

Sheet Slotted Panel
B2: Slotted Panel with Porous Absorber | P2: Cox & D'Antonio Appendix B.5
B3: Properties of panel | G3: Display options | P3: Slotted Absorber
B4: Panel thickness (tp) | C4: 5.0 | D4: mm | E4: =slotted_panel_thickness_mm/25.4 -> 0.197 | F4: in | G4: Start graph at | H4: 62.5 | I4: Hz | P4: Panel thickness (tp) | Q4: =slotted_panel_thickness_mm/1000 -> 0.005 | R4: m
B5: Distance between slots (D) | C5: 40.5 | D5: mm | E5: =C5/25.4 -> 1.594 | F5: in | K5: To see the graph in the standard | P5: Slot width (w) | Q5: =slot_width_mm/1000 -> 0.01 | R5: m
B6: Slot width (w) | C6: 10.0 | D6: mm | E6: =slot_width_mm/25.4 -> 0.394 | F6: in | K6: analysis frequencies, select | P6: Distance between slots (D) | Q6: =slotted_repeat_distance_mm/1000 -> 0.0405 | R6: m
B7: Open Area (e) | C7: =slot_width/(slot_width+slotted_repeat_distance) -> 19.80% | G7: Show subdivisions of | K7: "Whole Octaves" and set the | P7: Cavity depth (d) | Q7: =slotted_cavity_depth_mm/1000 -> 0.05 | R7: m
B8: Properties of cavity | K8: starting frequency to 62.5Hz | P8: Absorber thickness (ta) | Q8: =slotted_absorber_thickness_mm/1000 -> 0.025 | R8: m
B9: Cavity depth (d) | C9: 50.0 | D9: mm | E9: =slotted_cavity_depth_mm/25.4 -> 1.969 | F9: in | P9: Cavity air gap (d - ta) | Q9: =slotted_airGap_mm/1000 -> 0.025 | R9: m
B10: Absorber thickness (ta) | C10: 25.0 | D10: mm | E10: =slotted_absorber_thickness_mm/25.4 -> 0.984 | F10: in | O10: Eq 6.10 | P10: Slot end correction (d) | Q10: =-LN(SIN(PI()*slotted_porosity/2))/PI() -> 0.37687 | U10: End corrected panel thickness (t') | V10: =slotted_panel_thickness+2*slot_width*slotted_delta -> 0.0125 | W10: m
B11: Air space in cavity (d - ta) | C11: =slotted_cavity_depth_mm-slotted_absorber_thickness_mm -> 25.0 | D11: mm | E11: =C11/25.4 -> 0.984 | F11: in | G11: This is ignored for the "No Air Gap" plot. Cavity assumed to be filled with absorber. | P11: Octave subdivisions | Q11: 6
B12: Absorber flow resisitivity | C12: 16,500 | D12: rayls/m
P13: Resistance terms
B14: This plot is a simplification of reality because it is only calculated for normal incident sound. | O14: Eq 6.20 | P14: Porous layer next to panel | Q14: =slotted_sigma*slotted_absorber_thickness*slotted_porosity -> 81.68 | R14: Pa s
O15: Eq 6.21 | P15: Porous layer against backing | Q15: =slotted_sigma*slotted_absorber_thickness -> 412.50 | R15: Pa s
O16: Eq 6.11 | P16: Mass term for air in slots | Q16: =end_corrected_slotted_panel_thickness*airDensity/slotted_porosity -> 0.0762 | R16: Kg m-2
P18: Interval number | Q18: 0 | R18: 1 | S18: 2 | T18: 3 | U18: 4 | V18: 5 | W18: 6 | X18: 7 | Y18: 8 | Z18: 9 | AA18: 10 | AB18: 11 | AC18: 12 | AD18: 13 | AE18: 14 | AF18: 15 | AG18: 16 | AH18: 17 | AI18: 18 | AJ18: 19 | AK18: 20 | AL18: 21 | AM18: 22 | AN18: 23 | AO18: 24 | AP18: 25 | AQ18: 26 | AR18: 27 | AS18: 28 | AT18: 29 | AU18: 30 | AV18: 31 | AW18: 32 | AX18: 33 | AY18: 34 | AZ18: 35 | BA18: 36 | BB18: 37 | BC18: 38 | BD18: 39 | BE18: 40 | BF18: 41 | BG18: 42 | BH18: 43 | BI18: 44 | BJ18: 45 | BK18: 46 | BL18: 47 | BM18: 48
P19: Angular values | Q19: =start_freq_slot -> 62.5 | R19: =ROUND(POWER(2,LOG(start_freq_slot,2)+R18/subdiv_slot),0) -> 70 | S19: 79 | T19: 88 | U19: 99 | V19: 111 | W19: 125 | X19: 140 | Y19: 157 | Z19: 177 | AA19: 198 | AB19: 223 | AC19: 250 | AD19: 281 | AE19: 315 | AF19: 354 | AG19: 397 | AH19: 445 | AI19: 500 | AJ19: 561 | AK19: 630 | AL19: 707 | AM19: 794 | AN19: 891 | AO19: 1,000 | AP19: 1,122 | AQ19: 1,260 | AR19: 1,414 | AS19: 1,587 | AT19: 1,782 | AU19: 2,000 | AV19: 2,245 | AW19: 2,520 | AX19: 2,828 | AY19: 3,175 | AZ19: 3,564 | BA19: 4,000 | BB19: 4,490 | BC19: 5,040 | BD19: 5,657 | BE19: 6,350 | BF19: 7,127 | BG19: 8,000 | BH19: 8,980 | BI19: 10,079 | BJ19: 11,314 | BK19: 12,699 | BL19: 14,254 | BM19: 16,000
O20: 2pf | P20: Angular frequency (w) | Q20: =2*PI()*Q19 -> 392.7 | R20: 439.8 | S20: 496.4 | T20: 552.9 | U20: 622.0 | V20: 697.4 | W20: 785.4 | X20: 879.6 | Y20: 986.5 | Z20: 1112.1 | AA20: 1244.1 | AB20: 1401.2 | AC20: 1570.8 | AD20: 1765.6 | AE20: 1979.2 | AF20: 2224.2 | AG20: 2494.4 | AH20: 2796.0 | AI20: 3141.6 | AJ20: 3524.9 | AK20: 3958.4 | AL20: 4442.2 | AM20: 4988.8 | AN20: 5598.3 | AO20: 6283.2 | AP20: 7049.7 | AQ20: 7916.8 | AR20: 8884.4 | AS20: 9971.4 | AT20: 11196.6 | AU20: 12566.4 | AV20: 14105.8 | AW20: =2*PI()*AW19 -> 15833.6 | AX20: 17768.8 | AY20: 19949.1 | AZ20: 22393.3 | BA20: 25132.7 | BB20: 28211.5 | BC20: 31667.3 | BD20: 35544.0 | BE20: 39898.2 | BF20: 44780.3 | BG20: 50265.5 | BH20: 56423.0 | BI20: 63328.2 | BJ20: 71088.0 | BK20: 79790.2 | BL20: 89560.5 | BM20: 100531.0
O21: 2p/l | P21: Wave number (k) | Q21: =Q20/sound_velocity -> 1.1436 | R21: 1.2809 | S21: 1.4455 | T21: 1.6102 | U21: 1.8115 | V21: 2.0311 | W21: 2.2872 | X21: 2.5617 | Y21: 2.8728 | Z21: 3.2387 | AA21: 3.6230 | AB21: 4.0804 | AC21: 4.5745 | AD21: 5.1417 | AE21: 5.7639 | AF21: 6.4775 | AG21: 7.2643 | AH21: 8.1426 | AI21: 9.1490 | AJ21: 10.2652 | AK21: 11.5277 | AL21: 12.9367 | AM21: 14.5286 | AN21: 16.3035 | AO21: 18.2980 | AP21: 20.5303 | AQ21: 23.0554 | AR21: 25.8733 | AS21: 29.0388 | AT21: 32.6069 | AU21: 36.5959 | AV21: 41.0789 | AW21: =AW20/sound_velocity -> 46.1108 | AX21: 51.7466 | AY21: 58.0960 | AZ21: 65.2139 | BA21: 73.1918 | BB21: 82.1578 | BC21: 92.2217 | BD21: 103.5115 | BE21: 116.1920 | BF21: 130.4095 | BG21: 146.3836 | BH21: 164.3156 | BI21: 184.4251 | BJ21: 207.0230 | BK21: 232.3657 | BL21: 260.8190 | BM21: 292.7672
P22: Properties of porous absorber
O23: Eq 5.11 | P23: Delany & Bazley's term | Q23: =(airDensity*Q19)/slotted_sigma -> 0.005 | R23: 0.005 | S23: 0.006 | T23: 0.006 | U23: 0.007 | V23: 0.008 | W23: 0.009 | X23: 0.010 | Y23: 0.011 | Z23: 0.013 | AA23: 0.014 | AB23: 0.016 | AC23: 0.018 | AD23: 0.021 | AE23: 0.023 | AF23: 0.026 | AG23: 0.029 | AH23: 0.032 | AI23: 0.036 | AJ23: 0.041 | AK23: 0.046 | AL23: 0.052 | AM23: 0.058 | AN23: 0.065 | AO23: 0.073 | AP23: 0.082 | AQ23: 0.092 | AR23: 0.103 | AS23: 0.116 | AT23: 0.130 | AU23: 0.146 | AV23: 0.164 | AW23: =(airDensity*AW19)/slotted_sigma -> 0.184 | AX23: 0.206 | AY23: 0.232 | AZ23: 0.260 | BA23: 0.292 | BB23: 0.328 | BC23: 0.368 | BD23: 0.413 | BE23: 0.463 | BF23: 0.520 | BG23: 0.584 | BH23: 0.655 | BI23: 0.736 | BJ23: 0.826 | BK23: 0.927 | BL23: 1.040 | BM23: 1.168
O24: Eq 5.9 | P24: Characteristic impedance (za) | Q24: =IMPRODUCT(airImpedance,COMPLEX(1+0.0571*(Q23^-0.754),-0.087*(Q23^-0.732),"j")) -> 1787.98109383187-1860.07330550798j | R24: 1675.40774059031-1711.99490363636j | S24: 1565.41330293132-1566.93579610344j | T24: 1475.41512120007-1447.94783802212j | U24: 1385.17215192957-1328.34006026248j | V24: 1304.86187918287-1221.62472025992j | W24: 1228.49730841642-1119.89189949642j | X24: 1161.74612248817-1030.73852997311j | Y24: 1099.80194840973-947.797780237007j | Z24: 1040.47478667801-868.156061440356j | AA24: 989.648826069252-799.751960774618j | AB24: 940.240145075734-733.086248705973j | AC24: 896.747341761659-674.251849560947j | AD24: 855.975666823481-618.958037179421j | AE24: 819.461984316342-569.312746457753j | AF24: 785.258024388967-522.689583161486j | AG24: 754.471328356912-480.617501975188j | AH24: 726.352262298463-442.094085471727j | AI24: 700.033793944169-405.945928210378j | AJ24: 676.210510040036-373.141384293384j | AK24: 654.206880950893-342.765379810652j | AL24: 634.16046231476-315.020794078084j | AM24: 615.670200336631-289.364750101195j | AN24: 598.83977640899-265.952301789261j | AO24: 583.391069650505-244.407333458401j | AP24: 569.264880747758-224.65674465605j | AQ24: 556.217669359518-206.368303410995j | AR24: 544.331000098595-189.664157007313j | AS24: 533.424023966921-174.297806810521j | AT24: 523.387343326197-160.121554104494j | AU24: 514.226920655183-147.150003232176j | AV24: 505.819666906199-135.214687261599j | AW24: =IMPRODUCT(airImpedance,COMPLEX(1+0.0571*(AW23^-0.754),-0.087*(AW23^-0.732),"j")) -> 498.114255953493-124.247894219243j | AX24: 491.065969240375-114.190850666125j | AY24: 484.581706952174-104.915057433802j | AZ24: 478.64727612184-96.4041744190449j | BA24: 473.215537088693-88.5944097700933j | BB24: 468.230395028122-81.4085297116035j | BC24: 463.661415741753-74.8057669843383j | BD24: 459.47595045278-68.7418395768945j | BE24: 455.637192704429-63.1660712550408j | BF24: 452.122417387422-58.0478963220357j | BG24: 448.897539882491-53.3399202861517j | BH24: 445.941563756864-49.0135268884152j | BI24: 443.234580648276-45.0414810917081j | BJ24: 440.750552378769-41.3873093445759j | BK24: 438.475817609284-38.0325059447824j | BL24: 436.390221636718-34.9488209316043j | BM24: 434.47800714076-32.1142959642295j
O25: Eq 5.10 | P25: Complex wave number (ka) | Q25: =IMPRODUCT(Q21,COMPLEX(1+0.0978*(Q23^-0.7),-0.189*(Q23^-0.595),"j")) -> 6.01078257968505-5.34072820862549j | R25: 6.31633902975749-5.59157013123828j | S25: 6.66709248260904-5.87229739959502j | T25: 7.0035432736245-6.13457601591376j | U25: 7.39880028800231-6.43430026466033j | V25: 7.81347841006123-6.73945653161776j | W25: 8.279421530093-7.07159899447689j | X25: 8.76111926303513-7.40373600247072j | Y25: 9.28903268053413-7.75547548439094j | Z25: 9.88999323816153-8.14138406847731j | AA25: 10.5017713774848-8.51958562659091j | AB25: 11.2090248787988-8.93989750443944j | AC25: 11.9517238370672-9.36342580735007j | AD25: 12.7822558260226-9.81736933446734j | AE25: 13.67072908502-10.2821715251544j | AF25: 14.6661312719665-10.7799163603406j | AG25: 15.739464658836-11.2922172617241j | AH25: 16.9129939484679-11.8264629228022j | AI25: 18.2314185809778-12.3980082748223j | AJ25: 19.666723950154-12.9896972443607j | AK25: 21.2622136312795-13.6145092912403j | AL25: 23.0137964259691-14.2653993096599j | AM25: 24.9627414157861-14.9518996500243j | AN25: 27.1047487635994-15.6664118807088j | AO25: 29.479750231586-16.4160652676826j | AP25: 32.1049958322791-17.1995140706516j | AQ25: 35.0399993113066-18.0268207730063j | AR25: 38.279723812632-18.8886570282827j | AS25: 41.882389193265-19.7925944223315j | AT25: 45.9048776525266-20.7437222369332j | AU25: 50.3623120009455-21.7363299732656j | AV25: 55.3309260345449-22.777795524402j | AW25: =IMPRODUCT(AW21,COMPLEX(1+0.0978*(AW23^-0.7),-0.189*(AW23^-0.595),"j")) -> 60.8655869633464-23.869113475223j | AX25: 67.0207019421944-25.0102613034112j | AY25: 73.9097430472394-26.2104984823139j | AZ25: 81.5855689413976-27.4665325742457j | BA25: 90.1402434561477-28.780833470296j | BB25: 99.7041030038291-30.1598264571145j | BC25: 110.386902490126-31.6048284535121j | BD25: 122.317125732133-33.1181807831849j | BE25: 135.660998218333-34.7050303763672j | BF25: 150.564541655206-36.3660647312322j | BG25: 167.249585934686-38.1083824299556j | BH25: 185.917634463127-39.9342917513151j | BI25: 206.788405007319-41.8459214437167j | BJ25: 230.175449787262-43.8514159074851j | BK25: 256.334277845578-45.9510804061218j | BL25: 285.632766921278-48.1519030253458j | BM25: 318.456250929939-50.4588865686111j
P26: Intermediate values
P27: For air in slots - cot(kair * tp) | Q27: =COS(Q21*end_corrected_slotted_panel_thickness)/SIN(Q21*end_corrected_slotted_panel_thickness) -> 69.73933907 | R27: 62.26618139 | S27: 55.17126769 | T27: 49.52744554 | U27: 44.02280706 | V27: 39.26184846 | W27: 34.86249998 | X27: 31.12506065 | Y27: 27.75237156 | Z27: 24.61362381 | AA27: 22.00004578 | AB27: 19.53006263 | AC27: 17.41690793 | AD27: 15.49098785 | AE27: 13.81402231 | AF27: 12.28649795 | AG27: 10.94949213 | AH27: 9.761469442 | AI27: 8.67974623 | AJ27: 7.727119558 | AK27: 6.870816049 | AL27: 6.111339103 | AM27: 5.429081846 | AN27: 4.823938886 | AO27: 4.282267744 | AP27: 3.798852614 | AQ27: 3.362636465 | AR27: 2.973854422 | AS27: 2.624252519 | AT27: 2.308319705 | AU27: 2.024373307 | AV27: 1.766861653 | AW27: =COS(AW21*end_corrected_slotted_panel_thickness)/SIN(AW21*end_corrected_slotted_panel_thickness) -> 1.532625382 | AX27: 1.318795242 | AY27: 1.121077945 | AZ27: 0.9375520757 | BA27: 0.7651966355 | BB27: 0.6004431915 | BC27: 0.4400751083 | BD27: 0.2800162946 | BE27: 0.1145396537 | BF27: -0.06429730997 | BG27: -0.2708284968 | BH27: -0.5324966481 | BI27: -0.9157102724 | BJ27: -1.645602225 | BK27: -4.303547975 | BL27: 7.744226441 | BM27: 1.710772567
P28: For air gap - cot(kair * tair) | Q28: =COS(Q21*slotted_airGap)/SIN(Q21*slotted_airGap) -> 34.96706227 | R28: 31.21842633 | S28: 27.659308 | T28: 24.82791029 | U28: 22.06608455 | V28: 19.67709906 | W28: 17.46923196 | X28: 15.59319698 | Y28: 13.89985488 | Z28: 12.32349059 | AA28: 11.01038307 | AB28: 9.768829467 | AC28: 8.70599423 | AD28: 7.736596342 | AE28: 6.891701449 | AF28: 6.121172372 | AG28: 5.445721336 | AH28: 4.844399732 | AI28: 4.295565421 | AJ28: 3.810758377 | AK28: 3.3732997 | AL28: 2.983425436 | AM28: 2.631045467 | AN28: 2.316073522 | AO28: 2.031383598 | AP28: 1.774171709 | AQ28: 1.538427028 | AR28: 1.324120127 | AS28: 1.126521648 | AT28: 0.9421541499 | AU28: 0.7695541419 | AV28: 0.6046393441 | AW28: =COS(AW21*slotted_airGap)/SIN(AW21*slotted_airGap) -> 0.4442062238 | AX28: 0.2844508195 | AY28: 0.1189527659 | AZ28: -0.05962164357 | BA28: -0.2649497939 | BB28: -0.5246195685 | BC28: -0.9035002075 | BD28: -1.617200303 | BE28: -4.143872705 | BF28: 8.388930701 | BG28: 1.75467509 | BH28: 0.6907617937 | BI28: 0.1021153975 | BJ28: -0.4994238555 | BK28: -1.949079061 | BL28: 4.134862998 | BM28: 0.5923845054
P29: For absorbent layer - cot(ka * ta) | Q29: =IMDIV(IMCOS(IMPRODUCT(Q25,slotted_absorber_thickness)),IMSIN(IMPRODUCT(Q25,slotted_absorber_thickness))) -> 3.66881633109156+3.34890125930273j | R29: 3.49789300000511+3.18978570485578j | S29: 3.32314417543086+3.02493816948229j | T29: 3.17360259653909+2.8821750918285j | U29: 3.01678872153436+2.73087852762018j | V29: 2.87054077406814+2.58843085152275j | W29: 2.72465545345849+2.44521432727373j | X29: 2.59077166420985+2.31299308528383j | Y29: 2.46030609637073+2.18365944579318j | Z29: 2.32874732725525+2.05304952507051j | AA29: 2.20998028033431+1.9352808273088j | AB29: 2.08817381794047+1.81500235193828j | AC29: 1.97481233437422+1.70390003407229j | AD29: 1.86232790729036+1.59487075743785j | AE29: 1.75551251581138+1.49287723004573j | AF29: 1.64923023575381+1.39333244437252j | AG29: 1.5474117840424+1.30023326267318j | AH29: 1.44831355365456+1.21219719981512j | AI29: 1.3492287972298+1.12717372292226j | AJ29: 1.253190129825+1.04807988587775j | AK29: 1.15802333865384+0.973372835823309j | AL29: 1.06479038684495+0.904160272387209j | AM29: 0.972095594594624+0.839677002497723j | AN29: 0.880913375247307+0.780873014526009j | AO29: 0.790220953302627+0.727345394970333j | AP29: 0.70006823359683+0.679445229051496j | AQ29: 0.60917876424747+0.636931655439741j | AR29: 0.518372633546366+0.600690996096958j | AS29: 0.426526419511992+0.570857595571136j | AT29: 0.332743298549939+0.548039982739895j | AU29: 0.237061876693731+0.53342069779453j | AV29: 0.138116242686884+0.528447291366404j | AW29: =IMDIV(IMCOS(IMPRODUCT(AW25,slotted_absorber_thickness)),IMSIN(IMPRODUCT(AW25,slotted_absorber_thickness))) -> 0.0351056736878909+0.535640571033575j | AX29: -0.0725099627429699+0.559005400595155j | AY29: -0.185252812008051+0.605491229431279j | AZ29: -0.299418911873208+0.686197791348857j | BA29: -0.402734943410387+0.818543801766512j | BB29: -0.458566745243582+1.02289955775976j | BC29: -0.382399349818481+1.2854090177286j | BD29: -0.0963634046440001+1.46004380247214j | BE29: 0.234298766750293+1.34281131323495j | BF29: 0.333380754375927+1.05550056117349j | BG29: 0.22269179626522+0.837948031554773j | BH29: 0.0271065984832101+0.762234516255998j | BI29: -0.167744274418449+0.844718216302587j | BJ29: -0.21542739125363+1.09380334844241j | BK29: 0.0610740236868856+1.21406604322359j | BL29: 0.172323193606529+0.959251706389707j | BM29: -0.0294079659463745+0.854169768862003j
P30: No air gap - cot(ka * d) | Q30: =IMDIV(IMCOS(IMPRODUCT(Q25,slotted_cavity_depth)),IMSIN(IMPRODUCT(Q25,slotted_cavity_depth))) -> 1.760066446025+1.74230986697867j | R30: 1.67090333112785+1.66606169162275j | S30: 1.57928972212874+1.58736775154553j | T30: 1.500462087851+1.51949834693509j | U30: 1.41730065818931+1.44789974060637j | V30: 1.3392012811387+1.3808430883343j | W30: 1.26068287278369+1.31382730409382j | X30: 1.18799219160334+1.25237560111516j | Y30: 1.11647602296562+1.19272444906784j | Z30: 1.04356390789848+1.13303198584828j | AA30: 0.976939548027061+1.07977438068545j | AB30: 0.907688821400008+1.02605588995555j | AC30: 0.842266805418555+0.977178606688961j | AD30: 0.776276585883386+0.930078686362435j | AE30: 0.712469530822161+0.88699744845148j | AF30: 0.647709789433058+0.846122573615893j | AG30: 0.584308366826597+0.809260412368602j | AH30: 0.521143086452055+0.776015277394977j | AI30: 0.456358907399041+0.745922025880322j | AJ30: 0.391823550435954+0.72038628835279j | AK30: 0.325999404142822+0.699355073058631j | AL30: 0.259551725459973+0.68376350538988j | AM30: 0.19147825089965+0.674281865792092j | AN30: 0.122614363698966+0.672183272156145j | AO30: 0.0525728403638174+0.678955620971907j | AP30: -0.0177487019693623+0.696671079756049j | AQ30: -0.0875282154469209+0.728447470557102j | AR30: -0.152521238602997+0.777432839345096j | AS30: -0.206708971890385+0.847514283828196j | AT30: -0.238360630853697+0.940628373214493j | AU30: -0.229336464322289+1.04945819203309j | AV30: -0.162422155881062+1.14989156659061j | AW30: =IMDIV(IMCOS(IMPRODUCT(AW25,slotted_cavity_depth)),IMSIN(IMPRODUCT(AW25,slotted_cavity_depth))) -> -0.0433642177213125+1.19728958393032j | AX30: 0.0778459860176141+1.15914812515779j | AY30: 0.1383977226938+1.05783851828495j | AZ30: 0.117381277698458+0.955208098675396j | BA30: 0.0405998433861358+0.90106147424607j | BB30: -0.0468210920613676+0.918458328952463j | BC30: -0.0848893724481631+1.00005925208181j | BD30: -0.0256775493469539+1.0709920984026j | BE30: 0.0540993408786622+1.03275758150598j | BF30: 0.0306414953961159+0.958488015724249j | BG30: -0.0367699840419155+0.976306679089002j | BH30: -0.0097447156465746+1.03625482985305j | BI30: 0.0292107892383535+0.991816445841316j | BJ30: -0.0210445458522367+0.986952522344235j | BK30: 0.00987159056454921+1.01783265014524j | BL30: -0.00454827275067146+0.984570053304573j | BM30: 0.00542547671267313+1.01175558074983j
P31: Mass term for slotted panel | Q31: =IMPRODUCT("j",IMSUB(IMPRODUCT(Q20,slotted_acousticMass),IMPRODUCT(airImpedance,Q27))) -> -28805.3557126707j | R31: -25711.8183993328j | S31: -22773.9560166937j | T31: -20436.0799909914j | U31: -18154.7945440827j | V31: -16180.5212119622j | W31: -14354.8056609469j | X31: -12802.2922829435j | Y31: -11399.6350370015j | Z31: -10092.2690412281j | AA31: -9001.56722885694j | AB31: -7968.3218764352j | AC31: -7081.6572204197j | AD31: -6270.49284967019j | AE31: -5560.82727211726j | AF31: -4910.55642180748j | AG31: -4337.14366764265j | AH31: -3822.93625180842j | AI31: -3349.32762383839j | AJ31: -2926.22275887471j | AK31: -2539.11273528393j | AL31: -2188.20569610442j | AM31: -1864.43670580344j | AN31: -1567.76218822027j | AO31: -1291.58332150252j | AP31: -1033.26449747903j | AQ31: -786.796889241943j | AR31: -552.277715168276j | AS31: -324.857138082265j | AT31: -100.819441862254j | AU31: 121.010129212589j | AV31: 344.843103886876j | AW31: =IMPRODUCT("j",IMSUB(IMPRODUCT(AW20,slotted_acousticMass),IMPRODUCT(airImpedance,AW27))) -> 573.422839055965j | AX31: 809.372741259773j | AY31: 1057.34206424437j | AZ31: 1319.56230971857j | BA31: 1599.67765875673j | BB31: 1902.51667442318j | BC31: 2232.28344493191j | BD31: 2594.0164360203j | BE31: 2994.39479140725j | BF31: 3440.53464483444j | BG31: 3944.1108650462j | BH31: 4521.73944889021j | BI31: 5206.62668012355j | BJ31: 6100.00206587815j | BK31: 7862.42699915912j | BL31: 3625.874807167j | BM31: 6956.90419843437j
P33: Absorber against panel
P34: Impedence values
O35: Eq 6.22 | P35: At top of air layer (z1) | Q35: =IMPRODUCT(airImpedance,"-j",Q28) -> -14457.9163262228j | R35: -12907.9587035707j | S35: -11436.3613851428j | T35: -10265.6564836456j | U35: -9123.717678054j | V35: -8135.93803071626j | W35: -7223.04585011324j | X35: -6447.35710201024j | Y35: -5747.2068209067j | Z35: -5095.42364121389j | AA35: -4552.48988114843j | AB35: -4039.14169184465j | AC35: -3599.68862019472j | AD35: -3198.86931630198j | AE35: -2849.52856896417j | AF35: -2530.93603656216j | AG35: -2251.65565273139j | AH35: -2003.02574601785j | AI35: -1776.097887659j | AJ35: -1575.64353947965j | AK35: -1394.76643587206j | AL35: -1233.56417531926j | AM35: -1087.864771705j | AN35: -957.632555416437j | AO35: -839.921119785756j | AP35: -733.571094076253j | AQ35: -636.097167151285j | AR35: -547.487171082149j | AS35: -465.78564729844j | AT35: -389.554769065644j | AU35: -318.189423761049j | AV35: -250.001700965923j | AW35: =IMPRODUCT(airImpedance,"-j",AW28) -> -183.667028310227j | AX35: -117.612572548099j | AY35: -49.1836895819355j | AZ35: 24.65190605638j | BA35: 109.549436034045j | BB35: 216.915729650091j | BC35: 373.572429460053j | BD35: 668.667744859385j | BE35: 1713.37713127199j | BF35: -3468.5915910763j | BG35: -725.50977925004j | BH35: -285.610959780726j | BI35: -42.2219019000304j | BJ35: 206.497996871361j | BK35: 805.890462363121j | BL35: -1709.65186604192j | BM35: -244.934662983726j
O36: Eq 6.23 | P36: At top of porous absorber (z2) | Q36: =IMDIV(IMSUM(IMPRODUCT("-j",Q35,Q24,Q29),IMPRODUCT(Q24,Q24)),IMSUB(Q35,IMPRODUCT("j",Q24,Q29))) -> 8.88233341887017-6795.54605792518j | R36: 54.0315393307776-6035.0158385803j | S36: 94.3967421643076-5316.60933720271j | T36: 124.527460714541-4747.89273654464j | U36: 151.99121753429-4195.75242523687j | V36: 174.006967461908-3720.38104967989j | W36: 192.723335753945-3283.01009929634j | X36: 207.236869237654-2912.92249381611j | Y36: 219.105780840331-2580.12248537904j | Z36: 228.98550757927-2271.36019824403j | AA36: 236.26853080761-2014.87888812728j | AB36: 242.298973539252-1772.8738001028j | AC36: 246.767218690342-1565.95672074805j | AD36: 250.281396764938-1377.25547766573j | AE36: 252.938457767118-1212.59866908542j | AF36: 255.103036926456-1062.02221179082j | AG36: 256.911113198672-929.40927712762j | AH36: 258.613085275652-810.534745658321j | AI36: 260.47243234826-700.979379852396j | AJ36: 262.662345096766-602.9329836305j | AK36: 265.483270653363-512.947770863106j | AL36: 269.196129326725-430.996217019002j | AM36: 274.214016313767-354.89322999344j | AN36: 280.935125710066-284.56811274631j | AO36: 290.024062973564-218.410150344686j | AP36: 302.311846186998-155.760338188592j | AQ36: 319.240091024453-95.1912686208615j | AR36: 342.545410050257-36.9436541482945j | AS36: 375.423587653878+19.4637135951931j | AT36: 423.06318982065+72.8495973285533j | AU36: 493.01023114672+117.584798034964j | AV36: 596.12328502509+138.074540423113j | AW36: =IMDIV(IMSUM(IMPRODUCT("-j",AW35,AW24,AW29),IMPRODUCT(AW24,AW24)),IMSUB(AW35,IMPRODUCT("j",AW24,AW29))) -> 733.259055088979+92.6481052189819j | AX36: 837.365552790747-82.3571724715357j | AY36: 742.976636359344-319.722441107436j | AZ36: 502.479650518521-376.810944588486j | BA36: 335.420400932032-269.135050172163j | BB36: 277.140360170384-117.744945326827j | BC36: 312.292199966398+35.1564834980513j | BD36: 484.329216525326+137.492745894318j | BE36: 668.577491687562-87.193961085086j | BF36: 421.175902846868-197.558573536045j | BG36: 343.614110469429-36.1533206899916j | BH36: 479.433635072608+59.7221584319126j | BI36: 515.185878312295-138.77136284814j | BJ36: 346.031940593776-48.3413866280406j | BK36: 514.49236173129+31.4924966855659j | BL36: 385.271940391411-85.5842009294937j | BM36: 483.032372677986+17.074592845126j
O37: Eq 6.1 | P37: Impedance at surface of device (z3) | Q37: =IMSUM(slotted_R1,Q31,Q36) -> 90.5655017357018-35600.9017705959j | R37: 135.714707647609-31746.8342379131j | S37: 176.079910481139-28090.5653538964j | T37: 206.210629031373-25183.972727536j | U37: 233.674385851122-22350.5469693196j | V37: 255.69013577874-19900.9022616421j | W37: 274.406504070777-17637.8157602432j | X37: 288.920037554486-15715.2147767596j | Y37: 300.788949157163-13979.7575223805j | Z37: 310.668675896102-12363.6292394721j | AA37: 317.951699124442-11016.4461169842j | AB37: 323.982141856084-9741.195676538j | AC37: 328.450387007174-8647.61394116775j | AD37: 331.96456508177-7647.74832733592j | AE37: 334.62162608395-6773.42594120268j | AF37: 336.786205243288-5972.5786335983j | AG37: 338.594281515504-5266.55294477027j | AH37: 340.296253592484-4633.47099746674j | AI37: 342.155600665092-4050.30700369079j | AJ37: 344.345513413598-3529.15574250521j | AK37: 347.166438970195-3052.06050614704j | AL37: 350.879297643557-2619.20191312342j | AM37: 355.897184630599-2219.32993579688j | AN37: 362.618294026898-1852.33030096658j | AO37: 371.707231290396-1509.99347184721j | AP37: 383.99501450383-1189.02483566762j | AQ37: 400.923259341285-881.988157862804j | AR37: 424.228578367089-589.221369316571j | AS37: 457.10675597071-305.393424487072j | AT37: 504.746358137482-27.9698445337007j | AU37: 574.693399463552+238.594927247553j | AV37: 677.806453341922+482.917644309989j | AW37: =IMSUM(slotted_R1,AW31,AW36) -> 814.942223405811+666.070944274947j | AX37: 919.048721107579+727.015568788237j | AY37: 824.659804676176+737.619623136934j | AZ37: 584.162818835353+942.751365130084j | BA37: 417.103569248864+1330.54260858457j | BB37: 358.823528487216+1784.77172909635j | BC37: 393.97536828323+2267.43992842996j | BD37: 566.012384842158+2731.50918191462j | BE37: 750.260660004394+2907.20083032216j | BF37: 502.8590711637+3242.97607129839j | BG37: 425.297278786261+3907.95754435621j | BH37: 561.11680338944+4581.46160732212j | BI37: 596.869046629127+5067.85531727541j | BJ37: 427.715108910608+6051.66067925011j | BK37: 596.175530048122+7893.91949584469j | BL37: 466.955108708243+3540.29060623751j | BM37: 564.715540994818+6973.9787912795j
P38: Reflection/Absorption coefficients
O39: Eq 1.22 | P39: Reflection factor | Q39: =IMDIV(IMSUB(Q37,airImpedance),IMSUM(Q37,airImpedance)) -> 0.999671200811709-0.0232235448700953j | R39: 0.999549529742202-0.0260403121861185j | S39: 0.999382429259845-0.0294255657107016j | T39: 0.999192514319747-0.032816287195481j | U39: 0.998929617195473-0.036967872565089j | V39: 0.998604364794114-0.0415062065653793j | W39: 0.998174260145104-0.0468135618481054j | X39: 0.997652805604233-0.0525157452189652j | Y39: 0.996985590689504-0.0589990054882492j | Z39: 0.996095903665976-0.066656621153582j | AA39: 0.995038047671495-0.0747351338651819j | AB39: 0.993609933616797-0.0844077575855157j | AC39: 0.991855627037376-0.09492819364678j | AD39: 0.989559682437603-0.107111561848024j | AE39: 0.986678582818228-0.120615357868016j | AF39: 0.982877613891889-0.136306057868628j | AG39: 0.978025805225269-0.153880311271763j | AH39: 0.971714892970646-0.173870612204251j | AI39: 0.963191318552504-0.197301388418114j | AJ39: 0.951902472882567-0.223990029167026j | AK39: 0.936423186586939-0.255101715615725j | AL39: 0.915094257976946-0.290946265820076j | AM39: 0.884686365192984-0.332634660519903j | AN39: 0.840884319722088-0.379768480015898j | AO39: 0.775839563676927-0.431087062851479j | AP39: 0.678269723264057-0.479700193901316j | AQ39: 0.532690284605367-0.506095057560023j | AR39: 0.339578445509467-0.464526707216891j | AS39: 0.154201596360362-0.296700488645699j | AT39: 0.100238105161866-0.0274076293644421j | AU39: 0.209251737784739+0.190927997918526j | AV39: 0.366316923301219+0.280420287000315j | AW39: =IMDIV(IMSUB(AW37,airImpedance),IMSUM(AW37,airImpedance)) -> 0.479768726183339+0.28207977969946j | AX39: 0.521769543179219+0.260919675745356j | AY39: 0.507058060988129+0.293671092697968j | AZ39: 0.562120632872404+0.413789879784212j | BA39: 0.72081923181327+0.447234095798311j | BB39: 0.831128685007102+0.390260682043474j | BC39: 0.884742735317572+0.32366045633366j | BD39: 0.903808945296203+0.268249945510125j | BE39: 0.901862722792176+0.245163410220821j | BF39: 0.933275937491926+0.236142200719058j | BG39: 0.956582951006263+0.202286732208548j | BH39: 0.963265919660221+0.172683806049928j | BI39: 0.968712614371382+0.15693698293507j | BJ39: 0.981365868861752+0.134057428360824j | BK39: 0.986817006397053+0.10307106434683j | BL39: 0.94529450612436+0.219976473699735j | BM39: 0.983689154880691+0.11628796396889j
O40: Eq 1.25 | P40: Absorption coefficient (a) | Q40: =1-POWER(IMABS(Q39),2) -> 0.00 | R40: 0.00 | S40: 0.00 | T40: 0.00 | U40: 0.00 | V40: 0.00 | W40: 0.00 | X40: 0.00 | Y40: 0.00 | Z40: 0.00 | AA40: 0.00 | AB40: 0.01 | AC40: 0.01 | AD40: 0.01 | AE40: 0.01 | AF40: 0.02 | AG40: 0.02 | AH40: 0.03 | AI40: 0.03 | AJ40: 0.04 | AK40: 0.06 | AL40: 0.08 | AM40: 0.11 | AN40: 0.15 | AO40: 0.21 | AP40: 0.31 | AQ40: 0.46 | AR40: 0.67 | AS40: 0.89 | AT40: 0.99 | AU40: 0.92 | AV40: 0.79 | AW40: =1-POWER(IMABS(AW39),2) -> 0.69 | AX40: 0.66 | AY40: 0.66 | AZ40: 0.51 | BA40: 0.28 | BB40: 0.16 | BC40: 0.11 | BD40: 0.11 | BE40: 0.13 | BF40: 0.07 | BG40: 0.04 | BH40: 0.04 | BI40: 0.04 | BJ40: 0.02 | BK40: 0.02 | BL40: 0.06 | BM40: 0.02
P42: Absorber against backing
P43: Impedence values
O44: Eq 6.22 | P44: At top of porous absorber (z1) | Q44: =IMPRODUCT("-j",Q29,Q24) -> -836.495183532115-12788.9760719444j | R44: -644.183328734355-11321.2938783704j | S44: -471.875113042972-9941.97799853962j | T44: -342.806305970193-8855.62045262786j | U44: -224.584425400221-7806.30707327311j | V44: -129.178825062794-6907.75034362523j | W44: -47.3803516898633-6085.60760858231j | X44: 16.7025715067903-5393.91002771144j | Y44: 69.7202563028964-4775.51701398921j | Z44: 114.430158917455-4205.3702681801j | AA44: 147.81233638988-3734.84902635878j | AB44: 175.726563859238-3293.93811909865j | AC44: 196.446957194337-2919.76546076842j | AD44: 212.467734014234-2581.26544586543j | AE44: 223.920485456422-2288.48980566054j | AF44: 232.090018121537-2023.35163124503j | AG44: 237.275530689448-1792.39268691264j | AH44: 240.191322458355-1587.89103867817j | AI44: 241.34576123182-1402.07733702953j | AJ44: 241.10553436639-1238.50231633258j | AK44: 239.85689742301-1091.22534621742j | AL44: 237.951583153105-960.077250971181j | AM44: 235.673909541489-841.463215463903j | AN44: 233.336881598601-735.200944287097j | AO44: 231.191011937461-638.776395695408j | AP44: 229.509256893658-551.166212844586j | AQ44: 228.557452878235-470.278497594895j | AR44: 228.658022098446-396.095845438649j | AS44: 230.166536273952-327.018665933466j | AT44: 233.557816521097-261.90664478536j | AU44: 239.415626918912-200.396456261531j | AV44: 248.623688335783-141.315747106563j | AW44: =IMPRODUCT("-j",AW29,AW24) -> 262.448398468025-84.0388495381044j | AX44: 282.788503181253-28.2261270869587j | AY44: 312.845782913978+26.2449767491055j | AZ44: 357.311936714538+77.1637150243177j | BA44: 423.027709388796+118.062027561858j | BB44: 516.283908508859+131.442139232291j | BC44: 624.600241624742+81.1478164557899j | BD44: 677.479211546699-56.0894299071111j | BE44: 597.035044498603-191.575347430087j | BF44: 457.863413805763-211.998499721736j | BG44: 364.274447253147-144.661880702539j | BH44: 338.583462135046-49.4477608735237j | BI44: 381.963774933298+36.3027035605962j | BJ44: 491.010390102848+49.6801641484357j | BK44: 530.015802765189-72.9534564770556j | BL44: 412.585572321087-108.72487276605j | BM44: 372.062395057155-14.6539463224877j
O45: Eq 6.23 | P45: At top of air layer (z2) | Q45: =IMDIV(IMSUM(IMPRODUCT("-j",Q44,airImpedance,Q28),airImpedance^2),IMSUB(Q44,IMPRODUCT("j",airImpedance,Q28))) -> -235.497778014657-6787.12186871176j | R45: -182.887106711178-6029.14376871095j | S45: -135.148319550256-5313.4560599437j | T45: -98.9356645145598-4747.15753216595j | U45: -65.3465599493593-4197.64644499672j | V45: -37.8779208266979-3724.81541129447j | W45: -14.0018707102454-3290.06438395873j | X45: 4.972010532557-2922.45646836455j | Y45: 20.9044743387384-2592.14081792825j | Z45: 34.5657211414724-2285.9488339795j | AA45: 44.9581130122121-2031.84019605407j | AB45: 53.841938685688-1792.31443427456j | AC45: 60.6248961406022-1587.73978577822j | AD45: 66.0723092250072-1401.38767448923j | AE45: 70.1897089585895-1238.97465468651j | AF45: 73.399035321302-1090.63143363994j | AG45: 75.7765289800665-960.144702085127j | AH45: 77.5716793405511-843.310888253414j | AI45: 79.00262498827-735.747379153879j | AJ45: 80.200141826106-639.56010469413j | AK45: 81.3790556698351-551.31492039355j | AL45: 82.7259280361006-470.925741215846j | AM45: 84.4922447483683-396.174915967894j | AN45: 86.9396137216925-326.895187405567j | AO45: 90.4564405987236-261.361802744553j | AP45: 95.5492401480947-198.709558957107j | AQ45: 103.073183710185-137.151887928146j | AR45: 114.179817503887-76.3113267475622j | AS45: 131.009848845912-14.5246824235325j | AT45: 157.368835289771+49.3931773615723j | AU45: 199.753720077209+114.48683905077j | AV45: 270.042472778139+175.02751497913j | AW45: =IMDIV(IMSUM(IMPRODUCT("-j",AW44,airImpedance,AW28),airImpedance^2),IMSUB(AW44,IMPRODUCT("j",airImpedance,AW28))) -> 382.234367093413+206.224422290528j | AX45: 516.179350591534+148.589640136935j | AY45: 551.234380087286-8.76566946151685j | AZ45: 444.101557118518-101.89431648712j | BA45: 335.402881537223-70.9151979996725j | BB45: 290.16593926542+21.1289027534283j | BC45: 324.928067449502+137.018933497165j | BD45: 501.940121849636+214.812292457221j | BE45: 694.061117366359-55.7375232797493j | BF45: 406.130704618789-203.86110177175j | BG45: 285.446476855924-43.6408299830002j | BH45: 376.828345128877+87.2945047359679j | BI45: 452.138866621308-35.2152174861331j | BJ45: 341.943069534773+28.0937339625174j | BK45: 531.509413999047+70.8880030698365j | BL45: 367.152199034236-91.5123499890286j | BM45: 417.501255180292+46.3567216218104j
O46: Eq 6.1 | P46: Impedance at surface of device (z3) | Q46: =IMSUM(slotted_R0,Q31,Q45) -> 177.002221985343-35592.4775813825j | R46: 229.612893288822-31740.9621680437j | S46: 277.351680449744-28087.4120766374j | T46: 313.56433548544-25183.2375231573j | U46: 347.153440050641-22352.4409890794j | V46: 374.622079173302-19905.3366232567j | W46: 398.498129289755-17644.8700449056j | X46: 417.472010532557-15724.748751308j | Y46: 433.404474338738-13991.7758549298j | Z46: 447.065721141472-12378.2178752076j | AA46: 457.458113012212-11033.407424911j | AB46: 466.341938685688-9760.63631070976j | AC46: 473.124896140602-8669.39700619792j | AD46: 478.572309225007-7671.88052415942j | AE46: 482.68970895859-6799.80192680377j | AF46: 485.899035321302-6001.18785544742j | AG46: 488.276528980066-5297.28836972778j | AH46: 490.071679340551-4666.24714006183j | AI46: 491.50262498827-4085.07500299227j | AJ46: 492.700141826106-3565.78286356884j | AK46: 493.879055669835-3090.42765567748j | AL46: 495.225928036101-2659.13143732027j | AM46: 496.992244748368-2260.61162177133j | AN46: 499.439613721692-1894.65737562584j | AO46: 502.956440598724-1552.94512424707j | AP46: 508.049240148095-1231.97405643614j | AQ46: 515.573183710185-923.948777170089j | AR46: 526.679817503887-628.589041915838j | AS46: 543.509848845912-339.381820505798j | AT46: 569.868835289771-51.4262645006817j | AU46: 612.253720077209+235.496968263359j | AV46: 682.542472778139+519.870618866006j | AW46: =IMSUM(slotted_R0,AW31,AW45) -> 794.734367093413+779.647261346493j | AX46: 928.679350591534+957.962381396708j | AY46: 963.734380087286+1048.57639478285j | AZ46: 856.601557118518+1217.66799323145j | BA46: 747.902881537223+1528.76246075706j | BB46: 702.66593926542+1923.64557717661j | BC46: 737.428067449502+2369.30237842907j | BD46: 914.440121849636+2808.82872847752j | BE46: 1106.56111736636+2938.6572681275j | BF46: 818.630704618789+3236.67354306269j | BG46: 697.946476855924+3900.4700350632j | BH46: 789.328345128877+4609.03395362618j | BI46: 864.638866621308+5171.41146263742j | BJ46: 754.443069534773+6128.09579984067j | BK46: 944.009413999047+7933.31500222896j | BL46: 779.652199034236+3534.36245717797j | BM46: 830.001255180292+7003.26092005618j
P47: Reflection/Absorption coefficients
O48: Eq 1.22 | P48: Reflection factor | Q48: =IMDIV(IMSUB(Q46,airImpedance),IMSUM(Q46,airImpedance)) -> 0.999614661976789-0.0232273050596847j | R48: 0.999472373321658-0.0260422338049543j | S48: 0.999276301036947-0.0294240322319256j | T48: 0.999052786263966-0.0328097690765655j | U48: 0.998742537238059-0.0369529398888056j | V48: 0.998357764003626-0.04147885792634j | W48: 0.997847906067323-0.0467669882480015j | X48: 0.99722878588016-0.0524423095729669j | Y48: 0.996435791985665-0.0588864794597871j | Z48: 0.995377930013634-0.0664851279618373j | AA48: 0.994120462875167-0.074485076714609j | AB48: 0.992424750500624-0.0840396084287002j | AC48: 0.990346014289828-0.0943993761519275j | AD48: 0.987634055204788-0.106351224883754j | AE48: 0.984245957059759-0.119536818693483j | AF48: 0.979802620626236-0.134769972158411j | AG48: 0.97417448391672-0.151710965785613j | AH48: 0.966924623554766-0.170813885625538j | AI48: 0.957252968823288-0.192960929562762j | AJ48: 0.94463968776893-0.217842448619523j | AK48: 0.927672305796481-0.246347208454685j | AL48: 0.904840979664302-0.278464618444528j | AM48: 0.873233761771439-0.31475052052215j | AN48: 0.829322881769893-0.354223237494088j | AO48: 0.766925815090497-0.394958549739128j | AP48: 0.678048261595971-0.430414390123899j | AQ48: 0.552500974887156-0.445043999336331j | AR48: 0.392144071219469-0.406414573275056j | AS48: 0.232419650298714-0.272212789388764j | AT48: 0.161339662452569-0.0438598172525989j | AU48: 0.234164244670977+0.175828604879723j | AV48: 0.38407394178979+0.292151009288914j | AW48: =IMDIV(IMSUB(AW46,airImpedance),IMSUM(AW46,airImpedance)) -> 0.516776031965635+0.311820992166119j | AX48: 0.59181328586532+0.291343737250272j | AY48: 0.619895233930643+0.289403800010221j | AZ48: 0.66074034069765+0.325261072651486j | BA48: 0.739441803219632+0.342982655935229j | BB48: 0.813394291039282+0.321611778149836j | BC48: 0.862826675011401+0.282391992089277j | BD48: 0.886240008894326+0.240627539733546j | BE48: 0.885167184745623+0.222004499163927j | BF48: 0.9150516923215+0.223154970951874j | BG48: 0.944125070377031+0.196090319032666j | BH48: 0.956163363833338+0.167978395174874j | BI48: 0.962754161553278+0.150701707953341j | BJ48: 0.975183410369782+0.130213562785531j | BK48: 0.982671219212493+0.101271834203688j | BL48: 0.929095972276691+0.210037180374876j | BM48: 0.979674920677257+0.114471126342836j
O49: Eq 1.25 | P49: Absorption coefficient (a) | Q49: =1-POWER(IMABS(Q48),2) -> 0.00 | R49: 0.00 | S49: 0.00 | T49: 0.00 | U49: 0.00 | V49: 0.00 | W49: 0.00 | X49: 0.00 | Y49: 0.00 | Z49: 0.00 | AA49: 0.01 | AB49: 0.01 | AC49: 0.01 | AD49: 0.01 | AE49: 0.02 | AF49: 0.02 | AG49: 0.03 | AH49: 0.04 | AI49: 0.05 | AJ49: 0.06 | AK49: 0.08 | AL49: 0.10 | AM49: 0.14 | AN49: 0.19 | AO49: 0.26 | AP49: 0.35 | AQ49: 0.50 | AR49: 0.68 | AS49: 0.87 | AT49: 0.97 | AU49: 0.91 | AV49: 0.77 | AW49: =1-POWER(IMABS(AW48),2) -> 0.64 | AX49: 0.56 | AY49: 0.53 | AZ49: 0.46 | BA49: 0.34 | BB49: 0.23 | BC49: 0.18 | BD49: 0.16 | BE49: 0.17 | BF49: 0.11 | BG49: 0.07 | BH49: 0.06 | BI49: 0.05 | BJ49: 0.03 | BK49: 0.02 | BL49: 0.09 | BM49: 0.03
P51: No air gap
P52: Impedence values
O53: Eq 6.25 | P53: At top of porous layer (z1) | Q53: =IMPRODUCT("-j",Q30,Q24) -> -158.635510416822-6387.78960287074j | R53: -69.2453329141554-5651.73349995166j | S53: 10.2409968917732-4959.54449167996j | T53: 69.3000015685298-4413.95879952564j | U53: 122.933157764751-3886.50863132638j | V53: 165.808116657782-3434.34475181998j | W53: 202.204769738929-3020.09007117333j | X53: 230.433173301568-2671.01710820903j | Y53: 253.567176746076-2358.36409067124j | Z53: 272.914881632401-2069.45052077553j | AA53: 287.288129172098-1830.37875499299j | AB53: 299.32474575514-1605.63293244695j | AC53: 308.382366597436-1414.16500172459j | AD53: 315.64209185067-1240.15354637429j | AE53: 321.242703831751-1088.82064897139j | AF53: 325.873380700145-950.878764934412j | AG53: 329.734950659001-829.788627529729j | AH53: 333.266176109076-721.605224197674j | AI53: 336.913585502345-622.270666515319j | AJ53: 340.927197464468-533.761139747927j | AK53: 345.78159144381-452.985760615573j | AL53: 351.85159003327-379.997164641824j | AM53: 359.728195174183-313.000856684191j | AN53: 369.920508145684-252.195046596183j | AO53: 383.247458238369-196.612258432749j | AP53: 400.577744744046-146.408144163993j | AQ53: 423.23840364648-101.643728623816j | AR53: 452.108607095555-64.4291057591437j | AS53: 488.113400097631-37.4563493360096j | AT53: 530.479659963598-25.8599396178138j | AU53: 573.406515911812-36.4967925073049j | AV53: 603.599630202922-73.325907775354j | AW53: =IMPRODUCT("-j",AW30,AW24) -> 601.774922996656-127.160374528719j | AX53: 560.328898209479-170.591625035024j | AY53: 498.089189845152-178.048193602809j | AZ53: 445.891709391728-148.270276989255j | BA53: 422.799370323731-99.0414861710878j | BB53: 433.861742446488-52.8472837298541j | BC53: 470.039103260695-35.4502727710193j | BD53: 493.860234318888-61.8237506250233j | BE53: 467.145522360808-89.8849107877039j | BF53: 431.575244358215-69.4919199335324j | BG53: 440.222974431616-35.5701650595105j | BH53: 462.586722157636-46.4449302324531j | BI53: 438.291649241386-57.6201136102735j | BJ53: 435.870846524044-31.5719141417366j | BK53: 445.919562135028-43.0391800613373j | BL53: 429.815700548369-32.4247407338319j | BM53: 439.411313072831-34.8490684735718j
O54: Eq 6.1 | P54: Impedance at surface of device (z2) | Q54: =IMSUM(slotted_R1,Q31,Q53) -> -76.9523420999903-35193.1453155414j | R54: 12.4378354026763-31363.5518992845j | S54: 91.9241652086049-27733.5005083737j | T54: 150.983169885361-24850.038790517j | U54: 204.616326081583-22041.3031754091j | V54: 247.491284974614-19614.8659637822j | W54: 283.887938055761-17374.8957321202j | X54: 312.1163416184-15473.3093911525j | Y54: 335.250345062908-13757.9991276727j | Z54: 354.598049949233-12161.7195620036j | AA54: 368.97129748893-10831.9459838499j | AB54: 381.007914071972-9573.95480888215j | AC54: 390.065534914268-8495.82222214429j | AD54: 397.325260167502-7510.64639604448j | AE54: 402.925872148583-6649.64792108865j | AF54: 407.556549016977-5861.43518674189j | AG54: 411.418118975833-5166.93229517238j | AH54: 414.949344425908-4544.54147600609j | AI54: 418.596753819177-3971.59829035371j | AJ54: 422.6103657813-3459.98389862264j | AK54: 427.464759760642-2992.0984958995j | AL54: 433.534758350102-2568.20286074624j | AM54: 441.411363491015-2177.43756248763j | AN54: 451.603676462516-1819.95723481645j | AO54: 464.930626555201-1488.19557993527j | AP54: 482.260913060878-1179.67264164302j | AQ54: 504.921571963312-888.440617865759j | AR54: 533.791775412387-616.70682092742j | AS54: 569.796568414463-362.313487418275j | AT54: 612.16282828043-126.679381480068j | AU54: 655.089684228644+84.5133367052841j | AV54: 685.282798519754+271.517196111522j | AW54: =IMSUM(slotted_R1,AW31,AW53) -> 683.458091313488+446.262464527246j | AX54: 642.012066526311+638.781116224749j | AY54: 579.772358161984+879.293870641561j | AZ54: 527.57487770856+1171.29203272931j | BA54: 504.482538640563+1500.63617258564j | BB54: 515.54491076332+1849.66939069333j | BC54: 551.722271577527+2196.83317216089j | BD54: 575.54340263572+2532.19268539528j | BE54: 548.82869067764+2904.50988061955j | BF54: 513.258412675047+3371.04272490091j | BG54: 521.906142748448+3908.54069998669j | BH54: 544.269890474468+4475.29451865776j | BI54: 519.974817558218+5149.00656651328j | BJ54: 517.554014840876+6068.43015173641j | BK54: 527.60273045186+7819.38781909778j | BL54: 511.498868865201+3593.45006643317j | BM54: 521.094481389663+6922.0551299608j
P55: Reflection/Absorption coefficients
O56: Eq 1.22 | P56: Reflection factor | Q56: =IMDIV(IMSUB(Q54,airImpedance),IMSUM(Q54,airImpedance)) -> 0.999775336934161-0.0234951794134939j | R56: 0.999642015597056-0.0263615677322186j | S56: 0.999456805591353-0.0298076450209774j | T56: 0.999244510927377-0.033260246950775j | U56: 0.998948736749658-0.0374884863374484j | V56: 0.99858097309954-0.0421112712764758j | W56: 0.998092825806724-0.0475176882770571j | X56: 0.997499385468845-0.0533260486335531j | Y56: 0.996738610071431-0.0599289898457432j | Z56: 0.995722806350046-0.0677255939471064j | AA56: 0.994513991208787-0.0759468681794673j | AB56: 0.992881367833239-0.0857836985849782j | AC56: 0.990875597348087-0.0964724827743286j | AD56: 0.988250957376511-0.108834676429198j | AE56: 0.984958748777927-0.122512533686705j | AF56: 0.980618447103371-0.138367485855669j | AG56: 0.975084077244814-0.156067839018589j | AH56: 0.967896590907521-0.176112311426316j | AI56: 0.958212183878632-0.199459878576947j | AJ56: 0.945432846160036-0.225816717970953j | AK56: 0.928010246167206-0.25614330760492j | AL56: 0.90422263014954-0.290405698580658j | AM56: 0.870808857280371-0.329057174667362j | AN56: 0.823826510799041-0.370635846454527j | AO56: 0.756760366197676-0.412098004163829j | AP56: 0.662382110351145-0.444639679083578j | AQ56: 0.534864544590213-0.449965079202021j | AR56: 0.386887349567458-0.399160814872229j | AS56: 0.259523354712357-0.272849723921443j | AT56: 0.20583952576563-0.0980892149708026j | AU56: 0.230925195376498+0.0608266724394077j | AV56: 0.290694075982846+0.175279034007289j | AW56: =IMDIV(IMSUB(AW54,airImpedance),IMSUM(AW54,airImpedance)) -> 0.353182621112811+0.263143664141362j | AX56: 0.426559433272662+0.347047261520482j | AY56: 0.533237493066614+0.413212749613867j | AZ56: 0.655284188819636+0.429056943676643j | BA56: 0.754698392287909+0.401009283579526j | BB56: 0.820685492631913+0.35701438476164j | BC56: 0.86137415593371+0.315519605701912j | BD56: 0.889330888496266+0.283347853914125j | BE56: 0.915001828462806+0.256549662956966j | BF56: 0.937300955610782+0.228071784083441j | BG56: 0.952109674113355+0.200112866193054j | BH56: 0.962187634011968+0.176687894031837j | BI56: 0.971811243691236+0.155492547838206j | BJ56: 0.979574069604437+0.133136209088334j | BK56: 0.987453865167043+0.104245758096794j | BL56: 0.944445454887359+0.215825597313873j | BM56: 0.984159400789793+0.117326538400506j
O57: Eq 1.25 | P57: Absorption coefficient (a) | Q57: =1-POWER(IMABS(Q56),2) -> -0.00 | R57: 0.00 | S57: 0.00 | T57: 0.00 | U57: 0.00 | V57: 0.00 | W57: 0.00 | X57: 0.00 | Y57: 0.00 | Z57: 0.00 | AA57: 0.01 | AB57: 0.01 | AC57: 0.01 | AD57: 0.01 | AE57: 0.01 | AF57: 0.02 | AG57: 0.02 | AH57: 0.03 | AI57: 0.04 | AJ57: 0.06 | AK57: 0.07 | AL57: 0.10 | AM57: 0.13 | AN57: 0.18 | AO57: 0.26 | AP57: 0.36 | AQ57: 0.51 | AR57: 0.69 | AS57: 0.86 | AT57: 0.95 | AU57: 0.94 | AV57: 0.88 | AW57: =1-POWER(IMABS(AW56),2) -> 0.81 | AX57: 0.70 | AY57: 0.54 | AZ57: 0.39 | BA57: 0.27 | BB57: 0.20 | BC57: 0.16 | BD57: 0.13 | BE57: 0.10 | BF57: 0.07 | BG57: 0.05 | BH57: 0.04 | BI57: 0.03 | BJ57: 0.02 | BK57: 0.01 | BL57: 0.06 | BM57: 0.02

Sheet Microperforated Panel
B2: Microperforated Panel | P2: Cox & D'Antonio Chapter 6, Section 5
B3: Properties of panel | G3: Display options | P3: Panel thickness (tp) | Q3: =micro_panel_thickness_mm/1000 -> 0.00021 | R3: m
B4: Panel thickness (tp) | C4: 0.2 | D4: mm | E4: =micro_panel_thickness_mm/25.4 -> 0.008 | F4: in | G4: Start graph at | H4: 62.5 | I4: Hz | K4: Open Area (e) | L4: =(PI()*(micro_hole_diameter/2)^2)/(micro_repeat_distance^2) -> 0.50% | P4: Repeat distance (D) | Q4: =micro_repeat_distance_mm/1000 -> 0.00250 | R4: m | T4: cos(y) | U4: =COS(microPerfAbsAngle*PI()/180) -> 0.9397
B5: Repeat distance (D) | C5: 2.5 | D5: mm | E5: =micro_repeat_distance_mm/25.4 -> 0.098 | F5: in | K5: To see the graph in the standard | P5: Hole diameter (a) | Q5: =micro_hole_diameter_mm/1000 -> 0.00020 | R5: m | T5: Hole radius | U5: =micro_hole_diameter/2 -> 0.0001 | V5: m
B6: Hole diameter (2a) | C6: 0.20 | D6: mm | E6: =micro_hole_diameter_mm/25.4 -> 0.008 | F6: in | K6: analysis frequencies, select | P6: Cavity depth (d) | Q6: =micro_cavity_depth_mm/1000 -> 0.06500 | R6: m
B7: Properties of cavity | G7: Show subdivisions of | K7: Whole Octaves and set the | P7: Octave subdivisions | Q7: 6 | T7: Principal root of -j | U7: =IMSQRT("-j") -> 0.707106781186548-0.707106781186547j
B8: Cavity depth (d) | C8: 65.0 | D8: mm | E8: =micro_cavity_depth_mm/25.4 -> 2.559 | F8: in | K8: starting frequency to 62.5Hz
B9: Properties of incident sound
B10: Angle of incidence (y) | C10: 20 | D10: ° | F10: =IF(microPerfAbsAngle=0,"Normal incidence","Oblique incidence") -> Oblique incidence | P10: Interval number | Q10: 0 | R10: 1 | S10: 2 | T10: 3 | U10: 4 | V10: 5 | W10: 6 | X10: 7 | Y10: 8 | Z10: 9 | AA10: 10 | AB10: 11 | AC10: 12 | AD10: 13 | AE10: 14 | AF10: 15 | AG10: 16 | AH10: 17 | AI10: 18 | AJ10: 19 | AK10: 20 | AL10: 21 | AM10: 22 | AN10: 23 | AO10: 24 | AP10: 25 | AQ10: 26 | AR10: 27 | AS10: 28 | AT10: 29 | AU10: 30 | AV10: 31 | AW10: 32 | AX10: 33 | AY10: 34 | AZ10: 35 | BA10: 36 | BB10: 37 | BC10: 38 | BD10: 39 | BE10: 40 | BF10: 41 | BG10: 42 | BH10: 43 | BI10: 44 | BJ10: 45 | BK10: 46 | BL10: 47 | BM10: 48
B11: When the perforations in a membrane are sub-millimetre in diameter, then the resistance caused by the viscous air/membrane boundary layer becomes significant. | P11: Angular values | Q11: =start_freq_micro -> 62.5 | R11: =ROUND(POWER(2,LOG(start_freq_micro,2)+R10/subdiv_micro),0) -> 70 | S11: 79 | T11: 88 | U11: 99 | V11: 111 | W11: 125 | X11: 140 | Y11: 157 | Z11: 177 | AA11: 198 | AB11: 223 | AC11: 250 | AD11: 281 | AE11: 315 | AF11: 354 | AG11: 397 | AH11: 445 | AI11: 500 | AJ11: 561 | AK11: 630 | AL11: 707 | AM11: 794 | AN11: 891 | AO11: 1,000 | AP11: 1,122 | AQ11: 1,260 | AR11: 1,414 | AS11: 1,587 | AT11: 1,782 | AU11: 2,000 | AV11: 2,245 | AW11: 2,520 | AX11: 2,828 | AY11: 3,175 | AZ11: 3,564 | BA11: 4,000 | BB11: 4,490 | BC11: 5,040 | BD11: 5,657 | BE11: 6,350 | BF11: 7,127 | BG11: 8,000 | BH11: 8,980 | BI11: 10,079 | BJ11: 11,314 | BK11: 12,699 | BL11: 14,254 | BM11: 16,000
B12: Hence, a microperforated panel does not require a seperate absorbent layer, since this role is performed by the viscous boundary layer within the holes. | O12: 2pf | P12: Angular frequency (w) | Q12: =2*PI()*Q11 -> 392.70 | R12: 439.82 | S12: 496.37 | T12: 552.92 | U12: 622.04 | V12: 697.43 | W12: 785.40 | X12: 879.65 | Y12: 986.46 | Z12: 1112.12 | AA12: 1244.07 | AB12: 1401.15 | AC12: 1570.80 | AD12: 1765.58 | AE12: 1979.20 | AF12: 2224.25 | AG12: 2494.42 | AH12: 2796.02 | AI12: 3141.59 | AJ12: 3524.87 | AK12: 3958.41 | AL12: 4442.21 | AM12: 4988.85 | AN12: 5598.32 | AO12: 6283.19 | AP12: 7049.73 | AQ12: 7916.81 | AR12: 8884.42 | AS12: 9971.42 | AT12: 11196.64 | AU12: 12566.37 | AV12: 14105.75 | AW12: 15833.63 | AX12: 17768.85 | AY12: 19949.11 | AZ12: 22393.27 | BA12: 25132.74 | BB12: 28211.50 | BC12: 31667.25 | BD12: 35543.98 | BE12: 39898.23 | BF12: 44780.26 | BG12: 50265.48 | BH12: 56423.00 | BI12: 63328.22 | BJ12: 71087.96 | BK12: 79790.17 | BL12: 89560.52 | BM12: 100530.96
B13: This plot is a simplification of reality because it is only calculated for sound incident at exactly the specified angle. | O13: 2p/l | P13: Wave number (kair) | Q13: =TwoPiByC*Q11 -> 1.1436 | R13: 1.2809 | S13: 1.4455 | T13: 1.6102 | U13: 1.8115 | V13: 2.0311 | W13: 2.2872 | X13: 2.5617 | Y13: 2.8728 | Z13: 3.2387 | AA13: 3.6230 | AB13: 4.0804 | AC13: 4.5745 | AD13: 5.1417 | AE13: 5.7639 | AF13: 6.4775 | AG13: 7.2643 | AH13: 8.1426 | AI13: 9.1490 | AJ13: 10.2652 | AK13: 11.5277 | AL13: 12.9367 | AM13: 14.5286 | AN13: 16.3035 | AO13: 18.2980 | AP13: 20.5303 | AQ13: 23.0554 | AR13: 25.8733 | AS13: 29.0388 | AT13: 32.6069 | AU13: 36.5959 | AV13: 41.0789 | AW13: 46.1108 | AX13: 51.7466 | AY13: 58.0960 | AZ13: 65.2139 | BA13: 73.1918 | BB13: 82.1578 | BC13: 92.2217 | BD13: 103.5115 | BE13: 116.1920 | BF13: 130.4095 | BG13: 146.3836 | BH13: 164.3156 | BI13: 184.4251 | BJ13: 207.0230 | BK13: 232.3657 | BL13: 260.8190 | BM13: 292.7672
B14: In addition to this, it is assumed that the microperforated panel is perfectly rigid. Whether or not this is actually true depends on how the panel is mounted.
P15: Intermediate values fo Eq 6.36
O16: Eq 6.37 | P16: k' = a√(rw/h) | Q16: =micro_hole_radius*SQRT(AirDensityByViscosity*Q12) -> 0.505566932 | R16: 0.5350417493 | S16: 0.5683975496 | T16: 0.5999015546 | U16: 0.636291686 | V16: 0.6737521138 | W16: 0.714979612 | X16: 0.7566632983 | Y16: 0.8012877024 | Z16: 0.8507956965 | AA16: 0.8998523319 | AB16: 0.9549729778 | AC16: 1.011133864 | AD16: 1.071992659 | AE16: 1.134994947 | AF16: 1.203206813 | AG16: 1.274189156 | AH16: 1.349020834 | AI16: 1.429959224 | AJ16: 1.514677178 | AK16: 1.605125248 | AL16: 1.70038928 | AM16: 1.801975585 | AN16: 1.908875058 | AO16: 2.022267728 | AP16: 2.142077008 | AQ16: 2.269989895 | AR16: 2.404713581 | AS16: 2.5475758 | AT16: 2.699556996 | AU16: 2.859918448 | AV16: 3.030029271 | AW16: =micro_hole_radius*SQRT(AirDensityByViscosity*AW12) -> 3.210250496 | AX16: 3.400778559 | AY16: 3.603383754 | AZ16: 3.817750116 | BA16: 4.044535456 | BB16: 4.28510849 | BC16: 4.53997979 | BD16: 4.809852304 | BE16: 5.095954175 | BF16: 5.398735253 | BG16: 5.719836896 | BH16: 6.060058543 | BI16: 6.420182506 | BJ16: 6.802158361 | BK16: 7.206483771 | BL16: 7.634964614 | BM16: 8.089070912
P17: jwrt | Q17: =IMPRODUCT("j",Q12,airDensity,micro_panel_thickness) -> 0.0992997929903543j | R17: =IMPRODUCT("j",R12,airDensity,micro_panel_thickness) -> 0.111215768149197j | S17: 0.125514938339808j | T17: 0.139814108530419j | U17: 0.157290872096721j | V17: 0.176356432350869j | W17: 0.198599585980709j | X17: 0.222431536298394j | Y17: 0.24944107999177j | Z17: 0.281217013748683j | AA17: 0.314581744193442j | AB17: 0.354301661389584j | AC17: 0.397199171961417j | AD17: 0.446451869284633j | AE17: 0.500470956671386j | AF17: 0.562434027497367j | AG17: 0.630752285074731j | AH17: 0.707014526091323j | AI17: 0.794398343922834j | AJ17: 0.89131494188142j | AK17: 1.00094191334277j | AL17: 1.12327925830689j | AM17: 1.26150457014946j | AN17: 1.41561784887049j | AO17: 1.58879668784567j | AP17: 1.78262988376284j | AQ17: 2.00188382668554j | AR17: 2.24655851661378j | AS17: 2.52142034361108j | AT17: 2.83123569774098j | AU17: 3.17759337569134j | AV17: 3.56684856421353j | AW17: =IMPRODUCT("j",AW12,airDensity,micro_panel_thickness) -> 4.00376765337109j | AX17: 4.49311703322755j | AY17: 5.04442948391j | AZ17: 5.66247139548196j | BA17: 6.35518675138268j | BB17: 7.13369712842705j | BC17: 8.00753530674217j | BD17: 8.98782286314295j | BE17: 10.08885896782j | BF17: 11.3233539942761j | BG17: 12.7103735027654j | BH17: 14.2673942568541j | BI17: 16.0134818167965j | BJ17: 17.9756457262859j | BK17: 20.1761291389522j | BL17: 22.6467079885522j | BM17: 25.4207470055307j
P18: k' √(-j) | Q18: =IMPRODUCT(Q16,$U$7) -> 0.357489805977104-0.357489805977104j | R18: =IMPRODUCT(R16,$U$7) -> 0.37833164914246-0.378331649142459j | S18: 0.401917761714035-0.401917761714035j | T18: 0.424194457318324-0.424194457318323j | U18: 0.449926165967301-0.4499261659673j | V18: 0.476414688487377-0.476414688487376j | W18: 0.505566932022947-0.505566932022946j | X18: 0.535041749292246-0.535041749292245j | Y18: 0.566595968023423-0.566595968023422j | Z18: 0.601603406424211-0.601603406424211j | AA18: 0.636291685977485-0.636291685977484j | AB18: 0.675267868475237-0.675267868475236j | AC18: 0.714979611954208-0.714979611954207j | AD18: 0.75801327848096-0.758013278480959j | AE18: 0.802562623938369-0.802562623938368j | AF18: 0.850795696534973-0.850795696534972j | AG18: 0.900987792742045-0.900987792742044j | AH18: 0.953901779539245-0.953901779539244j | AI18: 1.01113386404589-1.01113386404589j | AJ18: 1.07103850412806-1.07103850412806j | AK18: 1.13499494742738-1.13499494742738j | AL18: 1.20235679026769-1.20235679026769j | AM18: 1.2741891560284-1.2741891560284j | AN18: 1.3497784979019-1.3497784979019j | AO18: 1.42995922390842-1.42995922390841j | AP18: 1.51467717836169-1.51467717836169j | AQ18: 1.60512524787674-1.60512524787674j | AR18: 1.70038927960795-1.70038927960795j | AS18: 1.80140812346861-1.8014081234686j | AT18: 1.90887505793246-1.90887505793245j | AU18: 2.02226772809179-2.02226772809179j | AV18: 2.14255424497993-2.14255424497992j | AW18: 2.26998989485476-2.26998989485476j | AX18: 2.40471358053538-2.40471358053537j | AY18: 2.54797708741256-2.54797708741256j | AZ18: 2.69955699580381-2.6995569958038j | BA18: 2.85991844781683-2.85991844781683j | BB18: 3.03002927137066-3.03002927137066j | BC18: 3.21025049575348-3.21025049575347j | BD18: 3.40107918052559-3.40107918052558j | BE18: 3.60338375363475-3.60338375363474j | BF18: 3.8174823069406-3.81748230694059j | BG18: 4.04453545618358-4.04453545618357j | BH18: 4.28510848995986-4.28510848995985j | BI18: 4.53975458671378-4.53975458671378j | BJ18: 4.80985230380405-4.80985230380405j | BK18: 5.09575354275848-5.09575354275848j | BL18: 5.39873525259472-5.39873525259471j | BM18: 5.71983689563367-5.71983689563366j
P19: Bessel, first kind, zero order (k' √(-j)) | Q19: =zbesselj(0,Q18) -> 0.99897924+0.06389223j | R19: =zbesselj(0,R18) -> 0.99871957+0.07155724j | S19: 0.99836917+0.08075431j | T19: 0.99797644+0.08995024j | U19: 0.99743897+0.10118797j | V19: 0.99678055+0.11344488j | W19: 0.99591732+0.12774098j | X19: 0.99487883+0.14305338j | Y19: 0.99355985+0.16040062j | Z19: 0.99181493+0.18079873j | AA19: 0.98975808+0.20220315j | AB19: 0.98700945+0.22766419j | AC19: 0.98367483+0.25513416j | AD19: 0.97937764+0.28663353j | AE19: 0.97408908+0.32112577j | AF19: 0.96728206+0.36061017j | AG19: 0.95886054+0.40403280j | AH19: 0.94832624+0.45234971j | AI19: 0.93478822+0.50748754j | AJ19: 0.91794455+0.56832476j | AK19: 0.89658030+0.63669161j | AL19: 0.86985253+0.71235385j | AM19: 0.83600709+0.79694374j | AN19: 0.79373649+0.88999632j | AO19: 0.74057352+0.99278337j | AP19: 0.67402874+1.10533101j | AQ19: 0.58989878+1.22907681j | AR19: 0.48508091+1.36217361j | AS19: 0.35384184+1.50466197j | AT19: 0.18922616+1.65530759j | AU19: -0.01507502+1.80977315j | AV19: -0.26916190+1.96378897j | AW19: -0.58355932+2.10921824j | AX19: -0.96973323+2.23387960j | AY19: -1.44376810+2.32084864j | AZ19: -2.01776923+2.34419079j | BA19: -2.70450605+2.26835910j | BB19: -3.51523154+2.04329073j | BC19: -4.44981648+1.60085003j | BD19: -5.49150900+0.85049732j | BE19: -6.59543668-0.32686610j | BF19: -7.66333698-2.07602291j | BG19: -8.52012914-4.57319447j | BH19: -8.86225145-7.99884597j | BI19: -8.20342140-12.49729771j | BJ19: -5.79572502-18.10718010j | BK19: -0.56354036-24.56039977j | BL19: 8.95222771-31.02722158j | BM19: 24.50675767-35.60779374j
P20: Bessel, first kind, first order (k'√(-j)) | Q20: =zbesselj(1,Q18) -> 0.18439461-0.17297355j | R20: =zbesselj(1,R18) -> 0.19585366-0.18231651j | S20: 0.20896452-0.19273475j | T20: 0.22149433-0.20241399j | U20: 0.23615443-0.21338763j | V20: 0.25146582-0.22443758j | W20: 0.26858851-0.23629037j | X20: 0.28620451-0.24792385j | Y20: 0.30541850-0.25996106j | Z20: 0.32718559-0.27277627j | AA20: 0.34924295-0.28487621j | AB20: 0.37463307-0.29771035j | AC20: 0.40118947-0.30989872j | AD20: 0.43078110-0.32202031j | AE20: 0.46233839-0.33329052j | AF20: 0.49759817-0.34391539j | AG20: 0.53552961-0.35309714j | AH20: 0.57691688-0.36054488j | AI20: 0.62332236-0.36581625j | AJ20: 0.67373378-0.36798306j | AK20: 0.72962350-0.36619931j | AL20: 0.79075965-0.35935999j | AM20: 0.85843011-0.34597843j | AN20: 0.93223768-0.32452259j | AO20: 1.01316852-0.29277321j | AP20: 1.10120444-0.24828648j | AQ20: 1.19739605-0.18728738j | AR20: 1.30018138-0.10664008j | AS20: 1.40937738-0.00115457j | AT20: 1.52365604+0.13551250j | AU20: 1.63910334+0.30921613j | AV20: 1.75150869+0.52902084j | AW20: 1.85323388+0.80437508j | AX20: 1.93290739+1.14546214j | AY20: 1.97443467+1.56640873j | AZ20: 1.95373520+2.07757590j | BA20: 1.83761264+2.68951093j | BB20: 1.57926680+3.41079945j | BC20: 1.11537629+4.23891946j | BD20: 0.36200249+5.15504780j | BE20: -0.79094227+6.11297898j | BF20: -2.47628693+7.01554315j | BG20: -4.85451764+7.69182835j | BH20: -8.08666715+7.84921192j | BI20: -12.29460261+7.02249479j | BJ20: -17.49248613+4.49995180j | BK20: -23.39366599-0.73451353j | BL20: -29.16440515-10.04961194j | BM20: -32.93843570-25.07101345j
O21: Eq 6.36 | P21: Impedance of microperforated layer (z1) | Q21: =IMDIV(Q17,IMSUB(1,IMDIV(IMPRODUCT(2,Q20),IMPRODUCT(Q18,Q19)))) -> 3.10817684808118+0.132400071519291j | R21: =IMDIV(R17,IMSUB(1,IMDIV(IMPRODUCT(2,R20),IMPRODUCT(R18,R19)))) -> 3.10822150858254+0.148285760999249j | S21: 3.10828216445948+0.167350566442197j | T21: 3.10834900060958+0.186415028662679j | U21: 3.10844258767614+0.209715555523304j | V21: 3.10855589742121+0.235134186951648j | W21: 3.10870532921746+0.264787287316007j | X21: 3.10888408602556+0.29655765160247j | Y21: 3.10911143212325+0.33256438875582j | Z21: 3.10941256192499+0.374922414702611j | AA21: 3.10976736497119+0.419394435157537j | AB21: 3.11024149400585+0.472333792602272j | AC21: 3.11081639919539+0.529502654659072j | AD21: 3.11155693018135+0.595132836377986j | AE21: 3.11246808076372+0.667102902801318j | AF21: 3.11364018807542+0.749639917653225j | AG21: 3.11508886508838+0.84061955775192j | AH21: 3.11689926903115+0.942146420966211j | AI21: 3.11922333376265+1.05843321717397j | AJ21: 3.12211053773236+1.18734163623126j | AK21: 3.12576551708779+1.33306499909574j | AL21: 3.13032737460103+1.49555649742144j | AM21: 3.13608712606924+1.67897081737831j | AN21: 3.14325365611369+1.88321697881115j | AO21: 3.15222556644192+2.11238173073809j | AP21: 3.16339123183996+2.36839408642213j | AQ21: 3.17740682544372+2.65730369129166j | AR21: 3.19471467036012+2.97877886866228j | AS21: 3.21615045090539+3.33864128025168j | AT21: 3.24268074020904+3.74251814077177j | AU21: 3.27507702483894+4.19168286113286j | AV21: 3.31459098668212+4.69334436949696j | AW21: 3.36236827273678+5.25230743485549j | AX21: 3.41949951670446+5.87302112382588j | AY21: 3.48752454564221+6.56553727856276j | AZ21: 3.5671924733775+7.33343846057768j | BA21: 3.65928251708889+8.18394109450731j | BB21: 3.76456008565906+9.12780254445401j | BC21: 3.88306609459779+10.1735896888405j | BD21: 4.01452967083104+11.331752311891j | BE21: 4.15864841838063+12.6165622612676j | BF21: 4.3145916139671+14.040597185376j | BG21: 4.4821806910581+15.6239491956589j | BH21: 4.66101282423762+17.3849199461735j | BI21: 4.85097844516522+19.3435882233855j | BJ21: 5.05290201434801+21.5286825731542j | BK21: 5.26708840235931+23.9631983817741j | BL21: 5.49466606297427+26.6802477379534j | BM21: 5.73660651769572+29.7141610822304j
P23: Intermediate values for Eq 6.39
P24: kd | Q24: =Q13*micro_cavity_depth -> 0.07433542776 | R24: =R13*micro_cavity_depth -> 0.0832556791 | S24: 0.09395998069 | T24: 0.1046642823 | U24: 0.1177473176 | V24: 0.1320197197 | W24: 0.1486708555 | X24: 0.1665113582 | Y24: 0.1867305945 | Z24: 0.2105179314 | AA24: 0.2354946352 | AB24: 0.2652288063 | AC24: 0.2973417111 | AD24: 0.3342120832 | AE24: 0.3746505559 | AF24: 0.4210358629 | AG24: 0.4721786372 | AH24: 0.5292682457 | AI24: 0.5946834221 | AJ24: 0.6672347996 | AK24: 0.7493011119 | AL24: 0.8408823589 | AM24: 0.9443572743 | AN24: 1.059725858 | AO24: 1.189366844 | AP24: 1.334469599 | AQ24: 1.498602224 | AR24: 1.681764718 | AS24: 1.887525182 | AT24: 2.119451716 | AU24: 2.378733688 | AV24: 2.670128565 | AW24: 2.997204447 | AX24: 3.363529436 | AY24: 3.77623973 | AZ24: 4.238903433 | BA24: 4.757467377 | BB24: 5.340257131 | BC24: 5.994408895 | BD24: 6.728248238 | BE24: 7.552479461 | BF24: 8.476617499 | BG24: 9.514934754 | BH24: 10.68051426 | BI24: 11.98762842 | BJ24: 13.45649648 | BK24: 15.10376955 | BL24: 16.953235 | BM24: 19.02986951
P25: At top of air layer (zair) = jrc * cot(kd) | Q25: =IMPRODUCT("-j",airImpedance,COS(Q24)/SIN(Q24)) -> -5552.0037028544j | R25: -4954.81710108971j | S25: -4387.55879095772j | T25: -3936.02775127461j | U25: -3495.27972350676j | V25: -3113.68235810481j | W25: -2760.60565733285j | X25: -2460.15670756504j | Y25: -2188.47656146595j | Z25: -1934.9717385615j | AA25: -1723.18410044568j | AB25: -1522.19980137281j | AC25: -1349.33870802331j | AD25: -1190.74665915136j | AE25: -1051.49593840777j | AF25: -923.309654756157j | AG25: -809.603599076598j | AH25: -706.869667226076j | AI25: -611.320006576913j | AJ25: -524.868952178677j | AK25: -444.454524788727j | AL25: -369.959672888879j | AM25: -299.219602622167j | AN25: -231.860851510529j | AO25: -165.83188429664j | AP25: -99.5752971135256j | AQ25: -29.9022395760043j | AR25: 46.0716345286939j | AS25: 135.520942387683j | AT25: 252.737790827357j | AU25: 432.544199815746j | AV25: 811.033786627409j | AW25: =IMPRODUCT("-j",airImpedance,COS(AW24)/SIN(AW24)) -> 2843.68849496212j | AX25: -1832.32979969628j | AY25: -561.587496511421j | AZ25: -211.846162737658j | BA25: 18.6513095744757j | BB25: 300.120881419832j | BC25: 1391.78479238492j | BD25: -866.85412409751j | BE25: -128.582869002319j | BF25: 296.830120889274j | BG25: -4573.71588877782j | BH25: -134.75721748608j | BI25: 632.828312732427j | BJ25: -334.817937115874j | BK25: 598.965346235476j | BL25: -139.560184000319j | BM25: -2268.16860541369j
P26: 2√(rwh) / 2e | Q26: =SQRT(2*Q12*airDensity*airViscosity)/(2*micro_porosity) -> 13.15726237 | R26: =SQRT(2*R12*airDensity*airViscosity)/(2*micro_porosity) -> 13.92433767 | S26: 14.79241465 | T26: 15.61229909 | U26: 16.55934383 | V26: 17.5342428 | W26: 18.60717889 | X26: 19.69198718 | Y26: 20.85332697 | Z26: 22.14176105 | AA26: 23.41844864 | AB26: 24.85295069 | AC26: 26.31452475 | AD26: 27.8983608 | AE26: 29.53798077 | AF26: 31.31317878 | AG26: 33.16047783 | AH26: 35.10795492 | AI26: 37.21435779 | AJ26: 39.41912294 | AK26: 41.77301301 | AL26: 44.25223739 | AM26: 46.89599748 | AN26: 49.6780315 | AO26: 52.6290495 | AP26: 55.74705828 | AQ26: 59.07596154 | AR26: 62.58211428 | AS26: 66.30007046 | AT26: 70.25534591 | AU26: 74.42871557 | AV26: 78.85581038 | AW26: 83.54602602 | AX26: 88.50447477 | AY26: 93.77722806 | AZ26: 99.35606301 | BA26: 105.258099 | BB26: 111.5189565 | BC26: 118.1519231 | BD26: 125.1752928 | BE26: 132.6210278 | BF26: 140.5008352 | BG26: 148.8574311 | BH26: 157.7116208 | BI26: 167.0837635 | BJ26: 177.0245967 | BK26: 187.5470719 | BL26: 198.6981867 | BM26: 210.516198
P27: 1.7j rwa / e | Q27: =IMPRODUCT("j",1.7*Q12*airDensity*micro_hole_radius/micro_porosity) -> 15.9921963893504j | R27: 17.9112599560724j | S27: 20.2141362361389j | T27: 22.5170125162053j | U27: 25.331639080731j | V27: 28.4021407874862j | W27: 31.9843927787007j | X27: 35.8225199121448j | Y27: 40.1723973300481j | Z27: 45.2899001746402j | AA27: 50.663278161462j | AB27: 57.0601567172021j | AC27: 63.9687855574015j | AD27: 71.9009149665192j | AE27: 80.6006698023258j | AF27: 90.5798003492805j | AG27: 101.582431465154j | AH27: 113.864438292175j | AI27: 127.937571114803j | AJ27: 143.545954790809j | AK27: 161.201339604652j | AL27: 180.903725556331j | AM27: 203.164862930307j | AN27: 227.984751726579j | AO27: 255.875142229606j | AP27: 287.091909581618j | AQ27: 322.402679209303j | AR27: 361.807451112663j | AS27: 406.073850718384j | AT27: 455.969503453158j | AU27: 511.750284459212j | AV27: 574.439694305465j | AW27: =IMPRODUCT("j",1.7*AW12*airDensity*micro_hole_radius/micro_porosity) -> 644.805358418607j | AX27: 723.614902225325j | AY27: 812.403576578998j | AZ27: 911.939006906315j | BA27: 1023.50056891842j | BB27: 1148.87938861093j | BC27: 1289.61071683721j | BD27: 1447.48567959288j | BE27: 1624.807153158j | BF27: 1823.6221386704j | BG27: 2047.00113783685j | BH27: 2297.75877722186j | BI27: 2578.9655585322j | BJ27: 2894.97135918576j | BK27: 3249.35843117376j | BL27: 3647.2442773408j | BM27: 4094.00227567369j
O28: Eq 6.39 | P28: Overall impedance (zh) | Q28: =IMPRODUCT(IMSUM(IMDIV(Q21,micro_porosity),Q25,Q26,Q27),$U$4) -> 593.424722285643-5177.39750975652j | R28: 594.153886379211-4611.45257234571j | S28: 594.980951280408-4072.67604104328j | T28: 595.763885382001-3642.64763596939j | U28: 596.671312059181-3221.47914470994j | V28: 597.608600212658-2855.25767942784j | W28: 598.644766007875-2514.56436763663j | X28: 599.697570204284-2222.68870730535j | Y28: 600.831374054077-1956.5740189565j | Z28: 602.098401042724-1705.62986830107j | AA28: 603.364423918297-1493.25140174781j | AB28: 604.801051391434-1288.48004324781j | AC28: 606.28195792548-1108.86427709711j | AD28: 607.90871620892-940.113441737166j | AE28: 609.61979087245-787.630962250426j | AF28: 611.507052004982-642.367984979183j | AG28: 613.513769528608-508.171880914529j | AH28: 615.682246987645-381.112220539913j | AI28: 618.096092606865-256.361149857522j | AJ28: 620.707645117045-136.357747699408j | AK28: 623.602861678124-16.9598826105753j | AL28: 626.785391117513+101.933687228171j | AM28: 630.346474931757+223.614792170002j | AN28: 634.30048523464+348.417363782063j | AO28: 638.750796979261+479.514103574731j | AP28: 643.768142268229+618.969557586414j | AQ28: 649.516445958552+771.632553393372j | AR28: 656.046782575058+940.15148424894j | AS28: 663.547849997677+1133.07795275976j | AT28: 672.224322147786+1365.61546295316j | AU28: 682.202359640822+1670.96451297455j | AV28: 693.749441395516+2179.32072625847j | AW28: =IMPRODUCT(IMSUM(IMDIV(AW21,micro_porosity),AW25,AW26,AW27),$U$4) -> 707.088570502418+4260.00930883266j | AX28: 722.428440421041+56.0860530052144j | AY28: 740.100208505879+1463.09034097453j | AZ28: 760.236191552729+2028.82838383469j | BA28: 782.998147960216+2509.25672055231j | BB28: 808.562640107727+3068.02018668404j | BC28: 836.949803177677+4421.59852506059j | BD28: 868.126189358873+2664.03990172856j | BE28: 902.06530153522+3764.60559378072j | BF28: 938.622840594459+4617.4055164165j | BG28: 977.805564141261+546.498146722374j | BH28: 1019.55771611491+5282.59623156715j | BI28: 1063.87794483512+6634.30364500674j | BJ28: 1110.96805721548+6430.45636855009j | BK28: 1160.89721807364+8096.06331168045j | BL28: 1213.92055049664+8283.90797041814j | BM28: 1270.25562624987+7270.66322043235j
P30: Reflection/Absorption coefficients
O31: Eq 1.22 | P31: Reflection factor | Q31: =IMDIV(IMSUB(Q28,airImpedance),IMSUM(Q28,airImpedance)) -> 0.970069382482648-0.153901223886971j | R31: 0.962602276284871-0.171152565021349j | S31: 0.952627183561243-0.191316859483527j | T31: 0.941586259806643-0.210833348590272j | U31: 0.926714348053486-0.23371742922331j | V31: 0.908868860626338-0.257351168563348j | W31: 0.886087133794824-0.283011922454587j | X31: 0.859585118795941-0.3080416609815j | Y31: 0.827306085014204-0.333123492966412j | Z31: 0.786877588551167-0.357934609991273j | AA31: 0.742361936156778-0.378348205201636j | AB31: 0.687787629119753-0.395060281067022j | AC31: 0.628425441211577-0.404044109045607j | AD31: 0.561696133628152-0.403429568353803j | AE31: 0.492501412355294-0.390699480862957j | AF31: 0.42072841326483-0.363037043373262j | AG31: 0.35316053456732-0.320068202316093j | AH31: 0.293382576623488-0.261671583881105j | AI31: 0.244991125526696-0.187631687395355j | AJ31: 0.214049518877755-0.103628410203993j | AK31: 0.202831489238303-0.0130365504091718j | AL31: 0.212618075816126+0.0771546638645499j | AM31: 0.242532591003872+0.162270405215035j | AN31: 0.289341969812659+0.236316088159109j | AO31: 0.349244097535251+0.296559346139644j | AP31: 0.417488996525446+0.341035509213711j | AQ31: 0.490522499989865+0.369833995289698j | AR31: 0.563836401890311+0.383405784566225j | AS31: 0.635558383239218+0.383410384517966j | AT31: 0.705020809612828+0.371031912507827j | AU31: 0.773065966082714+0.34608692272981j | AV31: 0.846769312969943+0.301600627410468j | AW31: =IMDIV(IMSUB(AW28,airImpedance),IMSUM(AW28,airImpedance)) -> 0.952243152558386+0.181556036609984j | AX31: 0.273762596868754+0.0358585774713731j | AY31: 0.725197012304282+0.348536002274003j | AZ31: 0.823327472228507+0.305389456414936j | BA31: 0.871968609937569+0.268509423416446j | BB31: 0.907340479022656+0.232629395827081j | BC31: 0.951026528491164+0.173174327073951j | BD31: 0.878734614549357+0.252072544229767j | BE31: 0.931592506250402+0.195758150277863j | BF31: 0.951698656854807+0.164949092394758j | BG31: 0.485072446038422+0.202265078883235j | BH31: 0.960445236171674+0.14581120041326j | BI31: 0.973554576291493+0.118757861018605j | BJ31: 0.971135953137717+0.121755486751518j | BK31: 0.98086116603345+0.0984198414600725j | BL31: 0.981117788531546+0.0961159987927101j | BM31: 0.975001558773713+0.10794810132335j
O32: Eq 1.25 | P32: Absorption coefficient (a) | Q32: =1-POWER(IMABS(Q31),2) -> 0.04 | R32: 0.04 | S32: 0.06 | T32: 0.07 | U32: 0.09 | V32: 0.11 | W32: 0.13 | X32: 0.17 | Y32: 0.20 | Z32: 0.25 | AA32: 0.31 | AB32: 0.37 | AC32: 0.44 | AD32: 0.52 | AE32: 0.60 | AF32: 0.69 | AG32: 0.77 | AH32: 0.85 | AI32: 0.90 | AJ32: 0.94 | AK32: 0.96 | AL32: 0.95 | AM32: 0.91 | AN32: 0.86 | AO32: 0.79 | AP32: 0.71 | AQ32: 0.62 | AR32: 0.54 | AS32: 0.45 | AT32: 0.37 | AU32: 0.28 | AV32: 0.19 | AW32: =1-POWER(IMABS(AW31),2) -> 0.06 | AX32: 0.92 | AY32: 0.35 | AZ32: 0.23 | BA32: 0.17 | BB32: 0.12 | BC32: 0.07 | BD32: 0.16 | BE32: 0.09 | BF32: 0.07 | BG32: 0.72 | BH32: 0.06 | BI32: 0.04 | BJ32: 0.04 | BK32: 0.03 | BL32: 0.03 | BM32: 0.04

Sheet Flow Resistivity
B2: Flow Resistivity of Porous Absorbers
B3: When calculating the absorption properties of porous materials such as fibreglass or Rockwool, the flow resistivity is the most important parameter!
B4: The semi-empirical methods for estimating flow resistivity of porous absorbers are detailed below. Please observe their limitations!
B5: Properties of porous absorber
B6: Porosity (e) | C6: 99.00% | E6: All equation numbers refer to Cox and D'Antonio's book (see Acknowledgements for details)
B7: (Average) Fibre diameter | C7: 7.5 | D7: mm
B9: Bies and Hansen | C9: Suitable for mineral and glass fibres of random fibre orientation with a typical diameter range of 1-10mm
B10: Flow resistivity | C10: =27.3*10^12*(1-AbsorberPorosity)^1.53*(airViscosity/FibreDiameter^2) -> 7,820 | D10: rayls/m | E10: Eq 5.3 | F10: Accurate between 2,000 and 200,000 rayls/m
B12: Mechel (attributed to Sullivan) | C12: Suitable for mineral and glass fibres with a typical diameter range of 1-30mm
B13: Layered fibre orientation
B14: Flow resistivity parallel to fibres | C14: =10^12*(3.94*airViscosity*(1-AbsorberPorosity)^1.413*(1+27*(1-AbsorberPorosity)^3))/((FibreDiameter/2)^2*AbsorberPorosity) -> 7,816 | D14: rayls/m | E14: Eq 5.4
B15: Flow resistivity perpendicular to fibres | C15: =10^12*(G15*airViscosity*(1-AbsorberPorosity)^I15)/((FibreDiameter/2)^2*AbsorberPorosity^3) -> 12,413 | D15: rayls/m | E15: Eq 5.5 | F15: Factor = | G15: =IF(FibreDiameter<15,10.56,6.8) -> 10.56 | H15: Exponent = | I15: =IF(FibreDiameter<15,1.531,1.296) -> 1.531
B17: Random fibre orientation
B18: Flow resistivity | C18: =(10^12*4*airViscosity/(FibreDiameter/2)^2)*(((0.55*(1-AbsorberPorosity)^1.333)/AbsorberPorosity)+((SQRT(2)*(1-AbsorberPorosity)^2)/AbsorberPorosity^3)) -> 7,075 | D18: rayls/m | E18: Eq 5.6
B20: Random fibre orientation and radius
B21: Flow resistivity (Fibreglass) | C21: =10^12*(3.2*airViscosity*(1-AbsorberPorosity)^1.42)/(FibreDiameter/2)^2 -> 6,085 | D21: rayls/m | E21: Eq 5.7
B22: Flow resistivity (Mineral fibre) | C22: =10^12*(4.4*airViscosity*(1-AbsorberPorosity)^1.59)/(FibreDiameter/2)^2 -> 3,824 | D22: rayls/m | E22: Eq 5.7
B24: Explanation of Flow Resistivity
B25: If a substance is not completely solid, but has air gaps within its structure, then it is said to be a porous | I25: Material | J25: Typical porosities
B26: material. Many substances are porous, even the ones we would consider "solid" such as stone or brick. | I26: Mineral Wool | J26: 0.92 - 0.99
B27: The degree of openess within a substance's structure is known as its porosity, and this is measured as | I27: Open cell acoustic foam | J27: 0.95 - 0.995
B28: a value between zero and one, or simply as a percentage. | I28: Felts | J28: 0.83 - 0.95
B29: If the air gaps within the substance are sufficiently large, then they will form an interconnected labyrinth | I29: Wood fibre board | J29: 0.65 - 0.80
B30: of channels, and air will be able to pass directly through the structure. However, these tiny channels will | I30: Wood wool board | J30: 0.50 - 0.65
B31: offer resistance to the flow of air. Therefore, before air can flow through the substance, pressure must be | I31: Porous render | J31: 0.60 - 0.65
B32: exerted to force the air through against this resistance. A sound wave hitting the porous material will | I32: Pumice concrete | J32: 0.25 - 0.50
B33: exert a pressure, and the porous material will then resist the flow of air through itself, and in doing so, use | I33: Gravel and stone chip fill | J33: 0.25 - 0.45
B34: up some of the sound energy. This is how fibreglass or Rockwool are able to absorb sound. | I34: Ceramic filters | J34: 0.33 - 0.42
I35: Brick | J35: 0.25 - 0.30
B36: The speed at which air flows through a sample of the substance, compared to the pressure difference | I36: Sinter metal | J36: 0.10 - 0.25
B37: exerted upon it is known as the flow resistance. In mathematical language, | I37: Firebrick | J37: 0.15 - 0.35
B38: the flow resistance is represented by the Greek letter sigma (s), and is | I38: Sandstone | J38: 0.02 - 0.06
B39: the ratio of the pressure difference (from the surrounding pressure) DP, | H39: Eq 5.2 | I39: Marble | J39: ~0.005
B40: to the flow velocity U. The units of flow resistance are Nm-3s or "rayls". | I40: Table 5.1
B42: This value can be measured by taking a sample of the substance of a known thickness d, and subjecting it to a steady flow of air. As long as the flow velocity
B43: is small (in the order of a few millimetres per second), the pressure difference can be measured and the flow resistance calculated. This gives a specific value
B44: for that thickness of material. Then, to find the flow resistance per unit
B45: thickness (or the flow resistivity), we must divide by the thickness of the | H45: Eq 5.1
B46: sample. The units of flow resistivity are Nm-4s or rayls m-1.
B48: The work of Delany and Bazley
B49: In the early 1970's, Delany and Bazley (D&B) conducted a large number of measurements to find the flow resisitivity of many porous absobers. Then through a
B50: process of curve fitting, they were able to derive a set of formulae to make a direct estimate of the charactaristic impedance and wavenumber of the material.
B51: These equations have been proven to give reliable estimates, and are widely used in prediction models.
B53: What is a wavenumber?
B54: The wavenumber is a frequently used value that describes how a wave travels through a medium. It is the angular reciprocal of the
B55: wavelength. The wave number represents "radians per metre". In otherwords, what angle of rotation (in radians) does this wave make
B56: in the space of one metre? If we are talking about a sound wave travelling through air, then the wavenumber is calculated using the
B57: formula on the right; where k represents the wavenumber and l is the wavelength.
B59: For sound travelling through air, the value of the wavenumber is real. That means, it is represented by a number you can count to. However, the wavenumber
B60: for sound travelling through a porous absorber is complex. This means it is a number containing two parts, a real part and an imaginary part (some multiple
B61: of the square root of -1). The imaginary part is represented by the letter j (in physics at least - in maths, you'll see it represented by the letter i).
B63: What is impedance?
B64: Impedance is a measure of the resistance offered by a material to the average pressure created by a sound wave of a particular freqency. This is very similar
B65: to the concept of flow resistivity, but with the following difference. Flow resistivity relates to a steady flow of air through a porous material when subjected to a
B66: constant pressure gradient. Impedance, on the other hand, relates to the resistance offered by a porous absorber to an oscillating pressure gradient. E.G. a
B67: sound wave. For sound travelling through air, the flow resistivity and impedance are the same, but for sound in a porous absorber, the values are different.
B68: The impedance of a porous absorber is a complex value, whereas the impedance of air is purely real.
B70: When D&B came to derive their formulae for the impedance and wavenumber of a porous absorber, they used the impedance and wavenumber of air as their
B71: starting point, and then derived values that could be used as a scale factors and so arrive at the impedance and wavenumber of the porous absorber.
B73: The impedance of a material is represented by the letter z. The impedance of air (zair) is given by:
B74: Where r0 is the density of air and c is the velocity of sound (both at 1 atmosphere and 20°C)
B76: D&B derived the following equations that scale the impedance and wavenumber of air to derive the corresponding values for a porous absorber.
B85: Where X is the dimensionless quantity: | E85: and f is the frequency of sound and s (sigma) is the flow resistivity.
B87: The values produced by these equations are complex numbers. The real part is known as the resistance and relates to energy loss, and the imaginary part
B88: is known as the reactance and relates to extra "virtual" mass the absorber appears to have due to the resistance created by the viscous air/fibre boundary layers.
B90: Range of accuracy for values derived using Delany & Bazley's formulae
B91: D&B's formulae are accurate within the following boundaries:
B93: ● The flow resistivity values used to derive the dimensionless term X, must fall within the range: 1,000 < s < 50,000 rayls m-1
B94: ● The dimensionless term X must be within the range: 0.01 < X < 1.0
B95: ● The porosity of the material, e, must be close to 1. Most porous absorbers achieve this.

Sheet Configuration
B2: Configuration settings
B4: Air variables | H4: Air Constants
B5: Air temperature | C5: 20.0 | D5: °C | H5: Kinemetric viscosity | I5: =1.85*10^-5 -> 0.000019 | J5: m2s-1
B6: Atmospheric pressure | C6: 1.000 | D6: Bar | H6: Gas constant | I6: 287.05 | J6: J Kg-1 °K-1
B7: Density of air (r0) | C7: =(airPressureBar*oneAtm)/(gasConstant*(273.15+airTemp)) -> 1.204 | D7: kg m-3 | E7: Effects of humidity are neglected | H7: Thermal conductivity | I7: 0.0241 | J7: W m K-1
B8: Sound velocity (c) | C8: =SQRT((gamma*oneAtm)/airDensity0)*SQRT(1+(airTemp/273.15)) -> 343.38 | D8: m s-1 | E8: Kinsler & Frey, Eqn 5.20 | H8: Specific heat capacity | I8: 1.01 | J8: J Kg-1 K-1
B9: Impedance of air (z0) | C9: =sound_velocity*airDensity -> 413.47 | D9: kg m-2s-1 | H9: Density at 0°C (r0) | I9: 1.293 | J9: Kg m-3 | K9: Kinsler & Frey, Appendix A10, Table (c)
B10: Intermediate term 2p/c | C10: =2*PI()/sound_velocity -> 0.01830 | D10: s m-1 | H10: Specific heat ratio | I10: 1.402 | K10: Kinsler & Frey, Appendix A10, Table (c)
B11: Intermediate term c/2p | C11: =sound_velocity/(2*PI()) -> 54.65093 | D11: m s-1 | H11: Pressure at 1 atmosphere | I11: 101325 | J11: Pa
B12: AirDensity/AirViscosity | C12: =airDensity/airViscosity -> 65087.477 | D12: kg s m-5
B14: Spreadsheet configuration
B15: Language for ATP function names | C15: English
B17: Dimensions
B18: Rigid backed porous absorber
B19: Absorber thickness = | C19: ta
B20: Overall cavity depth = | C20: d
B25: Perforated Panel
B26: Porous Absorber against Panel
B27: Panel thickness = | C27: tp
B28: Absorber thickness = | C28: ta
B29: Repeat distance between holes = | C29: D
B30: Hole radius = | C30: a
B31: Overall cavity depth = | C31: d
B35: Porous Absorber against Backing
B36: Panel thickness = | C36: tp
B37: Absorber thickness = | C37: ta
B38: Repeat distance between holes = | C38: D
B39: Hole radius = | C39: a
B40: Overall cavity depth = | C40: d
B43: Slotted Panel
B44: Porous Absorber against Panel
B45: Panel thickness = | C45: tp
B46: Absorber thickness = | C46: ta
B47: Distance between slot = | C47: D
B48: Slot width = | C48: w
B49: Overall cavity depth = | C49: d
B53: Porous Absorber against Backing
B54: Panel thickness = | C54: tp
B55: Absorber thickness = | C55: ta
B56: Distance between slot = | C56: D
B57: Slot width = | C57: w
B58: Overall cavity depth = | C58: d
B62: Microperforated Panel
B63: Panel thickness = | C63: tp
B64: Distance between holes = | C64: D
B65: Hole radius = | C65: a
B66: Cavity depth = | C66: d

Sheet Acknowledgements
B2: Acknowledgements
B3: My thanks go to the following reviewers who at various times, have suggested improvements, corrections and patiently endured the bug fixing cycle!
B5: Reviewers | C5: Organisation | D5: Contact
B6: Angelo Campanella | C6: Campanella Acoustics | D6: http://www.campanellaacoustics.com
B7: Jeff Szymanski | C7: Auralex Acoustics | D7: http://www.auralex.com
B8: James Heddle | C8: Independent consultant | D8: http://directory.ourbrisbane.com/directory/listings/86305.html
B9: Eric Desart | C9: Independent consultant | D9: http://www.acoustics-noise.com
B11: Source material
B12: All equation numbers refer to Trevor Cox and Peter D'Antonio's book Acoustic Absorbers and Diffusors. Theory, Design and Application.
B13: The transfer matrix calculations in this spreadsheet are reimplementations of the MATLAB scripts printed in appendix B of the above book.
B15: Configuration | C15: Authors | D15: Location | E15: Source material
B16: Air properties & sound velocity | C16: Kinsler & Frey | D16: Naval Postgraduate College | E16: Fundamentals of Acoustics, Third Edition
B18: Porous Absorbers | C18: Authors | D18: Location | E18: Source material
B19: Rigid backed | C19: Cox & D'Antonio | D19: Salford University/RPG Diffusor Systems Inc | E19: Chapter 5, Acoustic Absorbers and Diffusors. Theory, Design and Application
B21: Helmholtz Absorbers | C21: Authors | D21: Location | E21: Source material
B22: Perforated panels | C22: As above | D22: As above | E22: Ibid, Chapter 6 and Appendix B.4
B23: Slotted panels | C23: As above | D23: As above | E23: Ibid, Chapter 6 and Appendix B.5
B25: Microperforated Panels | C25: Authors | D25: Location | E25: Source material
B26: Microperforated panels | C26: As above | D26: As above | E26: Ibid, Chapter 6, section 5.2 and Appendix B.6
B27: Implementation of Bessel function | C27: Gordon Everstine | D27: Gaithersburg, Maryland, USA | E27: http://www.efg2.com/Lab/Mathematics/Complex/Bessel.htm
B28: VBA functions for complex numbers | C28: Leonardo Volpi et al | D28: Foxes team, Italy | E28: http://digilander.libero.it/foxes
B30: Calculations for microperforated panel absorbers
B31: I am greatly indebted to Gordon Everstine for sending me his FORTRAN implementation of a Bessel function taking a complex parameter.
B32: After translating the FORTAN code into VBA, I used a combination of VBA functions supplied by the Analysis ToolPak and the Foxes Team in Italy to implement a
B33: high perfomance version of the algorithm.
